Workbook

Sheet Instructions
B2: Horizon Europe Programme
B4: Detailed lump sum budget | D4: Generate the Excel file in macro-free format Ready for the online submission system
A6: Instructions
B7: Go to Beneficiaries and Affiliated Entities list | C7: ! Double click buttons ! | D7: Go to Work packages list
A9: GENERAL INSTRUCTIONS | B9: This workbook enables you to present the detailed estimation of costs of your lump sum project and to calculate the lump sum breakdown per beneficiary and per work package. It must be uploaded as an additional document at the ‘Proposal forms’ step of proposal submission. This is mandatory. If you do not upload the Excel workbook, the proposal submission will be blocked. Comprehensive guidance and background on lump sum funding under Horizon Europe is available on the Funding & Tenders Portal. To get started, we recommend to read the guide Lump sum funding – what do I need to know. This includes details on how to complete this Excel workbook. The weblinks are provided in column E. We recommend using Excel 2013 (Windows) / Excel 2016 (Mac OS) or more recent. The only currency used in this workbook is EURO (€). You must complete the following sheets: ‘BE list’ – ‘WP list’ – ‘BEx’ (one sheet for each beneficiary) – ‘Depreciation costs’ (if any). The appropriate number of individual beneficiary sheets (‘BEx’) will be generated automatically with data from the ‘BE list’ and ‘WP list’ sheets. The information in this workbook must correspond to the main proposal. For example, the list of beneficiaries and the list of work packages must be the same. Likewise, the tables in section 3.1 of Part B of the proposal must be in line with this workbook (e.g., table 3.1h ‘purchase costs’, and table 3.1i ‘internally invoiced goods and services’). | E9: Lump sum funding under Horizon Europe
E10: Lump sum funding - what do I need to know
A11: BE LIST | B11: In the ‘BE list’, you can add as many beneficiaries and as many affiliated entities as you need. To add beneficiaries, click on the "Add BE" button. To add an affiliated entity, click on the “Add AE” button next to the beneficiary concerned. For each beneficiary and each affiliated entity, you must select the country and the appropriate funding rate in the drop-down menus. The funding rates are used in the automatic calculation of the lump sum breakdown. For RIA and CSA topics, the funding rate is always 100%. For IA topics, the funding rate is 70% (except for non-profit legal entities, where a rate of up to 100% applies). For more information on the funding rate, please refer to your topic description. Once you have completed the ‘BE list’ sheet, click the “Apply changes” button to generate the corresponding sheets in the Excel workbook. To delete a beneficiary from the ‘BE list’, click the “Clear BE” button next to it. Likewise, to delete an affiliated entity, click the “Clear AE” button next to it. The first beneficiary BE1 cannot be deleted, but its details can be modified. Click “Apply changes” to delete the corresponding sheets from the workbook. Deleted beneficiary sheets then appear as a backup and are excluded from the calculation. Data of deleted affiliated entities are not saved as a backup.
A12: WP LIST | B12: In the ‘WP list’, you can add as many work packages as you need. To add work packages, click the "Add WP" button. Once you have completed the ‘WP list’ sheet, click the “Apply changes” button. To delete a work package, click the “Clear WP” button next to it and then “Apply changes”. The first work package WP1 cannot be deleted, but its details can be modified. There is no back-up for deleted work packages.
A13: BEx | B13: You must complete one ‘BEx’ sheet per beneficiary. This sheet includes one section for each work package. Each work package section contains the full list of cost categories. Complete the information for each work package in which the beneficiary participates. For the cost categories used, you must enter the number of units and the cost per unit in Euro (yellow cells). The total cost per cost category is calculated automatically. If a cost category is not used leave cells blank. Preferably use whole numbers for the costs per unit (no Euro cents). The number of units can be a fraction (e.g., 0.5 units). Lump sum proposals may contain only costs that are eligible under Horizon Europe (same eligibility rules as for actual cost grants).
B14: Enter your personnel costs in section “A. DIRECT PERSONNEL COSTS”. For personnel costs, the number of units is the number of person-months (e.g., 10 units correspond to 10 person-months). A senior scientist corresponds to career stages A and B in the Researcher Table in Part A of the proposal, or to an equivalent position in the private sector. A junior scientist corresponds to career stage C and D in the Researcher Table in Part A of the proposal, or to an equivalent position in the private sector. A staff category can contain more than one employee (e.g., two junior scientists in the same organisation and working on the same work package). In this case, the cost per unit is the average monthly personnel cost of all employees concerned, and the number of units is the combined number of person-months. No more detailed information is required in this sheet In section “A.4 SME Owner and natural person beneficiaries”, the cost per unit is prefilled in the workbook. When using this category, only enter the number of units.
B15: Enter your subcontracting costs in section “B. DIRECT SUBCONTRACTING COSTS”. A beneficiary can have more than one subcontract associated to a work package. In this case, the cost per unit is the average cost of all subcontracts, and the number of units is the number of subcontracts.
B16: In section “C. DIRECT PURCHASE COSTS”, complete the categories “C.1 Travel and subsistence”, “C.2 Equipment”, and “C.3 Other goods, works and services”, if applicable. A category can contain more than one item (e.g., several travels, or two pieces of equipment). In this case, the cost per unit is the average cost of all items, and the number of units is the number of items. No more detailed information is required in this sheet. For category “C.2 Equipment” (equipment, infrastructure, other assets), use the sheet ‘Depreciation costs’ as a tool to calculate the depreciation costs to be charged for the whole duration of the project (see below). Certain topics specify that the purchase of equipment, infrastructure and other assets may be declared as full capitalised costs. If this is the case for the topic you are applying to, enter the full capitalised costs in section “C.2 Equipment” (e.g., the full equipment costs).
B17: In section “D. OTHER DIRECT COSTS”, complete section “D.2 Internally invoiced goods and services”, if applicable. All other cost categories in section D. can be used only if they are explicitly allowed in the specific conditions of the topic. ◦“D.1 Financial support to third parties” ◦“D.3 Transnational access to research infrastructure unit costs” ◦“D.4 Virtual access to research infrastructure unit costs” ◦“D.5 PCP/PPI procurement costs"
B18: In section “E. INDIRECT COSTS”, the indirect costs will be calculated automatically.
A19: DEPRECIATION COSTS | B19: To calculate the depreciation costs, you need to: - Enter the price of the equipment in the column “Purchase costs” - Enter the percentage of usage of the equipment for the project in the column “% used for the project” - Complete the column “% of useful life of the equipment in the project”. To obtain the correct value, divide the period (in months) during which the equipment is used for the project by the depreciation period (in months) for the equipment. Multiply the result by 100%. The resulting amount is NOT automatically transferred to the respective ‘BEx’ sheet. You must add it manually in category “C.2 Equipment” under the appropriate work package in the ‘BEx’ sheet of the beneficiary concerned. If you have several items in the ‘Depreciation costs’ sheet to be encoded in one row (same beneficiary, same work package, and same resource type), you must enter the average cost of these items as the cost per unit and the number of items as the number of units. More information on calculating depreciation costs is available in the Annotated Model Grant Agreement. The rules on actual depreciation costs apply equally to lump sum grants except that the calculation is based on estimations and the result is included in the lump sum budget at proposal stage. | E19: Annotated Model Grant Agreement
A20: ANY COMMENTS | B20: If you have any comments, you can use the ‘Any comments’ sheet.
A21: SUMMARY TABLES | B21: The summary tables (‘Lump sum breakdown’, ‘Person-months overview’ and ‘Summary per WP’) are generated automatically. They are for your information and will be used during evaluation.
A22: SUBMISSION | B22: After you completed this Excel workbook, you must also complete the table ‘Budget for the proposal’ in Part A of the proposal, entering the requested EU contribution for each participant. Fill the Part A budget table using the total for each participant from the sheet ‘Lump sum breakdown’ in this Excel workbook. The format of this Excel workbook is .xlsm because it uses macros to generate sheets and make calculations automatically. Always save it as .xlsm. However, this format cannot be uploaded to the submission system for security reasons. Therefore, to submit the completed workbook, save a copy as a .xlsx or .xls document (and not as .xlsm) and upload it to the proposal submission tool at Step 5 of the submission process. Always keep a copy of the original .xlsm file. To save the workbook as .xlsx document, use the action button in the sheet “Instructions”. Alternatively, click on “File” and then “Save as”; in the “Save as” dialog box, choose “.xlsx” or “.xls” from the “Save as type” dropdown list.

Sheet BE list
A2: List of beneficiaries and affiliated entities | H2: Add BE | I2: ! Double click buttons ! | L2: Apply changes
A3: BE/AE nr | B3: BE/AE name | C3: Acronym | D3: Country | E3: Funding rate
A4: BE1 | B4: Eötvös Loránd Tudományegyetem | C4: ELTE | D4: HU | E4: 1 | J4: Add AE to BE1
A5: BE2 | B5: Linköpings universitet | C5: LIU | D5: SE | E5: 1 | H5: Clear BE2 | J5: Add AE to BE2
A6: BE3 | B6: Loughborough University | C6: Lboro | D6: UK | E6: 1 | H6: Clear BE3 | J6: Add AE to BE3
A7: BE4 | B7: JustInMind SL | C7: JM | D7: ES | E7: 1 | H7: Clear BE4 | J7: Add AE to BE4
A8: BE5 | B8: Intelligentsia Consultants Sàrl | C8: INT | D8: LU | E8: 1 | H8: Clear BE5 | J8: Add AE to BE5

Sheet WP list
A2: List of Work Packages | D2: Add WP | E2: ! Double click buttons ! | F2: Apply changes
A3: WP number | B3: WP name
A4: WP1 | B4: Research Management and Administration Skill Development – Period 1
A5: WP2 | B5: Research Management and Administration Skill Development – Period 2 | E5: Clear WP2
A6: WP3 | B6: Short termstaff exchanges and trainings for experienced researchers – Period 1 | E6: Clear WP3
A7: WP4 | B7: Short term staff exchanges and trainings for experienced researchers – Period 2 | E7: Clear WP4
A8: WP5 | B8: Research internships and trainings for early-stage researchers – Period 1 | E8: Clear WP5
A9: WP6 | B9: Research internships and trainings for early-stage researchers – Period 2 | E9: Clear WP6
A10: WP7 | B10: Preparatory Research Project | E10: Clear WP7
A11: WP8 | B11: Dissemination, Exploitation, Communication and Outreach | E11: Clear WP8
A12: WP9 | B12: Project Management | E12: Clear WP9

Sheet BE-WP Tmpl (hidden)
A1: ESTIMATED BREAKDOWN OF THE LUMP SUM PER WORK PACKAGE AND PER BENEFICIARY
A2: BENEFICIARIES \ WORK PACKAGES | B2: WPx name | C2: Totals | D2: Pct %
A3: BEx: BEx name | D3: =IF(C$4>0,C3/C$4," ") -> 
A4: Totals: | D4: =IF(C$4>0,C4/C$4," ") -> 
A5: Pct: | B5: =IF($C4>0,B4/$C4," ") ->  | C5: =IF($C4>0,C4/$C4," ") -> 

Sheet Lump sum breakdown
A1: ESTIMATED BREAKDOWN OF THE LUMP SUM PER WORK PACKAGE AND PER BENEFICIARY
A2: BENEFICIARIES \ WORK PACKAGES | B2: WP1 Research Management and Administration Skill Development – Period 1 | C2: WP2 Research Management and Administration Skill Development – Period 2 | D2: WP3 Short termstaff exchanges and trainings for experienced researchers – Period 1 | E2: WP4 Short term staff exchanges and trainings for experienced researchers – Period 2 | F2: WP5 Research internships and trainings for early-stage researchers – Period 1 | G2: WP6 Research internships and trainings for early-stage researchers – Period 2 | H2: WP7 Preparatory Research Project | I2: WP8 Dissemination, Exploitation, Communication and Outreach | J2: WP9 Project Management | K2: Totals | L2: Pct %
A3: BE1: Eötvös Loránd Tudományegyetem | B3: ='BE1'!D43*'BE list'!E4 -> 35375 | C3: ='BE1'!D84*'BE list'!E4 -> 44375 | D3: ='BE1'!D125*'BE list'!E4 -> 21250 | E3: ='BE1'!D166*'BE list'!E4 -> 30000 | F3: ='BE1'!D207*'BE list'!E4 -> 83500 | G3: ='BE1'!D248*'BE list'!E4 -> 107500 | H3: ='BE1'!D289*'BE list'!E4 -> 186000 | I3: ='BE1'!D330*'BE list'!E4 -> 72500 | J3: ='BE1'!D371*'BE list'!E4 -> 19500 | K3: =SUM(B3:J3) -> 600000 | L3: =IF(K$8>0,K3/K$8," ") -> 0.3905948026
A4: BE2: Linköpings universitet | B4: ='BE2'!D43*'BE list'!E5 -> 19687.5 | C4: ='BE2'!D84*'BE list'!E5 -> 30625 | D4: ='BE2'!D125*'BE list'!E5 -> 23527.5 | E4: ='BE2'!D166*'BE list'!E5 -> 37478.75 | F4: ='BE2'!D207*'BE list'!E5 -> 36652.5 | G4: ='BE2'!D248*'BE list'!E5 -> 63728.75 | H4: ='BE2'!D289*'BE list'!E5 -> 57457.5 | I4: ='BE2'!D330*'BE list'!E5 -> 41853.75 | J4: ='BE2'!D371*'BE list'!E5 -> 17500 | K4: =SUM(B4:J4) -> 328511.25 | L4: 0.2138579781
A5: BE3: Loughborough University | B5: ='BE3'!D43*'BE list'!E6 -> 14687.5 | C5: ='BE3'!D84*'BE list'!E6 -> 23125 | D5: ='BE3'!D125*'BE list'!E6 -> 21285 | E5: ='BE3'!D166*'BE list'!E6 -> 34115 | F5: ='BE3'!D207*'BE list'!E6 -> 42865 | G5: ='BE3'!D248*'BE list'!E6 -> 68820 | H5: ='BE3'!D289*'BE list'!E6 -> 76095 | I5: ='BE3'!D330*'BE list'!E6 -> 38490 | J5: ='BE3'!D371*'BE list'!E6 -> 12500 | K5: =SUM(B5:J5) -> 331982.5 | L5: 0.2161177318
A6: BE4: JustInMind SL | B6: ='BE4'!D43*'BE list'!E7 -> 0 | C6: ='BE4'!D84*'BE list'!E7 -> 0 | D6: ='BE4'!D125*'BE list'!E7 -> 0 | E6: ='BE4'!D166*'BE list'!E7 -> 0 | F6: ='BE4'!D207*'BE list'!E7 -> 0 | G6: ='BE4'!D248*'BE list'!E7 -> 0 | H6: ='BE4'!D289*'BE list'!E7 -> 91250 | I6: ='BE4'!D330*'BE list'!E7 -> 20625 | J6: ='BE4'!D371*'BE list'!E7 -> 13750 | K6: =SUM(B6:J6) -> 125625 | L6: 0.0817807868
A7: BE5: Intelligentsia Consultants Sàrl | B7: ='BE5'!D43*'BE list'!E8 -> 46562.5 | C7: ='BE5'!D84*'BE list'!E8 -> 60937.5 | D7: ='BE5'!D125*'BE list'!E8 -> 0 | E7: ='BE5'!D166*'BE list'!E8 -> 0 | F7: ='BE5'!D207*'BE list'!E8 -> 0 | G7: ='BE5'!D248*'BE list'!E8 -> 0 | H7: ='BE5'!D289*'BE list'!E8 -> 0 | I7: ='BE5'!D330*'BE list'!E8 -> 22500 | J7: ='BE5'!D371*'BE list'!E8 -> 20000 | K7: =SUM(B7:J7) -> 150000 | L7: 0.09764870066
A8: Totals: | B8: =SUM(B3:B7) -> 116312.5 | C8: 159062.5 | D8: 66062.5 | E8: 101593.75 | F8: 163017.5 | G8: 240048.75 | H8: 410802.5 | I8: 195968.75 | J8: 83250 | K8: =SUM(B3:J7) -> 1536118.75 | L8: 1
A9: Pct: | B9: =IF($K8>0,B8/$K8," ") -> 0.07571842997 | C9: 0.1035483097 | D9: 0.04300611525 | E9: 0.06613665122 | F9: 0.1061229804 | G9: 0.1562696569 | H9: 0.267428869 | I9: 0.1275739587 | J9: 0.05419502887 | K9: 1

Sheet Budget for proposal (hidden)
A1: Budget (to be copied in the online submission form)
A3: No | B3: Name of Beneficiary | C3: Country | D3: Requested grant amount
A4: BE1 | B4: Beneficiary 1 | C4: BE | D4: 0
A5: Totals: | D5: =SUM(#REF!) -> 

Sheet Budget for proposal tmpl (hidden)
A1: Budget (to be copied in the online submission form)
A3: No | B3: Name of Beneficiary | C3: Country | D3: Requested grant amount
A4: BE1 | B4: Beneficiary 1 | C4: BE | D4: 0
A5: Totals: | D5: =SUM(#REF!) -> 

Sheet Proposal BudgetIA Tmpl (hidden)
A1: Budget for the proposal (IA)
D3: (A) | E3: (B) | F3: (C) | G3: (D) | H3: (E) | I3: (F) | J3: (G) | K3: (H) | L3: (I) | M3: (J) | N3: (K) | O3: (L) | P3: (M) | Q3: (N) | R3: (O)
A4: No | B4: Participant | C4: Country | D4: Direct personnel costs | E4: Other direct costs | F4: Direct costs of subcontracting | G4: Direct costs of providing financial support to third parties | H4: Costs of in kind contributions NOT used on the beneficiary's premises (included in A and B) | I4: Indirect Costs (=0.25(A+B-E)) | J4: Special unit costs covering direct & indirect costs | K4: Total estimated eligible costs (=A+B+C+D+F+G) | L4: Reimbursement rate | M4: Max. EU contribution (=H*I) | N4: Costs of third parties linked to participant | O4: Max. EU Contribution / € THIRD PARTIES | P4: Total Costs for BENEFICIARY & THIRD PARTIES (=H+K) | Q4: Max. EU Contribution / € BENEFICIARY & THIRD PARTIES (=J+L) | R4: Requested EU contribution / € BENEFICIARY & THIRD PARTIES
A5: BE1 | D5: =SUM(#REF!:#REF!) ->  | E5: =SUM(#REF!:#REF!) ->  | F5: =SUM(#REF!:#REF!) ->  | G5: =SUM(#REF!:#REF!) ->  | H5: =SUM(#REF!:#REF!) ->  | I5: =#REF! ->  | K5: =#REF! ->  | M5: =$K5*$L5 -> 
A6: Totals: | D6: =SUM(D5:D5) ->  | J6: 0 | M6: =SUM(M5:M5) ->  | N6: 0 | O6: 0 | P6: 0 | Q6: 0 | R6: 0

Sheet Proposal Budget (RIA-CSA) (hidden)
A1: Budget for the proposal (RIA-CSA)
D3: (A) | E3: (B) | F3: (C) | G3: (D) | H3: (E) | I3: (F) | J3: (G) | K3: (H) | L3: (I) | M3: (J) | N3: (O)
A4: No | B4: Participant | C4: Country | D4: Direct personnel costs | E4: Other direct costs | F4: Direct costs of subcontracting | G4: Direct costs of providing financial support to third parties | H4: Costs of in kind contributions NOT used on the beneficiary's premises (included in A and B) | I4: Indirect Costs (=0.25(A+B-E)) | J4: Special unit costs covering direct & indirect costs | K4: Total estimated eligible costs (=A+B+C+D+F+G) | L4: Reimbursement rate | M4: Max. EU contribution (=H*I) | N4: Requested EU contribution / € BENEFICIARY & THIRD PARTIES
A5: BE1 | B5: Beneficiary 1 | C5: BE | D5: =SUM(#REF!:#REF!) ->  | E5: =SUM(#REF!:#REF!) ->  | F5: =SUM(#REF!:#REF!) ->  | G5: =SUM(#REF!:#REF!) ->  | H5: =SUM(#REF!:#REF!) ->  | I5: =SUM(#REF!:#REF!) ->  | K5: =SUM(#REF!:#REF!) ->  | L5: 1 | M5: =$K5*$L5 -> 
A6: Totals: | D6: =SUM(D5) ->  | J6: 0 | M6: =SUM(M5) ->  | N6: =SUM(N5) -> 0

Sheet Proposal Budget (IA) (hidden)
A1: Budget for the proposal (IA)
D3: (A) | E3: (B) | F3: (C) | G3: (D) | H3: (E) | I3: (F) | J3: (G) | K3: (H) | L3: (I) | M3: (J) | N3: (K) | O3: (L) | P3: (M) | Q3: (N) | R3: (O)
A4: No | B4: Participant | C4: Country | D4: Direct personnel costs | E4: Other direct costs | F4: Direct costs of subcontracting | G4: Direct costs of providing financial support to third parties | H4: Costs of in kind contributions NOT used on the beneficiary's premises (included in A and B) | I4: Indirect Costs (=0.25(A+B-E)) | J4: Special unit costs covering direct & indirect costs | K4: Total estimated eligible costs (=A+B+C+D+F+G) | L4: Reimbursement rate | M4: Max. EU contribution (=H*I) | N4: Costs of third parties linked to participant | O4: Max. EU Contribution / € THIRD PARTIES | P4: Total Costs for BENEFICIARY & THIRD PARTIES (=H+K) | Q4: Max. EU Contribution / € BENEFICIARY & THIRD PARTIES (=J+L) | R4: Requested EU contribution / € BENEFICIARY & THIRD PARTIES
A5: BE1 | B5: Beneficiary 1 | C5: BE | D5: =SUM(#REF!:#REF!) ->  | E5: =SUM(#REF!:#REF!) ->  | F5: =SUM(#REF!:#REF!) ->  | G5: =SUM(#REF!:#REF!) ->  | H5: =SUM(#REF!:#REF!) ->  | I5: =SUM(#REF!:#REF!) ->  | K5: =SUM(#REF!:#REF!) ->  | L5: ='BE list'!E4 -> 1 | M5: =$K5*$L5 ->  | P5: =K5+N5 ->  | Q5: =M5+O5 -> 
A6: Totals: | D6: =SUM(D5) ->  | J6: 0 | M6: =SUM(M5) ->  | N6: 0 | O6: 0 | R6: 0

Sheet Person-months overview tpl (hidden)
A1: TOTAL PERSON-MONTHS FOR ALL BENEFICIARIES (INCLUDING AFFILIATED ENTITIES) PER WP
A2: BENEFICIARIES \ WORK PACKAGES | B2: WP1 | C2: Total | D2: Pct %
A3: BE1 | C3: =SUM(B3:B3) -> 0 | D3: =IF(C$4>0,C3/C$4," ") -> 
A4: Total | C4: =SUM(C3:C3) -> 0 | D4: =IF(C$4>0,C4/C$4," ") -> 
A5: Percentage | B5: =IF($C4>0,B4/$C4," ") ->  | C5: =IF($C4>0,C4/$C4," ") -> 

Sheet Person-months overview
A1: TOTAL PERSON-MONTHS FOR ALL BENEFICIARIES (INCLUDING AFFILIATED ENTITIES) PER WP
A2: BENEFICIARIES \ WORK PACKAGES | B2: WP1 Research Management and Administration Skill Development – Period 1 | C2: WP2 Research Management and Administration Skill Development – Period 2 | D2: WP3 Short termstaff exchanges and trainings for experienced researchers – Period 1 | E2: WP4 Short term staff exchanges and trainings for experienced researchers – Period 2 | F2: WP5 Research internships and trainings for early-stage researchers – Period 1 | G2: WP6 Research internships and trainings for early-stage researchers – Period 2 | H2: WP7 Preparatory Research Project | I2: WP8 Dissemination, Exploitation, Communication and Outreach | J2: WP9 Project Management | K2: Total | L2: Pct %
A3: BE1: Eötvös Loránd Tudományegyetem | B3: =(SUM('BE1'!$B9:'BE1'!$B16)) -> 8 | C3: =(SUM('BE1'!$B50:'BE1'!$B57)) -> 10 | D3: =(SUM('BE1'!$B91:'BE1'!$B98)) -> 2 | E3: =(SUM('BE1'!$B132:'BE1'!$B139)) -> 2 | F3: =(SUM('BE1'!$B173:'BE1'!$B180)) -> 10 | G3: =(SUM('BE1'!$B214:'BE1'!$B221)) -> 14 | H3: =(SUM('BE1'!$B255:'BE1'!$B262)) -> 42 | I3: =(SUM('BE1'!$B296:'BE1'!$B303)) -> 10 | J3: =(SUM('BE1'!$B337:'BE1'!$B344)) -> 6 | K3: =SUM(B3:J3) -> 104 | L3: =IF(K$8>0,K3/K$8," ") -> 0.5445026178
A4: BE2: Linköpings universitet | B4: =(SUM('BE2'!$B9:'BE2'!$B16)) -> 2 | C4: =(SUM('BE2'!$B50:'BE2'!$B57)) -> 3 | D4: =(SUM('BE2'!$B91:'BE2'!$B98)) -> 2 | E4: =(SUM('BE2'!$B132:'BE2'!$B139)) -> 3 | F4: =(SUM('BE2'!$B173:'BE2'!$B180)) -> 2 | G4: =(SUM('BE2'!$B214:'BE2'!$B221)) -> 3 | H4: =(SUM('BE2'!$B255:'BE2'!$B262)) -> 6 | I4: =(SUM('BE2'!$B296:'BE2'!$B303)) -> 3 | J4: =(SUM('BE2'!$B337:'BE2'!$B344)) -> 2 | K4: =SUM(B4:J4) -> 26 | L4: 0.1361256545
A5: BE3: Loughborough University | B5: =(SUM('BE3'!$B9:'BE3'!$B16)) -> 2 | C5: =(SUM('BE3'!$B50:'BE3'!$B57)) -> 3 | D5: =(SUM('BE3'!$B91:'BE3'!$B98)) -> 2 | E5: =(SUM('BE3'!$B132:'BE3'!$B139)) -> 3 | F5: =(SUM('BE3'!$B173:'BE3'!$B180)) -> 3 | G5: =(SUM('BE3'!$B214:'BE3'!$B221)) -> 4 | H5: =(SUM('BE3'!$B255:'BE3'!$B262)) -> 9 | I5: =(SUM('BE3'!$B296:'BE3'!$B303)) -> 3 | J5: =(SUM('BE3'!$B337:'BE3'!$B344)) -> 2 | K5: =SUM(B5:J5) -> 31 | L5: 0.1623036649
A6: BE4: JustInMind SL | B6: =(SUM('BE4'!$B9:'BE4'!$B16)) -> 0 | C6: =(SUM('BE4'!$B50:'BE4'!$B57)) -> 0 | D6: =(SUM('BE4'!$B91:'BE4'!$B98)) -> 0 | E6: =(SUM('BE4'!$B132:'BE4'!$B139)) -> 0 | F6: =(SUM('BE4'!$B173:'BE4'!$B180)) -> 0 | G6: =(SUM('BE4'!$B214:'BE4'!$B221)) -> 0 | H6: =(SUM('BE4'!$B255:'BE4'!$B262)) -> 12 | I6: =(SUM('BE4'!$B296:'BE4'!$B303)) -> 3 | J6: =(SUM('BE4'!$B337:'BE4'!$B344)) -> 2 | K6: =SUM(B6:J6) -> 17 | L6: 0.0890052356
A7: BE5: Intelligentsia Consultants Sàrl | B7: =(SUM('BE5'!$B9:'BE5'!$B16)) -> 4 | C7: =(SUM('BE5'!$B50:'BE5'!$B57)) -> 5 | D7: =(SUM('BE5'!$B91:'BE5'!$B98)) -> 0 | E7: =(SUM('BE5'!$B132:'BE5'!$B139)) -> 0 | F7: =(SUM('BE5'!$B173:'BE5'!$B180)) -> 0 | G7: =(SUM('BE5'!$B214:'BE5'!$B221)) -> 0 | H7: =(SUM('BE5'!$B255:'BE5'!$B262)) -> 0 | I7: =(SUM('BE5'!$B296:'BE5'!$B303)) -> 2 | J7: =(SUM('BE5'!$B337:'BE5'!$B344)) -> 2 | K7: =SUM(B7:J7) -> 13 | L7: 0.06806282723
A8: Total | B8: =SUM(B3:B7) -> 16 | C8: 21 | D8: 6 | E8: 8 | F8: 15 | G8: 21 | H8: 69 | I8: 21 | J8: 14 | K8: =SUM(B3:J7) -> 191 | L8: 1
A9: Percentage | B9: =IF($K8>0,B8/$K8," ") -> 0.08376963351 | C9: 0.109947644 | D9: 0.03141361257 | E9: 0.04188481675 | F9: 0.07853403141 | G9: 0.109947644 | H9: 0.3612565445 | I9: 0.109947644 | J9: 0.07329842932 | K9: 1

Sheet Summary per WP
A1: SUM OF ALL BENEFICIARIES (including AFFILIATED ENTITIES) FOR ALL THE WORK PACKAGES
B2: ALL BENEFICIARIES (without affiliated entities) | E2: ALL AFFILIATED ENTITIES | J2: ALL BENEFICIARIES (with affiliated entities)
A3: COST CATEGORY | B3: UNITS | C3: COST PER UNIT | D3: BE TOTAL COSTS | E3: UNITS | F3: COST PER UNIT | G3: AE TOTAL COSTS | J3: UNITS (TOTAL) | K3: AVERAGE COST PER UNIT | L3: BE+TP TOTAL COSTS | N3: TOTAL COSTS
A5: COSTS WORK PACKAGE: 1 Research Management and Administration Skill Development – Period 1
A7: A. DIRECT PERSONNEL COSTS
A8: A.1 Employees (or equivalent)
A9: SENIOR SCIENTISTS (or equivalent in the private sector) | B9: ='BE1'!B9+'BE2'!B9+'BE3'!B9+'BE4'!B9+'BE5'!B9 -> 0 | D9: ='BE1'!D9+'BE2'!D9+'BE3'!D9+'BE4'!D9+'BE5'!D9 -> 0 | I9: =D9+G9 -> 0 | J9: =E9+B9 -> 0 | K9: =IF(J9>0,L9/J9," ") ->  | L9: =G9+D9 -> 0 | N9: =D9+G9 -> 0
A10: JUNIOR SCIENTISTS (or equivalent in the private sector) | B10: ='BE1'!B10+'BE2'!B10+'BE3'!B10+'BE4'!B10+'BE5'!B10 -> 0 | D10: ='BE1'!D10+'BE2'!D10+'BE3'!D10+'BE4'!D10+'BE5'!D10 -> 0 | I10: 0 | J10: 0 | L10: 0 | N10: 0
A11: TECHNICAL PERSONNEL (or equivalent in the private sector) | B11: ='BE1'!B11+'BE2'!B11+'BE3'!B11+'BE4'!B11+'BE5'!B11 -> 0 | D11: ='BE1'!D11+'BE2'!D11+'BE3'!D11+'BE4'!D11+'BE5'!D11 -> 0 | I11: 0 | J11: 0 | L11: 0 | N11: 0
A12: ADMINISTRATIVE PERSONNEL (or equivalent in the private sector) | B12: ='BE1'!B12+'BE2'!B12+'BE3'!B12+'BE4'!B12+'BE5'!B12 -> 12 | D12: ='BE1'!D12+'BE2'!D12+'BE3'!D12+'BE4'!D12+'BE5'!D12 -> 44800 | I12: 44800 | J12: 12 | K12: 3733.333333 | L12: 44800 | N12: 44800
A13: OTHERS | B13: ='BE1'!B13+'BE2'!B13+'BE3'!B13+'BE4'!B13+'BE5'!B13 -> 4 | D13: ='BE1'!D13+'BE2'!D13+'BE3'!D13+'BE4'!D13+'BE5'!D13 -> 32000 | I13: 32000 | J13: 4 | K13: 8000 | L13: 32000 | N13: 32000
A14: A.2 Natural Persons under direct contract | B14: ='BE1'!B14+'BE2'!B14+'BE3'!B14+'BE4'!B14+'BE5'!B14 -> 0 | D14: ='BE1'!D14+'BE2'!D14+'BE3'!D14+'BE4'!D14+'BE5'!D14 -> 0 | I14: 0 | J14: 0 | L14: 0 | N14: 0
A15: A.3 Seconded Persons | B15: ='BE1'!B15+'BE2'!B15+'BE3'!B15+'BE4'!B15+'BE5'!B15 -> 0 | D15: ='BE1'!D15+'BE2'!D15+'BE3'!D15+'BE4'!D15+'BE5'!D15 -> 0 | I15: 0 | J15: 0 | L15: 0 | N15: 0
A16: A.4 SME owners and natural person beneficiaries | B16: ='BE1'!B16+'BE2'!B16+'BE3'!B16+'BE4'!B16+'BE5'!B16 -> 0 | D16: ='BE1'!D16+'BE2'!D16+'BE3'!D16+'BE4'!D16+'BE5'!D16 -> 0 | I16: 0 | J16: 0 | L16: 0 | N16: 0
A17: B. DIRECT SUBCONTRACTING COSTS
B18: ='BE1'!B18+'BE2'!B18+'BE3'!B18+'BE4'!B18+'BE5'!B18 -> 0 | D18: ='BE1'!D18+'BE2'!D18+'BE3'!D18+'BE4'!D18+'BE5'!D18 -> 0 | I18: =D18+G18 -> 0 | J18: =E18+B18 -> 0 | K18: =IF(J18>0,L18/J18," ") ->  | L18: =G18+D18 -> 0 | N18: =D18+G18 -> 0
A19: C. DIRECT PURCHASE COSTS
A20: C.1 Travel and subsistence | B20: ='BE1'!B20+'BE2'!B20+'BE3'!B20+'BE4'!B20+'BE5'!B20 -> 3.5 | D20: ='BE1'!D20+'BE2'!D20+'BE3'!D20+'BE4'!D20+'BE5'!D20 -> 12250 | I20: =D20+G20 -> 12250 | J20: =E20+B20 -> 3.5 | K20: =IF(J20>0,L20/J20," ") -> 3500 | L20: =G20+D20 -> 12250 | N20: =D20+G20 -> 12250
A21: C.2 Equipment (complete 'Depreciation cost' sheet)
A22: Equipment | B22: ='BE1'!B22+'BE2'!B22+'BE3'!B22+'BE4'!B22+'BE5'!B22 -> 0 | D22: ='BE1'!D22+'BE2'!D22+'BE3'!D22+'BE4'!D22+'BE5'!D22 -> 0 | I22: =D22+G22 -> 0 | J22: =E22+B22 -> 0 | K22: =IF(J22>0,L22/J22," ") ->  | L22: =G22+D22 -> 0 | N22: =D22+G22 -> 0
A23: Infrastructure | B23: ='BE1'!B23+'BE2'!B23+'BE3'!B23+'BE4'!B23+'BE5'!B23 -> 0 | D23: ='BE1'!D23+'BE2'!D23+'BE3'!D23+'BE4'!D23+'BE5'!D23 -> 0 | I23: =D23+G23 -> 0 | J23: =E23+B23 -> 0 | K23: =IF(J23>0,L23/J23," ") ->  | L23: =G23+D23 -> 0 | N23: =D23+G23 -> 0
A24: Other assets | B24: ='BE1'!B24+'BE2'!B24+'BE3'!B24+'BE4'!B24+'BE5'!B24 -> 0 | D24: ='BE1'!D24+'BE2'!D24+'BE3'!D24+'BE4'!D24+'BE5'!D24 -> 0 | I24: =D24+G24 -> 0 | J24: =E24+B24 -> 0 | K24: =IF(J24>0,L24/J24," ") ->  | L24: =G24+D24 -> 0 | N24: =D24+G24 -> 0
A25: C.3 Other goods, works and services
A26: Consumables | B26: ='BE1'!B26+'BE2'!B26+'BE3'!B26+'BE4'!B26+'BE5'!B26 -> 0 | D26: ='BE1'!D26+'BE2'!D26+'BE3'!D26+'BE4'!D26+'BE5'!D26 -> 0 | I26: =D26+G26 -> 0 | J26: =E26+B26 -> 0 | K26: =IF(J26>0,L26/J26," ") ->  | L26: =G26+D26 -> 0 | N26: =D26+G26 -> 0
A27: Services for meetings, seminars | B27: ='BE1'!B27+'BE2'!B27+'BE3'!B27+'BE4'!B27+'BE5'!B27 -> 4 | D27: ='BE1'!D27+'BE2'!D27+'BE3'!D27+'BE4'!D27+'BE5'!D27 -> 4000 | I27: =D27+G27 -> 4000 | J27: =E27+B27 -> 4 | K27: 1000 | L27: =G27+D27 -> 4000 | N27: =D27+G27 -> 4000
A28: Services for dissemination activities (including website) | B28: ='BE1'!B28+'BE2'!B28+'BE3'!B28+'BE4'!B28+'BE5'!B28 -> 0 | D28: ='BE1'!D28+'BE2'!D28+'BE3'!D28+'BE4'!D28+'BE5'!D28 -> 0 | I28: =D28+G28 -> 0 | J28: =E28+B28 -> 0 | L28: =G28+D28 -> 0 | N28: =D28+G28 -> 0
A29: Publication fees | B29: ='BE1'!B29+'BE2'!B29+'BE3'!B29+'BE4'!B29+'BE5'!B29 -> 0 | D29: ='BE1'!D29+'BE2'!D29+'BE3'!D29+'BE4'!D29+'BE5'!D29 -> 0 | I29: =D29+G29 -> 0 | J29: =E29+B29 -> 0 | L29: =G29+D29 -> 0 | N29: =D29+G29 -> 0
A30: Other (shipment,insurance, translation, etc.) | B30: ='BE1'!B30+'BE2'!B30+'BE3'!B30+'BE4'!B30+'BE5'!B30 -> 0 | D30: ='BE1'!D30+'BE2'!D30+'BE3'!D30+'BE4'!D30+'BE5'!D30 -> 0 | I30: =D30+G30 -> 0 | J30: =E30+B30 -> 0 | L30: =G30+D30 -> 0 | N30: =D30+G30 -> 0
A31: D. OTHER COST CATEGORIES
A32: D.1 Financial support to third parties (if applicable in the topic specific conditions) | B32: ='BE1'!B32+'BE2'!B32+'BE3'!B32+'BE4'!B32+'BE5'!B32 -> 0 | D32: ='BE1'!D32+'BE2'!D32+'BE3'!D32+'BE4'!D32+'BE5'!D32 -> 0 | I32: =D32+G32 -> 0 | J32: =E32+B32 -> 0 | K32: =IF(J32>0,L32/J32," ") ->  | L32: =G32+D32 -> 0 | N32: =D32+G32 -> 0
A33: D.2 Internally invoiced goods and services | B33: ='BE1'!B33+'BE2'!B33+'BE3'!B33+'BE4'!B33+'BE5'!B33 -> 0 | D33: ='BE1'!D33+'BE2'!D33+'BE3'!D33+'BE4'!D33+'BE5'!D33 -> 0 | I33: =D33+G33 -> 0 | J33: =E33+B33 -> 0 | L33: =G33+D33 -> 0 | N33: =D33+G33 -> 0
A34: D.3 Transnational access to research infrastructure unit costs (if required in the topic specific conditions) | B34: ='BE1'!B34+'BE2'!B34+'BE3'!B34+'BE4'!B34+'BE5'!B34 -> 0 | D34: ='BE1'!D34+'BE2'!D34+'BE3'!D34+'BE4'!D34+'BE5'!D34 -> 0 | I34: =D34+G34 -> 0 | J34: =E34+B34 -> 0 | L34: =G34+D34 -> 0 | N34: =D34+G34 -> 0
A35: D.4 Virtual access to research infrastructure unit costs (if required in the topic specific conditions) | B35: ='BE1'!B35+'BE2'!B35+'BE3'!B35+'BE4'!B35+'BE5'!B35 -> 0 | D35: ='BE1'!D35+'BE2'!D35+'BE3'!D35+'BE4'!D35+'BE5'!D35 -> 0 | I35: =D35+G35 -> 0 | J35: =E35+B35 -> 0 | L35: =G35+D35 -> 0 | N35: =D35+G35 -> 0
A36: D.5 PCP/PPI procurement costs (if mentioned as eligible in the topic specific conditions) | B36: ='BE1'!B36+'BE2'!B36+'BE3'!B36+'BE4'!B36+'BE5'!B36 -> 0 | D36: ='BE1'!D36+'BE2'!D36+'BE3'!D36+'BE4'!D36+'BE5'!D36 -> 0 | I36: =D36+G36 -> 0 | J36: =E36+B36 -> 0 | L36: =G36+D36 -> 0 | N36: =D36+G36 -> 0
A38: TOTAL DIRECT PERSONNEL COSTS AND PURCHASE COSTS (A+C) | D38: ='BE1'!D38+'BE2'!D38+'BE3'!D38+'BE4'!D38+'BE5'!D38 -> 93050 | I38: =D38+G38 -> 93050 | J38: =E38+B38 -> 0 | L38: =G38+D38 -> 93050 | N38: =D38+G38 -> 93050
A39: TOTAL DIRECT COSTS (A+B+C+D) | D39: ='BE1'!D39+'BE2'!D39+'BE3'!D39+'BE4'!D39+'BE5'!D39 -> 93050 | I39: =D39+G39 -> 93050 | J39: =E39+B39 -> 0 | L39: =G39+D39 -> 93050 | N39: =D39+G39 -> 93050
A41: E. INDIRECT COSTS (25% * (A+C)) | D41: ='BE1'!D41+'BE2'!D41+'BE3'!D41+'BE4'!D41+'BE5'!D41 -> 23262.5 | I41: =D41+G41 -> 23262.5 | J41: =E41+B41 -> 0 | L41: =G41+D41 -> 23262.5 | N41: =D41+G41 -> 23262.5
A43: F. TOTAL COSTS (A+B+C+D+E) | D43: ='BE1'!D43+'BE2'!D43+'BE3'!D43+'BE4'!D43+'BE5'!D43 -> 116312.5 | I43: =D43+G43 -> 116312.5 | J43: =E43+B43 -> 0 | L43: =G43+D43 -> 116312.5 | N43: =D43+G43 -> 116312.5
A46: COSTS WORK PACKAGE: 2 Research Management and Administration Skill Development – Period 2
A48: A. DIRECT PERSONNEL COSTS
A49: A.1 Employees (or equivalent)
A50: SENIOR SCIENTISTS (or equivalent in the private sector) | B50: ='BE1'!B50+'BE2'!B50+'BE3'!B50+'BE4'!B50+'BE5'!B50 -> 0 | D50: ='BE1'!D50+'BE2'!D50+'BE3'!D50+'BE4'!D50+'BE5'!D50 -> 0 | I50: =D50+G50 -> 0 | J50: =E50+B50 -> 0 | K50: =IF(J50>0,L50/J50," ") ->  | L50: =G50+D50 -> 0 | N50: =D50+G50 -> 0
A51: JUNIOR SCIENTISTS (or equivalent in the private sector) | B51: ='BE1'!B51+'BE2'!B51+'BE3'!B51+'BE4'!B51+'BE5'!B51 -> 0 | D51: ='BE1'!D51+'BE2'!D51+'BE3'!D51+'BE4'!D51+'BE5'!D51 -> 0 | I51: 0 | J51: 0 | L51: 0 | N51: 0
A52: TECHNICAL PERSONNEL (or equivalent in the private sector) | B52: ='BE1'!B52+'BE2'!B52+'BE3'!B52+'BE4'!B52+'BE5'!B52 -> 0 | D52: ='BE1'!D52+'BE2'!D52+'BE3'!D52+'BE4'!D52+'BE5'!D52 -> 0 | I52: 0 | J52: 0 | L52: 0 | N52: 0
A53: ADMINISTRATIVE PERSONNEL (or equivalent in the private sector) | B53: ='BE1'!B53+'BE2'!B53+'BE3'!B53+'BE4'!B53+'BE5'!B53 -> 16 | D53: ='BE1'!D53+'BE2'!D53+'BE3'!D53+'BE4'!D53+'BE5'!D53 -> 62000 | I53: 62000 | J53: 16 | K53: 3875 | L53: 62000 | N53: 62000
A54: OTHERS | B54: ='BE1'!B54+'BE2'!B54+'BE3'!B54+'BE4'!B54+'BE5'!B54 -> 5 | D54: ='BE1'!D54+'BE2'!D54+'BE3'!D54+'BE4'!D54+'BE5'!D54 -> 40000 | I54: 40000 | J54: 5 | K54: 8000 | L54: 40000 | N54: 40000
A55: A.2 Natural Persons under direct contract | B55: ='BE1'!B55+'BE2'!B55+'BE3'!B55+'BE4'!B55+'BE5'!B55 -> 0 | D55: ='BE1'!D55+'BE2'!D55+'BE3'!D55+'BE4'!D55+'BE5'!D55 -> 0 | I55: 0 | J55: 0 | L55: 0 | N55: 0
A56: A.3 Seconded Persons | B56: ='BE1'!B56+'BE2'!B56+'BE3'!B56+'BE4'!B56+'BE5'!B56 -> 0 | D56: ='BE1'!D56+'BE2'!D56+'BE3'!D56+'BE4'!D56+'BE5'!D56 -> 0 | I56: 0 | J56: 0 | L56: 0 | N56: 0
A57: A.4 SME owners and natural person beneficiaries | B57: ='BE1'!B57+'BE2'!B57+'BE3'!B57+'BE4'!B57+'BE5'!B57 -> 0 | D57: ='BE1'!D57+'BE2'!D57+'BE3'!D57+'BE4'!D57+'BE5'!D57 -> 0 | I57: 0 | J57: 0 | L57: 0 | N57: 0
A58: B. DIRECT SUBCONTRACTING COSTS
B59: ='BE1'!B59+'BE2'!B59+'BE3'!B59+'BE4'!B59+'BE5'!B59 -> 0 | D59: ='BE1'!D59+'BE2'!D59+'BE3'!D59+'BE4'!D59+'BE5'!D59 -> 0 | I59: =D59+G59 -> 0 | J59: =E59+B59 -> 0 | K59: =IF(J59>0,L59/J59," ") ->  | L59: =G59+D59 -> 0 | N59: =D59+G59 -> 0
A60: C. DIRECT PURCHASE COSTS
A61: C.1 Travel and subsistence | B61: ='BE1'!B61+'BE2'!B61+'BE3'!B61+'BE4'!B61+'BE5'!B61 -> 5.5 | D61: ='BE1'!D61+'BE2'!D61+'BE3'!D61+'BE4'!D61+'BE5'!D61 -> 19250 | I61: =D61+G61 -> 19250 | J61: =E61+B61 -> 5.5 | K61: =IF(J61>0,L61/J61," ") -> 3500 | L61: =G61+D61 -> 19250 | N61: =D61+G61 -> 19250
A62: C.2 Equipment (complete 'Depreciation cost' sheet)
A63: Equipment | B63: ='BE1'!B63+'BE2'!B63+'BE3'!B63+'BE4'!B63+'BE5'!B63 -> 0 | D63: ='BE1'!D63+'BE2'!D63+'BE3'!D63+'BE4'!D63+'BE5'!D63 -> 0 | I63: =D63+G63 -> 0 | J63: =E63+B63 -> 0 | K63: =IF(J63>0,L63/J63," ") ->  | L63: =G63+D63 -> 0 | N63: =D63+G63 -> 0
A64: Infrastructure | B64: ='BE1'!B64+'BE2'!B64+'BE3'!B64+'BE4'!B64+'BE5'!B64 -> 0 | D64: ='BE1'!D64+'BE2'!D64+'BE3'!D64+'BE4'!D64+'BE5'!D64 -> 0 | I64: =D64+G64 -> 0 | J64: =E64+B64 -> 0 | K64: =IF(J64>0,L64/J64," ") ->  | L64: =G64+D64 -> 0 | N64: =D64+G64 -> 0
A65: Other assets | B65: ='BE1'!B65+'BE2'!B65+'BE3'!B65+'BE4'!B65+'BE5'!B65 -> 0 | D65: ='BE1'!D65+'BE2'!D65+'BE3'!D65+'BE4'!D65+'BE5'!D65 -> 0 | I65: =D65+G65 -> 0 | J65: =E65+B65 -> 0 | K65: =IF(J65>0,L65/J65," ") ->  | L65: =G65+D65 -> 0 | N65: =D65+G65 -> 0
A66: C.3 Other goods, works and services
A67: Consumables | B67: ='BE1'!B67+'BE2'!B67+'BE3'!B67+'BE4'!B67+'BE5'!B67 -> 0 | D67: ='BE1'!D67+'BE2'!D67+'BE3'!D67+'BE4'!D67+'BE5'!D67 -> 0 | I67: =D67+G67 -> 0 | J67: =E67+B67 -> 0 | K67: =IF(J67>0,L67/J67," ") ->  | L67: =G67+D67 -> 0 | N67: =D67+G67 -> 0
A68: Services for meetings, seminars | B68: ='BE1'!B68+'BE2'!B68+'BE3'!B68+'BE4'!B68+'BE5'!B68 -> 6 | D68: ='BE1'!D68+'BE2'!D68+'BE3'!D68+'BE4'!D68+'BE5'!D68 -> 6000 | I68: =D68+G68 -> 6000 | J68: =E68+B68 -> 6 | K68: 1000 | L68: =G68+D68 -> 6000 | N68: =D68+G68 -> 6000
A69: Services for dissemination activities (including website) | B69: ='BE1'!B69+'BE2'!B69+'BE3'!B69+'BE4'!B69+'BE5'!B69 -> 0 | D69: ='BE1'!D69+'BE2'!D69+'BE3'!D69+'BE4'!D69+'BE5'!D69 -> 0 | I69: =D69+G69 -> 0 | J69: =E69+B69 -> 0 | L69: =G69+D69 -> 0 | N69: =D69+G69 -> 0
A70: Publication fees | B70: ='BE1'!B70+'BE2'!B70+'BE3'!B70+'BE4'!B70+'BE5'!B70 -> 0 | D70: ='BE1'!D70+'BE2'!D70+'BE3'!D70+'BE4'!D70+'BE5'!D70 -> 0 | I70: =D70+G70 -> 0 | J70: =E70+B70 -> 0 | L70: =G70+D70 -> 0 | N70: =D70+G70 -> 0
A71: Other (shipment,insurance, translation, etc.) | B71: ='BE1'!B71+'BE2'!B71+'BE3'!B71+'BE4'!B71+'BE5'!B71 -> 0 | D71: ='BE1'!D71+'BE2'!D71+'BE3'!D71+'BE4'!D71+'BE5'!D71 -> 0 | I71: =D71+G71 -> 0 | J71: =E71+B71 -> 0 | L71: =G71+D71 -> 0 | N71: =D71+G71 -> 0
A72: D. OTHER COST CATEGORIES
A73: D.1 Financial support to third parties (if applicable in the topic specific conditions) | B73: ='BE1'!B73+'BE2'!B73+'BE3'!B73+'BE4'!B73+'BE5'!B73 -> 0 | D73: ='BE1'!D73+'BE2'!D73+'BE3'!D73+'BE4'!D73+'BE5'!D73 -> 0 | I73: =D73+G73 -> 0 | J73: =E73+B73 -> 0 | K73: =IF(J73>0,L73/J73," ") ->  | L73: =G73+D73 -> 0 | N73: =D73+G73 -> 0
A74: D.2 Internally invoiced goods and services | B74: ='BE1'!B74+'BE2'!B74+'BE3'!B74+'BE4'!B74+'BE5'!B74 -> 0 | D74: ='BE1'!D74+'BE2'!D74+'BE3'!D74+'BE4'!D74+'BE5'!D74 -> 0 | I74: =D74+G74 -> 0 | J74: =E74+B74 -> 0 | L74: =G74+D74 -> 0 | N74: =D74+G74 -> 0
A75: D.3 Transnational access to research infrastructure unit costs (if required in the topic specific conditions) | B75: ='BE1'!B75+'BE2'!B75+'BE3'!B75+'BE4'!B75+'BE5'!B75 -> 0 | D75: ='BE1'!D75+'BE2'!D75+'BE3'!D75+'BE4'!D75+'BE5'!D75 -> 0 | I75: =D75+G75 -> 0 | J75: =E75+B75 -> 0 | L75: =G75+D75 -> 0 | N75: =D75+G75 -> 0
A76: D.4 Virtual access to research infrastructure unit costs (if required in the topic specific conditions) | B76: ='BE1'!B76+'BE2'!B76+'BE3'!B76+'BE4'!B76+'BE5'!B76 -> 0 | D76: ='BE1'!D76+'BE2'!D76+'BE3'!D76+'BE4'!D76+'BE5'!D76 -> 0 | I76: =D76+G76 -> 0 | J76: =E76+B76 -> 0 | L76: =G76+D76 -> 0 | N76: =D76+G76 -> 0
A77: D.5 PCP/PPI procurement costs (if mentioned as eligible in the topic specific conditions) | B77: ='BE1'!B77+'BE2'!B77+'BE3'!B77+'BE4'!B77+'BE5'!B77 -> 0 | D77: ='BE1'!D77+'BE2'!D77+'BE3'!D77+'BE4'!D77+'BE5'!D77 -> 0 | I77: =D77+G77 -> 0 | J77: =E77+B77 -> 0 | L77: =G77+D77 -> 0 | N77: =D77+G77 -> 0
A79: TOTAL DIRECT PERSONNEL COSTS AND PURCHASE COSTS (A+C) | D79: ='BE1'!D79+'BE2'!D79+'BE3'!D79+'BE4'!D79+'BE5'!D79 -> 127250 | I79: =D79+G79 -> 127250 | J79: =E79+B79 -> 0 | L79: =G79+D79 -> 127250 | N79: =D79+G79 -> 127250
A80: TOTAL DIRECT COSTS (A+B+C+D) | D80: ='BE1'!D80+'BE2'!D80+'BE3'!D80+'BE4'!D80+'BE5'!D80 -> 127250 | I80: =D80+G80 -> 127250 | J80: =E80+B80 -> 0 | L80: =G80+D80 -> 127250 | N80: =D80+G80 -> 127250
A82: E. INDIRECT COSTS (25% * (A+C)) | D82: ='BE1'!D82+'BE2'!D82+'BE3'!D82+'BE4'!D82+'BE5'!D82 -> 31812.5 | I82: =D82+G82 -> 31812.5 | J82: =E82+B82 -> 0 | L82: =G82+D82 -> 31812.5 | N82: =D82+G82 -> 31812.5
A84: F. TOTAL COSTS (A+B+C+D+E) | D84: ='BE1'!D84+'BE2'!D84+'BE3'!D84+'BE4'!D84+'BE5'!D84 -> 159062.5 | I84: =D84+G84 -> 159062.5 | J84: =E84+B84 -> 0 | L84: =G84+D84 -> 159062.5 | N84: =D84+G84 -> 159062.5
A87: COSTS WORK PACKAGE: 3 Short termstaff exchanges and trainings for experienced researchers – Period 1
A89: A. DIRECT PERSONNEL COSTS
A90: A.1 Employees (or equivalent)
A91: SENIOR SCIENTISTS (or equivalent in the private sector) | B91: ='BE1'!B91+'BE2'!B91+'BE3'!B91+'BE4'!B91+'BE5'!B91 -> 6 | D91: ='BE1'!D91+'BE2'!D91+'BE3'!D91+'BE4'!D91+'BE5'!D91 -> 38850 | I91: =D91+G91 -> 38850 | J91: =E91+B91 -> 6 | K91: =IF(J91>0,L91/J91," ") -> 6475 | L91: =G91+D91 -> 38850 | N91: =D91+G91 -> 38850
A92: JUNIOR SCIENTISTS (or equivalent in the private sector) | B92: ='BE1'!B92+'BE2'!B92+'BE3'!B92+'BE4'!B92+'BE5'!B92 -> 0 | D92: ='BE1'!D92+'BE2'!D92+'BE3'!D92+'BE4'!D92+'BE5'!D92 -> 0 | I92: 0 | J92: 0 | L92: 0 | N92: 0
A93: TECHNICAL PERSONNEL (or equivalent in the private sector) | B93: ='BE1'!B93+'BE2'!B93+'BE3'!B93+'BE4'!B93+'BE5'!B93 -> 0 | D93: ='BE1'!D93+'BE2'!D93+'BE3'!D93+'BE4'!D93+'BE5'!D93 -> 0 | I93: 0 | J93: 0 | L93: 0 | N93: 0
A94: ADMINISTRATIVE PERSONNEL (or equivalent in the private sector) | B94: ='BE1'!B94+'BE2'!B94+'BE3'!B94+'BE4'!B94+'BE5'!B94 -> 0 | D94: ='BE1'!D94+'BE2'!D94+'BE3'!D94+'BE4'!D94+'BE5'!D94 -> 0 | I94: 0 | J94: 0 | L94: 0 | N94: 0
A95: OTHERS | B95: ='BE1'!B95+'BE2'!B95+'BE3'!B95+'BE4'!B95+'BE5'!B95 -> 0 | D95: ='BE1'!D95+'BE2'!D95+'BE3'!D95+'BE4'!D95+'BE5'!D95 -> 0 | I95: 0 | J95: 0 | L95: 0 | N95: 0
A96: A.2 Natural Persons under direct contract | B96: ='BE1'!B96+'BE2'!B96+'BE3'!B96+'BE4'!B96+'BE5'!B96 -> 0 | D96: ='BE1'!D96+'BE2'!D96+'BE3'!D96+'BE4'!D96+'BE5'!D96 -> 0 | I96: 0 | J96: 0 | L96: 0 | N96: 0
A97: A.3 Seconded Persons | B97: ='BE1'!B97+'BE2'!B97+'BE3'!B97+'BE4'!B97+'BE5'!B97 -> 0 | D97: ='BE1'!D97+'BE2'!D97+'BE3'!D97+'BE4'!D97+'BE5'!D97 -> 0 | I97: 0 | J97: 0 | L97: 0 | N97: 0
A98: A.4 SME owners and natural person beneficiaries | B98: ='BE1'!B98+'BE2'!B98+'BE3'!B98+'BE4'!B98+'BE5'!B98 -> 0 | D98: ='BE1'!D98+'BE2'!D98+'BE3'!D98+'BE4'!D98+'BE5'!D98 -> 0 | I98: 0 | J98: 0 | L98: 0 | N98: 0
A99: B. DIRECT SUBCONTRACTING COSTS
B100: ='BE1'!B100+'BE2'!B100+'BE3'!B100+'BE4'!B100+'BE5'!B100 -> 0 | D100: ='BE1'!D100+'BE2'!D100+'BE3'!D100+'BE4'!D100+'BE5'!D100 -> 0 | I100: =D100+G100 -> 0 | J100: =E100+B100 -> 0 | K100: =IF(J100>0,L100/J100," ") ->  | L100: =G100+D100 -> 0 | N100: =D100+G100 -> 0
A101: C. DIRECT PURCHASE COSTS
A102: C.1 Travel and subsistence | B102: ='BE1'!B102+'BE2'!B102+'BE3'!B102+'BE4'!B102+'BE5'!B102 -> 4 | D102: ='BE1'!D102+'BE2'!D102+'BE3'!D102+'BE4'!D102+'BE5'!D102 -> 14000 | I102: =D102+G102 -> 14000 | J102: =E102+B102 -> 4 | K102: =IF(J102>0,L102/J102," ") -> 3500 | L102: =G102+D102 -> 14000 | N102: =D102+G102 -> 14000
A103: C.2 Equipment (complete 'Depreciation cost' sheet)
A104: Equipment | B104: ='BE1'!B104+'BE2'!B104+'BE3'!B104+'BE4'!B104+'BE5'!B104 -> 0 | D104: ='BE1'!D104+'BE2'!D104+'BE3'!D104+'BE4'!D104+'BE5'!D104 -> 0 | I104: =D104+G104 -> 0 | J104: =E104+B104 -> 0 | K104: =IF(J104>0,L104/J104," ") ->  | L104: =G104+D104 -> 0 | N104: =D104+G104 -> 0
A105: Infrastructure | B105: ='BE1'!B105+'BE2'!B105+'BE3'!B105+'BE4'!B105+'BE5'!B105 -> 0 | D105: ='BE1'!D105+'BE2'!D105+'BE3'!D105+'BE4'!D105+'BE5'!D105 -> 0 | I105: =D105+G105 -> 0 | J105: =E105+B105 -> 0 | K105: =IF(J105>0,L105/J105," ") ->  | L105: =G105+D105 -> 0 | N105: =D105+G105 -> 0
A106: Other assets | B106: ='BE1'!B106+'BE2'!B106+'BE3'!B106+'BE4'!B106+'BE5'!B106 -> 0 | D106: ='BE1'!D106+'BE2'!D106+'BE3'!D106+'BE4'!D106+'BE5'!D106 -> 0 | I106: =D106+G106 -> 0 | J106: =E106+B106 -> 0 | K106: =IF(J106>0,L106/J106," ") ->  | L106: =G106+D106 -> 0 | N106: =D106+G106 -> 0
A107: C.3 Other goods, works and services
A108: Consumables | B108: ='BE1'!B108+'BE2'!B108+'BE3'!B108+'BE4'!B108+'BE5'!B108 -> 0 | D108: ='BE1'!D108+'BE2'!D108+'BE3'!D108+'BE4'!D108+'BE5'!D108 -> 0 | I108: =D108+G108 -> 0 | J108: =E108+B108 -> 0 | K108: =IF(J108>0,L108/J108," ") ->  | L108: =G108+D108 -> 0 | N108: =D108+G108 -> 0
A109: Services for meetings, seminars | B109: ='BE1'!B109+'BE2'!B109+'BE3'!B109+'BE4'!B109+'BE5'!B109 -> 0 | D109: ='BE1'!D109+'BE2'!D109+'BE3'!D109+'BE4'!D109+'BE5'!D109 -> 0 | I109: =D109+G109 -> 0 | J109: =E109+B109 -> 0 | L109: =G109+D109 -> 0 | N109: =D109+G109 -> 0
A110: Services for dissemination activities (including website) | B110: ='BE1'!B110+'BE2'!B110+'BE3'!B110+'BE4'!B110+'BE5'!B110 -> 0 | D110: ='BE1'!D110+'BE2'!D110+'BE3'!D110+'BE4'!D110+'BE5'!D110 -> 0 | I110: =D110+G110 -> 0 | J110: =E110+B110 -> 0 | L110: =G110+D110 -> 0 | N110: =D110+G110 -> 0
A111: Publication fees | B111: ='BE1'!B111+'BE2'!B111+'BE3'!B111+'BE4'!B111+'BE5'!B111 -> 0 | D111: ='BE1'!D111+'BE2'!D111+'BE3'!D111+'BE4'!D111+'BE5'!D111 -> 0 | I111: =D111+G111 -> 0 | J111: =E111+B111 -> 0 | L111: =G111+D111 -> 0 | N111: =D111+G111 -> 0
A112: Other (shipment,insurance, translation, etc.) | B112: ='BE1'!B112+'BE2'!B112+'BE3'!B112+'BE4'!B112+'BE5'!B112 -> 0 | D112: ='BE1'!D112+'BE2'!D112+'BE3'!D112+'BE4'!D112+'BE5'!D112 -> 0 | I112: =D112+G112 -> 0 | J112: =E112+B112 -> 0 | L112: =G112+D112 -> 0 | N112: =D112+G112 -> 0
A113: D. OTHER COST CATEGORIES
A114: D.1 Financial support to third parties (if applicable in the topic specific conditions) | B114: ='BE1'!B114+'BE2'!B114+'BE3'!B114+'BE4'!B114+'BE5'!B114 -> 0 | D114: ='BE1'!D114+'BE2'!D114+'BE3'!D114+'BE4'!D114+'BE5'!D114 -> 0 | I114: =D114+G114 -> 0 | J114: =E114+B114 -> 0 | K114: =IF(J114>0,L114/J114," ") ->  | L114: =G114+D114 -> 0 | N114: =D114+G114 -> 0
A115: D.2 Internally invoiced goods and services | B115: ='BE1'!B115+'BE2'!B115+'BE3'!B115+'BE4'!B115+'BE5'!B115 -> 0 | D115: ='BE1'!D115+'BE2'!D115+'BE3'!D115+'BE4'!D115+'BE5'!D115 -> 0 | I115: =D115+G115 -> 0 | J115: =E115+B115 -> 0 | L115: =G115+D115 -> 0 | N115: =D115+G115 -> 0
A116: D.3 Transnational access to research infrastructure unit costs (if required in the topic specific conditions) | B116: ='BE1'!B116+'BE2'!B116+'BE3'!B116+'BE4'!B116+'BE5'!B116 -> 0 | D116: ='BE1'!D116+'BE2'!D116+'BE3'!D116+'BE4'!D116+'BE5'!D116 -> 0 | I116: =D116+G116 -> 0 | J116: =E116+B116 -> 0 | L116: =G116+D116 -> 0 | N116: =D116+G116 -> 0
A117: D.4 Virtual access to research infrastructure unit costs (if required in the topic specific conditions) | B117: ='BE1'!B117+'BE2'!B117+'BE3'!B117+'BE4'!B117+'BE5'!B117 -> 0 | D117: ='BE1'!D117+'BE2'!D117+'BE3'!D117+'BE4'!D117+'BE5'!D117 -> 0 | I117: =D117+G117 -> 0 | J117: =E117+B117 -> 0 | L117: =G117+D117 -> 0 | N117: =D117+G117 -> 0
A118: D.5 PCP/PPI procurement costs (if mentioned as eligible in the topic specific conditions) | B118: ='BE1'!B118+'BE2'!B118+'BE3'!B118+'BE4'!B118+'BE5'!B118 -> 0 | D118: ='BE1'!D118+'BE2'!D118+'BE3'!D118+'BE4'!D118+'BE5'!D118 -> 0 | I118: =D118+G118 -> 0 | J118: =E118+B118 -> 0 | L118: =G118+D118 -> 0 | N118: =D118+G118 -> 0
A120: TOTAL DIRECT PERSONNEL COSTS AND PURCHASE COSTS (A+C) | D120: ='BE1'!D120+'BE2'!D120+'BE3'!D120+'BE4'!D120+'BE5'!D120 -> 52850 | I120: =D120+G120 -> 52850 | J120: =E120+B120 -> 0 | L120: =G120+D120 -> 52850 | N120: =D120+G120 -> 52850
A121: TOTAL DIRECT COSTS (A+B+C+D) | D121: ='BE1'!D121+'BE2'!D121+'BE3'!D121+'BE4'!D121+'BE5'!D121 -> 52850 | I121: =D121+G121 -> 52850 | J121: =E121+B121 -> 0 | L121: =G121+D121 -> 52850 | N121: =D121+G121 -> 52850
A123: E. INDIRECT COSTS (25% * (A+C)) | D123: ='BE1'!D123+'BE2'!D123+'BE3'!D123+'BE4'!D123+'BE5'!D123 -> 13212.5 | I123: =D123+G123 -> 13212.5 | J123: =E123+B123 -> 0 | L123: =G123+D123 -> 13212.5 | N123: =D123+G123 -> 13212.5
A125: F. TOTAL COSTS (A+B+C+D+E) | D125: ='BE1'!D125+'BE2'!D125+'BE3'!D125+'BE4'!D125+'BE5'!D125 -> 66062.5 | I125: =D125+G125 -> 66062.5 | J125: =E125+B125 -> 0 | L125: =G125+D125 -> 66062.5 | N125: =D125+G125 -> 66062.5
A128: COSTS WORK PACKAGE: 4 Short term staff exchanges and trainings for experienced researchers – Period 2
A130: A. DIRECT PERSONNEL COSTS
A131: A.1 Employees (or equivalent)
A132: SENIOR SCIENTISTS (or equivalent in the private sector) | B132: ='BE1'!B132+'BE2'!B132+'BE3'!B132+'BE4'!B132+'BE5'!B132 -> 8 | D132: ='BE1'!D132+'BE2'!D132+'BE3'!D132+'BE4'!D132+'BE5'!D132 -> 53275 | I132: =D132+G132 -> 53275 | J132: =E132+B132 -> 8 | K132: =IF(J132>0,L132/J132," ") -> 6659.375 | L132: =G132+D132 -> 53275 | N132: =D132+G132 -> 53275
A133: JUNIOR SCIENTISTS (or equivalent in the private sector) | B133: ='BE1'!B133+'BE2'!B133+'BE3'!B133+'BE4'!B133+'BE5'!B133 -> 0 | D133: ='BE1'!D133+'BE2'!D133+'BE3'!D133+'BE4'!D133+'BE5'!D133 -> 0 | I133: 0 | J133: 0 | L133: 0 | N133: 0
A134: TECHNICAL PERSONNEL (or equivalent in the private sector) | B134: ='BE1'!B134+'BE2'!B134+'BE3'!B134+'BE4'!B134+'BE5'!B134 -> 0 | D134: ='BE1'!D134+'BE2'!D134+'BE3'!D134+'BE4'!D134+'BE5'!D134 -> 0 | I134: 0 | J134: 0 | L134: 0 | N134: 0
A135: ADMINISTRATIVE PERSONNEL (or equivalent in the private sector) | B135: ='BE1'!B135+'BE2'!B135+'BE3'!B135+'BE4'!B135+'BE5'!B135 -> 0 | D135: ='BE1'!D135+'BE2'!D135+'BE3'!D135+'BE4'!D135+'BE5'!D135 -> 0 | I135: 0 | J135: 0 | L135: 0 | N135: 0
A136: OTHERS | B136: ='BE1'!B136+'BE2'!B136+'BE3'!B136+'BE4'!B136+'BE5'!B136 -> 0 | D136: ='BE1'!D136+'BE2'!D136+'BE3'!D136+'BE4'!D136+'BE5'!D136 -> 0 | I136: 0 | J136: 0 | L136: 0 | N136: 0
A137: A.2 Natural Persons under direct contract | B137: ='BE1'!B137+'BE2'!B137+'BE3'!B137+'BE4'!B137+'BE5'!B137 -> 0 | D137: ='BE1'!D137+'BE2'!D137+'BE3'!D137+'BE4'!D137+'BE5'!D137 -> 0 | I137: 0 | J137: 0 | L137: 0 | N137: 0
A138: A.3 Seconded Persons | B138: ='BE1'!B138+'BE2'!B138+'BE3'!B138+'BE4'!B138+'BE5'!B138 -> 0 | D138: ='BE1'!D138+'BE2'!D138+'BE3'!D138+'BE4'!D138+'BE5'!D138 -> 0 | I138: 0 | J138: 0 | L138: 0 | N138: 0
A139: A.4 SME owners and natural person beneficiaries | B139: ='BE1'!B139+'BE2'!B139+'BE3'!B139+'BE4'!B139+'BE5'!B139 -> 0 | D139: ='BE1'!D139+'BE2'!D139+'BE3'!D139+'BE4'!D139+'BE5'!D139 -> 0 | I139: 0 | J139: 0 | L139: 0 | N139: 0
A140: B. DIRECT SUBCONTRACTING COSTS
B141: ='BE1'!B141+'BE2'!B141+'BE3'!B141+'BE4'!B141+'BE5'!B141 -> 0 | D141: ='BE1'!D141+'BE2'!D141+'BE3'!D141+'BE4'!D141+'BE5'!D141 -> 0 | I141: =D141+G141 -> 0 | J141: =E141+B141 -> 0 | K141: =IF(J141>0,L141/J141," ") ->  | L141: =G141+D141 -> 0 | N141: =D141+G141 -> 0
A142: C. DIRECT PURCHASE COSTS
A143: C.1 Travel and subsistence | B143: ='BE1'!B143+'BE2'!B143+'BE3'!B143+'BE4'!B143+'BE5'!B143 -> 8 | D143: ='BE1'!D143+'BE2'!D143+'BE3'!D143+'BE4'!D143+'BE5'!D143 -> 28000 | I143: =D143+G143 -> 28000 | J143: =E143+B143 -> 8 | K143: =IF(J143>0,L143/J143," ") -> 3500 | L143: =G143+D143 -> 28000 | N143: =D143+G143 -> 28000
A144: C.2 Equipment (complete 'Depreciation cost' sheet)
A145: Equipment | B145: ='BE1'!B145+'BE2'!B145+'BE3'!B145+'BE4'!B145+'BE5'!B145 -> 0 | D145: ='BE1'!D145+'BE2'!D145+'BE3'!D145+'BE4'!D145+'BE5'!D145 -> 0 | I145: =D145+G145 -> 0 | J145: =E145+B145 -> 0 | K145: =IF(J145>0,L145/J145," ") ->  | L145: =G145+D145 -> 0 | N145: =D145+G145 -> 0
A146: Infrastructure | B146: ='BE1'!B146+'BE2'!B146+'BE3'!B146+'BE4'!B146+'BE5'!B146 -> 0 | D146: ='BE1'!D146+'BE2'!D146+'BE3'!D146+'BE4'!D146+'BE5'!D146 -> 0 | I146: =D146+G146 -> 0 | J146: =E146+B146 -> 0 | K146: =IF(J146>0,L146/J146," ") ->  | L146: =G146+D146 -> 0 | N146: =D146+G146 -> 0
A147: Other assets | B147: ='BE1'!B147+'BE2'!B147+'BE3'!B147+'BE4'!B147+'BE5'!B147 -> 0 | D147: ='BE1'!D147+'BE2'!D147+'BE3'!D147+'BE4'!D147+'BE5'!D147 -> 0 | I147: =D147+G147 -> 0 | J147: =E147+B147 -> 0 | K147: =IF(J147>0,L147/J147," ") ->  | L147: =G147+D147 -> 0 | N147: =D147+G147 -> 0
A148: C.3 Other goods, works and services
A149: Consumables | B149: ='BE1'!B149+'BE2'!B149+'BE3'!B149+'BE4'!B149+'BE5'!B149 -> 0 | D149: ='BE1'!D149+'BE2'!D149+'BE3'!D149+'BE4'!D149+'BE5'!D149 -> 0 | I149: =D149+G149 -> 0 | J149: =E149+B149 -> 0 | K149: =IF(J149>0,L149/J149," ") ->  | L149: =G149+D149 -> 0 | N149: =D149+G149 -> 0
A150: Services for meetings, seminars | B150: ='BE1'!B150+'BE2'!B150+'BE3'!B150+'BE4'!B150+'BE5'!B150 -> 0 | D150: ='BE1'!D150+'BE2'!D150+'BE3'!D150+'BE4'!D150+'BE5'!D150 -> 0 | I150: =D150+G150 -> 0 | J150: =E150+B150 -> 0 | L150: =G150+D150 -> 0 | N150: =D150+G150 -> 0
A151: Services for dissemination activities (including website) | B151: ='BE1'!B151+'BE2'!B151+'BE3'!B151+'BE4'!B151+'BE5'!B151 -> 0 | D151: ='BE1'!D151+'BE2'!D151+'BE3'!D151+'BE4'!D151+'BE5'!D151 -> 0 | I151: =D151+G151 -> 0 | J151: =E151+B151 -> 0 | L151: =G151+D151 -> 0 | N151: =D151+G151 -> 0
A152: Publication fees | B152: ='BE1'!B152+'BE2'!B152+'BE3'!B152+'BE4'!B152+'BE5'!B152 -> 0 | D152: ='BE1'!D152+'BE2'!D152+'BE3'!D152+'BE4'!D152+'BE5'!D152 -> 0 | I152: =D152+G152 -> 0 | J152: =E152+B152 -> 0 | L152: =G152+D152 -> 0 | N152: =D152+G152 -> 0
A153: Other (shipment,insurance, translation, etc.) | B153: ='BE1'!B153+'BE2'!B153+'BE3'!B153+'BE4'!B153+'BE5'!B153 -> 0 | D153: ='BE1'!D153+'BE2'!D153+'BE3'!D153+'BE4'!D153+'BE5'!D153 -> 0 | I153: =D153+G153 -> 0 | J153: =E153+B153 -> 0 | L153: =G153+D153 -> 0 | N153: =D153+G153 -> 0
A154: D. OTHER COST CATEGORIES
A155: D.1 Financial support to third parties (if applicable in the topic specific conditions) | B155: ='BE1'!B155+'BE2'!B155+'BE3'!B155+'BE4'!B155+'BE5'!B155 -> 0 | D155: ='BE1'!D155+'BE2'!D155+'BE3'!D155+'BE4'!D155+'BE5'!D155 -> 0 | I155: =D155+G155 -> 0 | J155: =E155+B155 -> 0 | K155: =IF(J155>0,L155/J155," ") ->  | L155: =G155+D155 -> 0 | N155: =D155+G155 -> 0
A156: D.2 Internally invoiced goods and services | B156: ='BE1'!B156+'BE2'!B156+'BE3'!B156+'BE4'!B156+'BE5'!B156 -> 0 | D156: ='BE1'!D156+'BE2'!D156+'BE3'!D156+'BE4'!D156+'BE5'!D156 -> 0 | I156: =D156+G156 -> 0 | J156: =E156+B156 -> 0 | L156: =G156+D156 -> 0 | N156: =D156+G156 -> 0
A157: D.3 Transnational access to research infrastructure unit costs (if required in the topic specific conditions) | B157: ='BE1'!B157+'BE2'!B157+'BE3'!B157+'BE4'!B157+'BE5'!B157 -> 0 | D157: ='BE1'!D157+'BE2'!D157+'BE3'!D157+'BE4'!D157+'BE5'!D157 -> 0 | I157: =D157+G157 -> 0 | J157: =E157+B157 -> 0 | L157: =G157+D157 -> 0 | N157: =D157+G157 -> 0
A158: D.4 Virtual access to research infrastructure unit costs (if required in the topic specific conditions) | B158: ='BE1'!B158+'BE2'!B158+'BE3'!B158+'BE4'!B158+'BE5'!B158 -> 0 | D158: ='BE1'!D158+'BE2'!D158+'BE3'!D158+'BE4'!D158+'BE5'!D158 -> 0 | I158: =D158+G158 -> 0 | J158: =E158+B158 -> 0 | L158: =G158+D158 -> 0 | N158: =D158+G158 -> 0
A159: D.5 PCP/PPI procurement costs (if mentioned as eligible in the topic specific conditions) | B159: ='BE1'!B159+'BE2'!B159+'BE3'!B159+'BE4'!B159+'BE5'!B159 -> 0 | D159: ='BE1'!D159+'BE2'!D159+'BE3'!D159+'BE4'!D159+'BE5'!D159 -> 0 | I159: =D159+G159 -> 0 | J159: =E159+B159 -> 0 | L159: =G159+D159 -> 0 | N159: =D159+G159 -> 0
A161: TOTAL DIRECT PERSONNEL COSTS AND PURCHASE COSTS (A+C) | D161: ='BE1'!D161+'BE2'!D161+'BE3'!D161+'BE4'!D161+'BE5'!D161 -> 81275 | I161: =D161+G161 -> 81275 | J161: =E161+B161 -> 0 | L161: =G161+D161 -> 81275 | N161: =D161+G161 -> 81275
A162: TOTAL DIRECT COSTS (A+B+C+D) | D162: ='BE1'!D162+'BE2'!D162+'BE3'!D162+'BE4'!D162+'BE5'!D162 -> 81275 | I162: =D162+G162 -> 81275 | J162: =E162+B162 -> 0 | L162: =G162+D162 -> 81275 | N162: =D162+G162 -> 81275
A164: E. INDIRECT COSTS (25% * (A+C)) | D164: ='BE1'!D164+'BE2'!D164+'BE3'!D164+'BE4'!D164+'BE5'!D164 -> 20318.75 | I164: =D164+G164 -> 20318.75 | J164: =E164+B164 -> 0 | L164: =G164+D164 -> 20318.75 | N164: =D164+G164 -> 20318.75
A166: F. TOTAL COSTS (A+B+C+D+E) | D166: ='BE1'!D166+'BE2'!D166+'BE3'!D166+'BE4'!D166+'BE5'!D166 -> 101593.75 | I166: =D166+G166 -> 101593.75 | J166: =E166+B166 -> 0 | L166: =G166+D166 -> 101593.75 | N166: =D166+G166 -> 101593.75
A169: COSTS WORK PACKAGE: 5 Research internships and trainings for early-stage researchers – Period 1
A171: A. DIRECT PERSONNEL COSTS
A172: A.1 Employees (or equivalent)
A173: SENIOR SCIENTISTS (or equivalent in the private sector) | B173: ='BE1'!B173+'BE2'!B173+'BE3'!B173+'BE4'!B173+'BE5'!B173 -> 7 | D173: ='BE1'!D173+'BE2'!D173+'BE3'!D173+'BE4'!D173+'BE5'!D173 -> 45614 | I173: =D173+G173 -> 45614 | J173: =E173+B173 -> 7 | K173: =IF(J173>0,L173/J173," ") -> 6516.285714 | L173: =G173+D173 -> 45614 | N173: =D173+G173 -> 45614
A174: JUNIOR SCIENTISTS (or equivalent in the private sector) | B174: ='BE1'!B174+'BE2'!B174+'BE3'!B174+'BE4'!B174+'BE5'!B174 -> 8 | D174: ='BE1'!D174+'BE2'!D174+'BE3'!D174+'BE4'!D174+'BE5'!D174 -> 20800 | I174: 20800 | J174: 8 | K174: 2600 | L174: 20800 | N174: 20800
A175: TECHNICAL PERSONNEL (or equivalent in the private sector) | B175: ='BE1'!B175+'BE2'!B175+'BE3'!B175+'BE4'!B175+'BE5'!B175 -> 0 | D175: ='BE1'!D175+'BE2'!D175+'BE3'!D175+'BE4'!D175+'BE5'!D175 -> 0 | I175: 0 | J175: 0 | L175: 0 | N175: 0
A176: ADMINISTRATIVE PERSONNEL (or equivalent in the private sector) | B176: ='BE1'!B176+'BE2'!B176+'BE3'!B176+'BE4'!B176+'BE5'!B176 -> 0 | D176: ='BE1'!D176+'BE2'!D176+'BE3'!D176+'BE4'!D176+'BE5'!D176 -> 0 | I176: 0 | J176: 0 | L176: 0 | N176: 0
A177: OTHERS | B177: ='BE1'!B177+'BE2'!B177+'BE3'!B177+'BE4'!B177+'BE5'!B177 -> 0 | D177: ='BE1'!D177+'BE2'!D177+'BE3'!D177+'BE4'!D177+'BE5'!D177 -> 0 | I177: 0 | J177: 0 | L177: 0 | N177: 0
A178: A.2 Natural Persons under direct contract | B178: ='BE1'!B178+'BE2'!B178+'BE3'!B178+'BE4'!B178+'BE5'!B178 -> 0 | D178: ='BE1'!D178+'BE2'!D178+'BE3'!D178+'BE4'!D178+'BE5'!D178 -> 0 | I178: 0 | J178: 0 | L178: 0 | N178: 0
A179: A.3 Seconded Persons | B179: ='BE1'!B179+'BE2'!B179+'BE3'!B179+'BE4'!B179+'BE5'!B179 -> 0 | D179: ='BE1'!D179+'BE2'!D179+'BE3'!D179+'BE4'!D179+'BE5'!D179 -> 0 | I179: 0 | J179: 0 | L179: 0 | N179: 0
A180: A.4 SME owners and natural person beneficiaries | B180: ='BE1'!B180+'BE2'!B180+'BE3'!B180+'BE4'!B180+'BE5'!B180 -> 0 | D180: ='BE1'!D180+'BE2'!D180+'BE3'!D180+'BE4'!D180+'BE5'!D180 -> 0 | I180: 0 | J180: 0 | L180: 0 | N180: 0
A181: B. DIRECT SUBCONTRACTING COSTS
B182: ='BE1'!B182+'BE2'!B182+'BE3'!B182+'BE4'!B182+'BE5'!B182 -> 0 | D182: ='BE1'!D182+'BE2'!D182+'BE3'!D182+'BE4'!D182+'BE5'!D182 -> 0 | I182: =D182+G182 -> 0 | J182: =E182+B182 -> 0 | K182: =IF(J182>0,L182/J182," ") ->  | L182: =G182+D182 -> 0 | N182: =D182+G182 -> 0
A183: C. DIRECT PURCHASE COSTS
A184: C.1 Travel and subsistence | B184: ='BE1'!B184+'BE2'!B184+'BE3'!B184+'BE4'!B184+'BE5'!B184 -> 16 | D184: ='BE1'!D184+'BE2'!D184+'BE3'!D184+'BE4'!D184+'BE5'!D184 -> 56000 | I184: =D184+G184 -> 56000 | J184: =E184+B184 -> 16 | K184: =IF(J184>0,L184/J184," ") -> 3500 | L184: =G184+D184 -> 56000 | N184: =D184+G184 -> 56000
A185: C.2 Equipment (complete 'Depreciation cost' sheet)
A186: Equipment | B186: ='BE1'!B186+'BE2'!B186+'BE3'!B186+'BE4'!B186+'BE5'!B186 -> 0 | D186: ='BE1'!D186+'BE2'!D186+'BE3'!D186+'BE4'!D186+'BE5'!D186 -> 0 | I186: =D186+G186 -> 0 | J186: =E186+B186 -> 0 | K186: =IF(J186>0,L186/J186," ") ->  | L186: =G186+D186 -> 0 | N186: =D186+G186 -> 0
A187: Infrastructure | B187: ='BE1'!B187+'BE2'!B187+'BE3'!B187+'BE4'!B187+'BE5'!B187 -> 0 | D187: ='BE1'!D187+'BE2'!D187+'BE3'!D187+'BE4'!D187+'BE5'!D187 -> 0 | I187: =D187+G187 -> 0 | J187: =E187+B187 -> 0 | K187: =IF(J187>0,L187/J187," ") ->  | L187: =G187+D187 -> 0 | N187: =D187+G187 -> 0
A188: Other assets | B188: ='BE1'!B188+'BE2'!B188+'BE3'!B188+'BE4'!B188+'BE5'!B188 -> 0 | D188: ='BE1'!D188+'BE2'!D188+'BE3'!D188+'BE4'!D188+'BE5'!D188 -> 0 | I188: =D188+G188 -> 0 | J188: =E188+B188 -> 0 | K188: =IF(J188>0,L188/J188," ") ->  | L188: =G188+D188 -> 0 | N188: =D188+G188 -> 0
A189: C.3 Other goods, works and services
A190: Consumables | B190: ='BE1'!B190+'BE2'!B190+'BE3'!B190+'BE4'!B190+'BE5'!B190 -> 0 | D190: ='BE1'!D190+'BE2'!D190+'BE3'!D190+'BE4'!D190+'BE5'!D190 -> 0 | I190: =D190+G190 -> 0 | J190: =E190+B190 -> 0 | K190: =IF(J190>0,L190/J190," ") ->  | L190: =G190+D190 -> 0 | N190: =D190+G190 -> 0
A191: Services for meetings, seminars | B191: ='BE1'!B191+'BE2'!B191+'BE3'!B191+'BE4'!B191+'BE5'!B191 -> 1 | D191: ='BE1'!D191+'BE2'!D191+'BE3'!D191+'BE4'!D191+'BE5'!D191 -> 8000 | I191: =D191+G191 -> 8000 | J191: =E191+B191 -> 1 | K191: 8000 | L191: =G191+D191 -> 8000 | N191: =D191+G191 -> 8000
A192: Services for dissemination activities (including website) | B192: ='BE1'!B192+'BE2'!B192+'BE3'!B192+'BE4'!B192+'BE5'!B192 -> 0 | D192: ='BE1'!D192+'BE2'!D192+'BE3'!D192+'BE4'!D192+'BE5'!D192 -> 0 | I192: =D192+G192 -> 0 | J192: =E192+B192 -> 0 | L192: =G192+D192 -> 0 | N192: =D192+G192 -> 0
A193: Publication fees | B193: ='BE1'!B193+'BE2'!B193+'BE3'!B193+'BE4'!B193+'BE5'!B193 -> 0 | D193: ='BE1'!D193+'BE2'!D193+'BE3'!D193+'BE4'!D193+'BE5'!D193 -> 0 | I193: =D193+G193 -> 0 | J193: =E193+B193 -> 0 | L193: =G193+D193 -> 0 | N193: =D193+G193 -> 0
A194: Other (shipment,insurance, translation, etc.) | B194: ='BE1'!B194+'BE2'!B194+'BE3'!B194+'BE4'!B194+'BE5'!B194 -> 0 | D194: ='BE1'!D194+'BE2'!D194+'BE3'!D194+'BE4'!D194+'BE5'!D194 -> 0 | I194: =D194+G194 -> 0 | J194: =E194+B194 -> 0 | L194: =G194+D194 -> 0 | N194: =D194+G194 -> 0
A195: D. OTHER COST CATEGORIES
A196: D.1 Financial support to third parties (if applicable in the topic specific conditions) | B196: ='BE1'!B196+'BE2'!B196+'BE3'!B196+'BE4'!B196+'BE5'!B196 -> 0 | D196: ='BE1'!D196+'BE2'!D196+'BE3'!D196+'BE4'!D196+'BE5'!D196 -> 0 | I196: =D196+G196 -> 0 | J196: =E196+B196 -> 0 | K196: =IF(J196>0,L196/J196," ") ->  | L196: =G196+D196 -> 0 | N196: =D196+G196 -> 0
A197: D.2 Internally invoiced goods and services | B197: ='BE1'!B197+'BE2'!B197+'BE3'!B197+'BE4'!B197+'BE5'!B197 -> 0 | D197: ='BE1'!D197+'BE2'!D197+'BE3'!D197+'BE4'!D197+'BE5'!D197 -> 0 | I197: =D197+G197 -> 0 | J197: =E197+B197 -> 0 | L197: =G197+D197 -> 0 | N197: =D197+G197 -> 0
A198: D.3 Transnational access to research infrastructure unit costs (if required in the topic specific conditions) | B198: ='BE1'!B198+'BE2'!B198+'BE3'!B198+'BE4'!B198+'BE5'!B198 -> 0 | D198: ='BE1'!D198+'BE2'!D198+'BE3'!D198+'BE4'!D198+'BE5'!D198 -> 0 | I198: =D198+G198 -> 0 | J198: =E198+B198 -> 0 | L198: =G198+D198 -> 0 | N198: =D198+G198 -> 0
A199: D.4 Virtual access to research infrastructure unit costs (if required in the topic specific conditions) | B199: ='BE1'!B199+'BE2'!B199+'BE3'!B199+'BE4'!B199+'BE5'!B199 -> 0 | D199: ='BE1'!D199+'BE2'!D199+'BE3'!D199+'BE4'!D199+'BE5'!D199 -> 0 | I199: =D199+G199 -> 0 | J199: =E199+B199 -> 0 | L199: =G199+D199 -> 0 | N199: =D199+G199 -> 0
A200: D.5 PCP/PPI procurement costs (if mentioned as eligible in the topic specific conditions) | B200: ='BE1'!B200+'BE2'!B200+'BE3'!B200+'BE4'!B200+'BE5'!B200 -> 0 | D200: ='BE1'!D200+'BE2'!D200+'BE3'!D200+'BE4'!D200+'BE5'!D200 -> 0 | I200: =D200+G200 -> 0 | J200: =E200+B200 -> 0 | L200: =G200+D200 -> 0 | N200: =D200+G200 -> 0
A202: TOTAL DIRECT PERSONNEL COSTS AND PURCHASE COSTS (A+C) | D202: ='BE1'!D202+'BE2'!D202+'BE3'!D202+'BE4'!D202+'BE5'!D202 -> 130414 | I202: =D202+G202 -> 130414 | J202: =E202+B202 -> 0 | L202: =G202+D202 -> 130414 | N202: =D202+G202 -> 130414
A203: TOTAL DIRECT COSTS (A+B+C+D) | D203: ='BE1'!D203+'BE2'!D203+'BE3'!D203+'BE4'!D203+'BE5'!D203 -> 130414 | I203: =D203+G203 -> 130414 | J203: =E203+B203 -> 0 | L203: =G203+D203 -> 130414 | N203: =D203+G203 -> 130414
A205: E. INDIRECT COSTS (25% * (A+C)) | D205: ='BE1'!D205+'BE2'!D205+'BE3'!D205+'BE4'!D205+'BE5'!D205 -> 32603.5 | I205: =D205+G205 -> 32603.5 | J205: =E205+B205 -> 0 | L205: =G205+D205 -> 32603.5 | N205: =D205+G205 -> 32603.5
A207: F. TOTAL COSTS (A+B+C+D+E) | D207: ='BE1'!D207+'BE2'!D207+'BE3'!D207+'BE4'!D207+'BE5'!D207 -> 163017.5 | I207: =D207+G207 -> 163017.5 | J207: =E207+B207 -> 0 | L207: =G207+D207 -> 163017.5 | N207: =D207+G207 -> 163017.5
A210: COSTS WORK PACKAGE: 6 Research internships and trainings for early-stage researchers – Period 2
A212: A. DIRECT PERSONNEL COSTS
A213: A.1 Employees (or equivalent)
A214: SENIOR SCIENTISTS (or equivalent in the private sector) | B214: ='BE1'!B214+'BE2'!B214+'BE3'!B214+'BE4'!B214+'BE5'!B214 -> 9 | D214: ='BE1'!D214+'BE2'!D214+'BE3'!D214+'BE4'!D214+'BE5'!D214 -> 60039 | I214: =D214+G214 -> 60039 | J214: =E214+B214 -> 9 | K214: =IF(J214>0,L214/J214," ") -> 6671 | L214: =G214+D214 -> 60039 | N214: =D214+G214 -> 60039
A215: JUNIOR SCIENTISTS (or equivalent in the private sector) | B215: ='BE1'!B215+'BE2'!B215+'BE3'!B215+'BE4'!B215+'BE5'!B215 -> 12 | D215: ='BE1'!D215+'BE2'!D215+'BE3'!D215+'BE4'!D215+'BE5'!D215 -> 31200 | I215: 31200 | J215: 12 | K215: 2600 | L215: 31200 | N215: 31200
A216: TECHNICAL PERSONNEL (or equivalent in the private sector) | B216: ='BE1'!B216+'BE2'!B216+'BE3'!B216+'BE4'!B216+'BE5'!B216 -> 0 | D216: ='BE1'!D216+'BE2'!D216+'BE3'!D216+'BE4'!D216+'BE5'!D216 -> 0 | I216: 0 | J216: 0 | L216: 0 | N216: 0
A217: ADMINISTRATIVE PERSONNEL (or equivalent in the private sector) | B217: ='BE1'!B217+'BE2'!B217+'BE3'!B217+'BE4'!B217+'BE5'!B217 -> 0 | D217: ='BE1'!D217+'BE2'!D217+'BE3'!D217+'BE4'!D217+'BE5'!D217 -> 0 | I217: 0 | J217: 0 | L217: 0 | N217: 0
A218: OTHERS | B218: ='BE1'!B218+'BE2'!B218+'BE3'!B218+'BE4'!B218+'BE5'!B218 -> 0 | D218: ='BE1'!D218+'BE2'!D218+'BE3'!D218+'BE4'!D218+'BE5'!D218 -> 0 | I218: 0 | J218: 0 | L218: 0 | N218: 0
A219: A.2 Natural Persons under direct contract | B219: ='BE1'!B219+'BE2'!B219+'BE3'!B219+'BE4'!B219+'BE5'!B219 -> 0 | D219: ='BE1'!D219+'BE2'!D219+'BE3'!D219+'BE4'!D219+'BE5'!D219 -> 0 | I219: 0 | J219: 0 | L219: 0 | N219: 0
A220: A.3 Seconded Persons | B220: ='BE1'!B220+'BE2'!B220+'BE3'!B220+'BE4'!B220+'BE5'!B220 -> 0 | D220: ='BE1'!D220+'BE2'!D220+'BE3'!D220+'BE4'!D220+'BE5'!D220 -> 0 | I220: 0 | J220: 0 | L220: 0 | N220: 0
A221: A.4 SME owners and natural person beneficiaries | B221: ='BE1'!B221+'BE2'!B221+'BE3'!B221+'BE4'!B221+'BE5'!B221 -> 0 | D221: ='BE1'!D221+'BE2'!D221+'BE3'!D221+'BE4'!D221+'BE5'!D221 -> 0 | I221: 0 | J221: 0 | L221: 0 | N221: 0
A222: B. DIRECT SUBCONTRACTING COSTS
B223: ='BE1'!B223+'BE2'!B223+'BE3'!B223+'BE4'!B223+'BE5'!B223 -> 16 | D223: ='BE1'!D223+'BE2'!D223+'BE3'!D223+'BE4'!D223+'BE5'!D223 -> 56000 | I223: =D223+G223 -> 56000 | J223: =E223+B223 -> 16 | K223: =IF(J223>0,L223/J223," ") -> 3500 | L223: =G223+D223 -> 56000 | N223: =D223+G223 -> 56000
A224: C. DIRECT PURCHASE COSTS
A225: C.1 Travel and subsistence | B225: ='BE1'!B225+'BE2'!B225+'BE3'!B225+'BE4'!B225+'BE5'!B225 -> 16 | D225: ='BE1'!D225+'BE2'!D225+'BE3'!D225+'BE4'!D225+'BE5'!D225 -> 56000 | I225: =D225+G225 -> 56000 | J225: =E225+B225 -> 16 | K225: =IF(J225>0,L225/J225," ") -> 3500 | L225: =G225+D225 -> 56000 | N225: =D225+G225 -> 56000
A226: C.2 Equipment (complete 'Depreciation cost' sheet)
A227: Equipment | B227: ='BE1'!B227+'BE2'!B227+'BE3'!B227+'BE4'!B227+'BE5'!B227 -> 0 | D227: ='BE1'!D227+'BE2'!D227+'BE3'!D227+'BE4'!D227+'BE5'!D227 -> 0 | I227: =D227+G227 -> 0 | J227: =E227+B227 -> 0 | K227: =IF(J227>0,L227/J227," ") ->  | L227: =G227+D227 -> 0 | N227: =D227+G227 -> 0
A228: Infrastructure | B228: ='BE1'!B228+'BE2'!B228+'BE3'!B228+'BE4'!B228+'BE5'!B228 -> 0 | D228: ='BE1'!D228+'BE2'!D228+'BE3'!D228+'BE4'!D228+'BE5'!D228 -> 0 | I228: =D228+G228 -> 0 | J228: =E228+B228 -> 0 | K228: =IF(J228>0,L228/J228," ") ->  | L228: =G228+D228 -> 0 | N228: =D228+G228 -> 0
A229: Other assets | B229: ='BE1'!B229+'BE2'!B229+'BE3'!B229+'BE4'!B229+'BE5'!B229 -> 0 | D229: ='BE1'!D229+'BE2'!D229+'BE3'!D229+'BE4'!D229+'BE5'!D229 -> 0 | I229: =D229+G229 -> 0 | J229: =E229+B229 -> 0 | K229: =IF(J229>0,L229/J229," ") ->  | L229: =G229+D229 -> 0 | N229: =D229+G229 -> 0
A230: C.3 Other goods, works and services
A231: Consumables | B231: ='BE1'!B231+'BE2'!B231+'BE3'!B231+'BE4'!B231+'BE5'!B231 -> 0 | D231: ='BE1'!D231+'BE2'!D231+'BE3'!D231+'BE4'!D231+'BE5'!D231 -> 0 | I231: =D231+G231 -> 0 | J231: =E231+B231 -> 0 | K231: =IF(J231>0,L231/J231," ") ->  | L231: =G231+D231 -> 0 | N231: =D231+G231 -> 0
A232: Services for meetings, seminars | B232: ='BE1'!B232+'BE2'!B232+'BE3'!B232+'BE4'!B232+'BE5'!B232 -> 0 | D232: ='BE1'!D232+'BE2'!D232+'BE3'!D232+'BE4'!D232+'BE5'!D232 -> 0 | I232: =D232+G232 -> 0 | J232: =E232+B232 -> 0 | L232: =G232+D232 -> 0 | N232: =D232+G232 -> 0
... 154 more rows

Sheet Summary per WP tmpl (hidden)
A1: SUM OF ALL BENEFICIARIES (including AFFILIATED ENTITIES) FOR ALL THE WORK PACKAGES
B2: ALL BENEFICIARIES (without affiliated entities) | E2: ALL AFFILIATED ENTITIES | J2: ALL BENEFICIARIES (with affiliated entities)
A3: COST CATEGORY | B3: UNITS | C3: COST PER UNIT | D3: BE TOTAL COSTS | E3: UNITS | F3: COST PER UNIT | G3: AE TOTAL COSTS | J3: UNITS (TOTAL) | K3: AVERAGE COST PER UNIT | L3: BE+TP TOTAL COSTS | N3: TOTAL COSTS
A7: A. DIRECT PERSONNEL COSTS
A8: A.1 Employees (or equivalent)
A9: SENIOR SCIENTISTS (or equivalent in the private sector) | B9: =#REF!+#REF!+#REF!+#REF!+#REF!+#REF!+#REF!+#REF!+#REF!+#REF! ->  | D9: =#REF!+#REF!+#REF!+#REF!+#REF!+#REF!+#REF!+#REF!+#REF!+#REF! ->  | E9: =#REF!+#REF!+#REF!+#REF!+#REF!+#REF!+#REF!+#REF!+#REF!+#REF! ->  | G9: =#REF!+#REF!+#REF!+#REF!+#REF!+#REF!+#REF!+#REF!+#REF!+#REF! ->  | I9: =D9+G9 ->  | J9: =E9+B9 ->  | K9: =IF(J9>0,L9/J9," ") ->  | L9: =G9+D9 ->  | N9: =D9+G9 -> 
A10: JUNIOR SCIENTISTS (or equivalent in the private sector) | B10: =#REF!+#REF!+#REF!+#REF!+#REF!+#REF!+#REF!+#REF!+#REF!+#REF! ->  | D10: =#REF!+#REF!+#REF!+#REF!+#REF!+#REF!+#REF!+#REF!+#REF!+#REF! ->  | E10: =#REF!+#REF!+#REF!+#REF!+#REF!+#REF!+#REF!+#REF!+#REF!+#REF! ->  | G10: =#REF!+#REF!+#REF!+#REF!+#REF!+#REF!+#REF!+#REF!+#REF!+#REF! -> 
A11: TECHNICAL PERSONNEL (or equivalent in the private sector) | B11: =#REF!+#REF!+#REF!+#REF!+#REF!+#REF!+#REF!+#REF!+#REF!+#REF! ->  | D11: =#REF!+#REF!+#REF!+#REF!+#REF!+#REF!+#REF!+#REF!+#REF!+#REF! ->  | E11: =#REF!+#REF!+#REF!+#REF!+#REF!+#REF!+#REF!+#REF!+#REF!+#REF! ->  | G11: =#REF!+#REF!+#REF!+#REF!+#REF!+#REF!+#REF!+#REF!+#REF!+#REF! -> 
A12: ADMINISTRATIVE PERSONNEL (or equivalent in the private sector) | B12: =#REF!+#REF!+#REF!+#REF!+#REF!+#REF!+#REF!+#REF!+#REF!+#REF! ->  | D12: =#REF!+#REF!+#REF!+#REF!+#REF!+#REF!+#REF!+#REF!+#REF!+#REF! ->  | E12: =#REF!+#REF!+#REF!+#REF!+#REF!+#REF!+#REF!+#REF!+#REF!+#REF! ->  | G12: =#REF!+#REF!+#REF!+#REF!+#REF!+#REF!+#REF!+#REF!+#REF!+#REF! -> 
A13: OTHERS | B13: =#REF!+#REF!+#REF!+#REF!+#REF!+#REF!+#REF!+#REF!+#REF!+#REF! ->  | D13: =#REF!+#REF!+#REF!+#REF!+#REF!+#REF!+#REF!+#REF!+#REF!+#REF! ->  | E13: =#REF!+#REF!+#REF!+#REF!+#REF!+#REF!+#REF!+#REF!+#REF!+#REF! ->  | G13: =#REF!+#REF!+#REF!+#REF!+#REF!+#REF!+#REF!+#REF!+#REF!+#REF! -> 
A14: A.2 Natural Persons under direct contract | B14: =#REF!+#REF!+#REF!+#REF!+#REF!+#REF!+#REF!+#REF!+#REF!+#REF! ->  | D14: =#REF!+#REF!+#REF!+#REF!+#REF!+#REF!+#REF!+#REF!+#REF!+#REF! ->  | E14: =#REF!+#REF!+#REF!+#REF!+#REF!+#REF!+#REF!+#REF!+#REF!+#REF! ->  | G14: =#REF!+#REF!+#REF!+#REF!+#REF!+#REF!+#REF!+#REF!+#REF!+#REF! -> 
A15: A.3 Seconded Persons | B15: =#REF!+#REF!+#REF!+#REF!+#REF!+#REF!+#REF!+#REF!+#REF!+#REF! ->  | D15: =#REF!+#REF!+#REF!+#REF!+#REF!+#REF!+#REF!+#REF!+#REF!+#REF! ->  | E15: =#REF!+#REF!+#REF!+#REF!+#REF!+#REF!+#REF!+#REF!+#REF!+#REF! ->  | G15: =#REF!+#REF!+#REF!+#REF!+#REF!+#REF!+#REF!+#REF!+#REF!+#REF! -> 
A16: A.4 SME owners and natural person beneficiaries | B16: =#REF!+#REF!+#REF!+#REF!+#REF!+#REF!+#REF!+#REF!+#REF!+#REF! ->  | D16: =#REF!+#REF!+#REF!+#REF!+#REF!+#REF!+#REF!+#REF!+#REF!+#REF! ->  | E16: =#REF!+#REF!+#REF!+#REF!+#REF!+#REF!+#REF!+#REF!+#REF!+#REF! ->  | G16: =#REF!+#REF!+#REF!+#REF!+#REF!+#REF!+#REF!+#REF!+#REF!+#REF! -> 
A17: B. DIRECT SUBCONTRACTING COSTS
B18: =#REF!+#REF!+#REF!+#REF!+#REF!+#REF!+#REF!+#REF!+#REF!+#REF! ->  | D18: =#REF!+#REF!+#REF!+#REF!+#REF!+#REF!+#REF!+#REF!+#REF!+#REF! ->  | E18: =#REF!+#REF!+#REF!+#REF!+#REF!+#REF!+#REF!+#REF!+#REF!+#REF! ->  | G18: =#REF!+#REF!+#REF!+#REF!+#REF!+#REF!+#REF!+#REF!+#REF!+#REF! ->  | I18: =D18+G18 ->  | J18: =E18+B18 ->  | K18: =IF(J18>0,L18/J18," ") ->  | L18: =G18+D18 ->  | N18: =D18+G18 -> 
A19: C. DIRECT PURCHASE COSTS
A20: C.1 Travel and subsistence | B20: =#REF!+#REF!+#REF!+#REF!+#REF!+#REF!+#REF!+#REF!+#REF!+#REF! ->  | D20: =#REF!+#REF!+#REF!+#REF!+#REF!+#REF!+#REF!+#REF!+#REF!+#REF! ->  | E20: =#REF!+#REF!+#REF!+#REF!+#REF!+#REF!+#REF!+#REF!+#REF!+#REF! ->  | G20: =#REF!+#REF!+#REF!+#REF!+#REF!+#REF!+#REF!+#REF!+#REF!+#REF! ->  | I20: =D20+G20 ->  | J20: =E20+B20 ->  | K20: =IF(J20>0,L20/J20," ") ->  | L20: =G20+D20 ->  | N20: =D20+G20 -> 
A21: C.2 Equipment (complete 'Depreciation cost' sheet)
A22: Equipment | B22: =#REF!+#REF!+#REF!+#REF!+#REF!+#REF!+#REF!+#REF!+#REF!+#REF! ->  | D22: =#REF!+#REF!+#REF!+#REF!+#REF!+#REF!+#REF!+#REF!+#REF!+#REF! ->  | E22: =#REF!+#REF!+#REF!+#REF!+#REF!+#REF!+#REF!+#REF!+#REF!+#REF! ->  | G22: =#REF!+#REF!+#REF!+#REF!+#REF!+#REF!+#REF!+#REF!+#REF!+#REF! ->  | I22: =D22+G22 ->  | J22: =E22+B22 ->  | K22: =IF(J22>0,L22/J22," ") ->  | L22: =G22+D22 ->  | N22: =D22+G22 -> 
A23: Infrastructure | B23: =#REF!+#REF!+#REF!+#REF!+#REF!+#REF!+#REF!+#REF!+#REF!+#REF! ->  | D23: =#REF!+#REF!+#REF!+#REF!+#REF!+#REF!+#REF!+#REF!+#REF!+#REF! ->  | E23: =#REF!+#REF!+#REF!+#REF!+#REF!+#REF!+#REF!+#REF!+#REF!+#REF! ->  | G23: =#REF!+#REF!+#REF!+#REF!+#REF!+#REF!+#REF!+#REF!+#REF!+#REF! ->  | I23: =D23+G23 ->  | J23: =E23+B23 ->  | K23: =IF(J23>0,L23/J23," ") ->  | L23: =G23+D23 ->  | N23: =D23+G23 -> 
A24: Other assets | B24: =#REF!+#REF!+#REF!+#REF!+#REF!+#REF!+#REF!+#REF!+#REF!+#REF! ->  | D24: =#REF!+#REF!+#REF!+#REF!+#REF!+#REF!+#REF!+#REF!+#REF!+#REF! ->  | E24: =#REF!+#REF!+#REF!+#REF!+#REF!+#REF!+#REF!+#REF!+#REF!+#REF! ->  | G24: =#REF!+#REF!+#REF!+#REF!+#REF!+#REF!+#REF!+#REF!+#REF!+#REF! ->  | I24: =D24+G24 ->  | J24: =E24+B24 ->  | K24: =IF(J24>0,L24/J24," ") ->  | L24: =G24+D24 ->  | N24: =D24+G24 -> 
A25: C.3 Other goods, works and services
A26: Consumables | B26: =#REF!+#REF!+#REF!+#REF!+#REF!+#REF!+#REF!+#REF!+#REF!+#REF! ->  | D26: =#REF!+#REF!+#REF!+#REF!+#REF!+#REF!+#REF!+#REF!+#REF!+#REF! ->  | E26: =#REF!+#REF!+#REF!+#REF!+#REF!+#REF!+#REF!+#REF!+#REF!+#REF! ->  | G26: =#REF!+#REF!+#REF!+#REF!+#REF!+#REF!+#REF!+#REF!+#REF!+#REF! ->  | I26: =D26+G26 ->  | J26: =E26+B26 ->  | K26: =IF(J26>0,L26/J26," ") ->  | L26: =G26+D26 ->  | N26: =D26+G26 -> 
A27: Services for meetings, seminars | B27: =#REF!+#REF!+#REF!+#REF!+#REF!+#REF!+#REF!+#REF!+#REF!+#REF! ->  | D27: =#REF!+#REF!+#REF!+#REF!+#REF!+#REF!+#REF!+#REF!+#REF!+#REF! ->  | E27: =#REF!+#REF!+#REF!+#REF!+#REF!+#REF!+#REF!+#REF!+#REF!+#REF! ->  | G27: =#REF!+#REF!+#REF!+#REF!+#REF!+#REF!+#REF!+#REF!+#REF!+#REF! ->  | I27: =D27+G27 ->  | J27: =E27+B27 ->  | L27: =G27+D27 ->  | N27: =D27+G27 -> 
A28: Services for dissemination activities (including website) | B28: =#REF!+#REF!+#REF!+#REF!+#REF!+#REF!+#REF!+#REF!+#REF!+#REF! ->  | D28: =#REF!+#REF!+#REF!+#REF!+#REF!+#REF!+#REF!+#REF!+#REF!+#REF! ->  | E28: =#REF!+#REF!+#REF!+#REF!+#REF!+#REF!+#REF!+#REF!+#REF!+#REF! ->  | G28: =#REF!+#REF!+#REF!+#REF!+#REF!+#REF!+#REF!+#REF!+#REF!+#REF! ->  | I28: =D28+G28 ->  | J28: =E28+B28 ->  | L28: =G28+D28 ->  | N28: =D28+G28 -> 
A29: Publication fees | B29: =#REF!+#REF!+#REF!+#REF!+#REF!+#REF!+#REF!+#REF!+#REF!+#REF! ->  | D29: =#REF!+#REF!+#REF!+#REF!+#REF!+#REF!+#REF!+#REF!+#REF!+#REF! ->  | E29: =#REF!+#REF!+#REF!+#REF!+#REF!+#REF!+#REF!+#REF!+#REF!+#REF! ->  | G29: =#REF!+#REF!+#REF!+#REF!+#REF!+#REF!+#REF!+#REF!+#REF!+#REF! ->  | I29: =D29+G29 ->  | J29: =E29+B29 ->  | L29: =G29+D29 ->  | N29: =D29+G29 -> 
A30: Other (shipment,insurance, translation, etc.) | B30: =#REF!+#REF!+#REF!+#REF!+#REF!+#REF!+#REF!+#REF!+#REF!+#REF! ->  | D30: =#REF!+#REF!+#REF!+#REF!+#REF!+#REF!+#REF!+#REF!+#REF!+#REF! ->  | E30: =#REF!+#REF!+#REF!+#REF!+#REF!+#REF!+#REF!+#REF!+#REF!+#REF! ->  | G30: =#REF!+#REF!+#REF!+#REF!+#REF!+#REF!+#REF!+#REF!+#REF!+#REF! ->  | I30: =D30+G30 ->  | J30: =E30+B30 ->  | L30: =G30+D30 ->  | N30: =D30+G30 -> 
A31: D. OTHER COST CATEGORIES
A32: D.1 Financial support to third parties (if applicable in the topic specific conditions) | B32: =#REF!+#REF!+#REF!+#REF!+#REF!+#REF!+#REF!+#REF!+#REF!+#REF! ->  | D32: =#REF!+#REF!+#REF!+#REF!+#REF!+#REF!+#REF!+#REF!+#REF!+#REF! ->  | E32: =#REF!+#REF!+#REF!+#REF!+#REF!+#REF!+#REF!+#REF!+#REF!+#REF! ->  | G32: =#REF!+#REF!+#REF!+#REF!+#REF!+#REF!+#REF!+#REF!+#REF!+#REF! ->  | I32: =D32+G32 ->  | J32: =E32+B32 ->  | K32: =IF(J32>0,L32/J32," ") ->  | L32: =G32+D32 ->  | N32: =D32+G32 -> 
A33: D.2 Internally invoiced goods and services | B33: =#REF!+#REF!+#REF!+#REF!+#REF!+#REF!+#REF!+#REF!+#REF!+#REF! ->  | D33: =#REF!+#REF!+#REF!+#REF!+#REF!+#REF!+#REF!+#REF!+#REF!+#REF! ->  | E33: =#REF!+#REF!+#REF!+#REF!+#REF!+#REF!+#REF!+#REF!+#REF!+#REF! ->  | G33: =#REF!+#REF!+#REF!+#REF!+#REF!+#REF!+#REF!+#REF!+#REF!+#REF! ->  | I33: =D33+G33 ->  | J33: =E33+B33 ->  | K33: =IF(J33>0,L33/J33," ") ->  | L33: =G33+D33 ->  | N33: =D33+G33 -> 
A34: D.3 Transnational access to research infrastructure unit costs (if required in the topic specific conditions) | B34: =#REF!+#REF!+#REF!+#REF!+#REF!+#REF!+#REF!+#REF!+#REF!+#REF! ->  | D34: =#REF!+#REF!+#REF!+#REF!+#REF!+#REF!+#REF!+#REF!+#REF!+#REF! ->  | E34: =#REF!+#REF!+#REF!+#REF!+#REF!+#REF!+#REF!+#REF!+#REF!+#REF! ->  | G34: =#REF!+#REF!+#REF!+#REF!+#REF!+#REF!+#REF!+#REF!+#REF!+#REF! ->  | I34: =D34+G34 ->  | J34: =E34+B34 ->  | L34: =G34+D34 ->  | N34: =D34+G34 -> 
A35: D.4 Virtual access to research infrastructure unit costs (if required in the topic specific conditions) | B35: =#REF!+#REF!+#REF!+#REF!+#REF!+#REF!+#REF!+#REF!+#REF!+#REF! ->  | D35: =#REF!+#REF!+#REF!+#REF!+#REF!+#REF!+#REF!+#REF!+#REF!+#REF! ->  | E35: =#REF!+#REF!+#REF!+#REF!+#REF!+#REF!+#REF!+#REF!+#REF!+#REF! ->  | G35: =#REF!+#REF!+#REF!+#REF!+#REF!+#REF!+#REF!+#REF!+#REF!+#REF! ->  | I35: =D35+G35 ->  | J35: =E35+B35 ->  | L35: =G35+D35 ->  | N35: =D35+G35 -> 
A36: D.5 PCP/PPI procurement costs (if mentioned as eligible in the topic specific conditions) | B36: =#REF!+#REF!+#REF!+#REF!+#REF!+#REF!+#REF!+#REF!+#REF!+#REF! ->  | D36: =#REF!+#REF!+#REF!+#REF!+#REF!+#REF!+#REF!+#REF!+#REF!+#REF! ->  | E36: =#REF!+#REF!+#REF!+#REF!+#REF!+#REF!+#REF!+#REF!+#REF!+#REF! ->  | G36: =#REF!+#REF!+#REF!+#REF!+#REF!+#REF!+#REF!+#REF!+#REF!+#REF! ->  | I36: =D36+G36 ->  | J36: =E36+B36 ->  | L36: =G36+D36 ->  | N36: =D36+G36 -> 
A38: TOTAL DIRECT PERSONNEL COSTS AND PURCHASE COSTS (A+C) | D38: =SUM(D8:D30) ->  | G38: =SUM(G8:G30) ->  | I38: =D38+G38 ->  | J38: =E38+B38 -> 0 | L38: =G38+D38 ->  | N38: =D38+G38 -> 
A39: TOTAL DIRECT COSTS (A+B+C+D) | D39: =SUM(D8:D30) ->  | G39: =SUM(G8:G37) ->  | I39: =D39+G39 ->  | J39: =E39+B39 -> 0 | L39: =G39+D39 ->  | N39: =D39+G39 -> 
A41: E. INDIRECT COSTS (25% * (A+C)) | D41: =+D38*0.25 ->  | G41: =+G38*0.25 ->  | I41: =D41+G41 ->  | J41: =E41+B41 -> 0 | L41: =G41+D41 ->  | N41: =D41+G41 -> 
A43: F. TOTAL COSTS (A+B+C+D+E) | D43: =D39+D41 ->  | G43: =G39+G41 ->  | I43: =D43+G43 ->  | J43: =E43+B43 -> 0 | L43: =G43+D43 ->  | N43: =D43+G43 -> 
A46: SUM OF ALL WORK PACKAGES FOR ALL BENEFICIARIES
B47: UNITS | C47: AVERAGE COST PER UNIT | D47: BE TOTAL COSTS | E47: UNITS | F47: AVERAGE COST PER UNIT | G47: TP TOTAL COSTS
A48: A. DIRECT PERSONNEL COSTS
A49: A.1 Employees (or equivalent)
A50: SENIOR SCIENTISTS (or equivalent in the private sector) | B50: =#REF!+#REF!+#REF!+#REF!+#REF!+#REF!+#REF!+#REF!+#REF!+#REF! ->  | D50: =#REF!+#REF!+#REF!+#REF!+#REF!+#REF!+#REF!+#REF!+#REF!+#REF! ->  | E50: =#REF!+#REF!+#REF!+#REF!+#REF!+#REF!+#REF!+#REF!+#REF!+#REF! ->  | G50: =#REF!+#REF!+#REF!+#REF!+#REF!+#REF!+#REF!+#REF!+#REF!+#REF! ->  | I50: =D50+G50 ->  | J50: =E50+B50 ->  | K50: =IF(J50>0,L50/J50," ") ->  | L50: =G50+D50 ->  | N50: =D50+G50 -> 
A51: JUNIOR SCIENTISTS (or equivalent in the private sector) | B51: =#REF!+#REF!+#REF!+#REF!+#REF!+#REF!+#REF!+#REF!+#REF!+#REF! ->  | D51: =#REF!+#REF!+#REF!+#REF!+#REF!+#REF!+#REF!+#REF!+#REF!+#REF! ->  | E51: =#REF!+#REF!+#REF!+#REF!+#REF!+#REF!+#REF!+#REF!+#REF!+#REF! ->  | G51: =#REF!+#REF!+#REF!+#REF!+#REF!+#REF!+#REF!+#REF!+#REF!+#REF! -> 
A52: TECHNICAL PERSONNEL (or equivalent in the private sector) | B52: =#REF!+#REF!+#REF!+#REF!+#REF!+#REF!+#REF!+#REF!+#REF!+#REF! ->  | D52: =#REF!+#REF!+#REF!+#REF!+#REF!+#REF!+#REF!+#REF!+#REF!+#REF! ->  | E52: =#REF!+#REF!+#REF!+#REF!+#REF!+#REF!+#REF!+#REF!+#REF!+#REF! ->  | G52: =#REF!+#REF!+#REF!+#REF!+#REF!+#REF!+#REF!+#REF!+#REF!+#REF! -> 
A53: ADMINISTRATIVE PERSONNEL (or equivalent in the private sector) | B53: =#REF!+#REF!+#REF!+#REF!+#REF!+#REF!+#REF!+#REF!+#REF!+#REF! ->  | D53: =#REF!+#REF!+#REF!+#REF!+#REF!+#REF!+#REF!+#REF!+#REF!+#REF! ->  | E53: =#REF!+#REF!+#REF!+#REF!+#REF!+#REF!+#REF!+#REF!+#REF!+#REF! ->  | G53: =#REF!+#REF!+#REF!+#REF!+#REF!+#REF!+#REF!+#REF!+#REF!+#REF! -> 
A54: OTHERS | B54: =#REF!+#REF!+#REF!+#REF!+#REF!+#REF!+#REF!+#REF!+#REF!+#REF! ->  | D54: =#REF!+#REF!+#REF!+#REF!+#REF!+#REF!+#REF!+#REF!+#REF!+#REF! ->  | E54: =#REF!+#REF!+#REF!+#REF!+#REF!+#REF!+#REF!+#REF!+#REF!+#REF! ->  | G54: =#REF!+#REF!+#REF!+#REF!+#REF!+#REF!+#REF!+#REF!+#REF!+#REF! -> 
A55: A.2 Natural Persons under direct contract | B55: =#REF!+#REF!+#REF!+#REF!+#REF!+#REF!+#REF!+#REF!+#REF!+#REF! ->  | D55: =#REF!+#REF!+#REF!+#REF!+#REF!+#REF!+#REF!+#REF!+#REF!+#REF! ->  | E55: =#REF!+#REF!+#REF!+#REF!+#REF!+#REF!+#REF!+#REF!+#REF!+#REF! ->  | G55: =#REF!+#REF!+#REF!+#REF!+#REF!+#REF!+#REF!+#REF!+#REF!+#REF! -> 
A56: A.3 Seconded Persons | B56: =#REF!+#REF!+#REF!+#REF!+#REF!+#REF!+#REF!+#REF!+#REF!+#REF! ->  | D56: =#REF!+#REF!+#REF!+#REF!+#REF!+#REF!+#REF!+#REF!+#REF!+#REF! ->  | E56: =#REF!+#REF!+#REF!+#REF!+#REF!+#REF!+#REF!+#REF!+#REF!+#REF! ->  | G56: =#REF!+#REF!+#REF!+#REF!+#REF!+#REF!+#REF!+#REF!+#REF!+#REF! -> 
A57: A.4 SME owners and natural person beneficiaries | B57: =#REF!+#REF!+#REF!+#REF!+#REF!+#REF!+#REF!+#REF!+#REF!+#REF! ->  | D57: =#REF!+#REF!+#REF!+#REF!+#REF!+#REF!+#REF!+#REF!+#REF!+#REF! ->  | E57: =#REF!+#REF!+#REF!+#REF!+#REF!+#REF!+#REF!+#REF!+#REF!+#REF! ->  | G57: =#REF!+#REF!+#REF!+#REF!+#REF!+#REF!+#REF!+#REF!+#REF!+#REF! -> 
A58: B. DIRECT SUBCONTRACTING COSTS
B59: =#REF!+#REF!+#REF!+#REF!+#REF!+#REF!+#REF!+#REF!+#REF!+#REF! ->  | D59: =#REF!+#REF!+#REF!+#REF!+#REF!+#REF!+#REF!+#REF!+#REF!+#REF! ->  | E59: =#REF!+#REF!+#REF!+#REF!+#REF!+#REF!+#REF!+#REF!+#REF!+#REF! ->  | G59: =#REF!+#REF!+#REF!+#REF!+#REF!+#REF!+#REF!+#REF!+#REF!+#REF! ->  | I59: =D59+G59 ->  | J59: =E59+B59 ->  | L59: =G59+D59 ->  | N59: =D59+G59 -> 
A60: C. DIRECT PURCHASE COSTS
A61: C.1 Travel and subsistence | B61: =#REF!+#REF!+#REF!+#REF!+#REF!+#REF!+#REF!+#REF!+#REF!+#REF! ->  | D61: =#REF!+#REF!+#REF!+#REF!+#REF!+#REF!+#REF!+#REF!+#REF!+#REF! ->  | E61: =#REF!+#REF!+#REF!+#REF!+#REF!+#REF!+#REF!+#REF!+#REF!+#REF! ->  | G61: =#REF!+#REF!+#REF!+#REF!+#REF!+#REF!+#REF!+#REF!+#REF!+#REF! ->  | I61: =D61+G61 ->  | J61: =E61+B61 ->  | K61: =IF(J61>0,L61/J61," ") ->  | L61: =G61+D61 ->  | N61: =D61+G61 -> 
A62: C.2 Equipment (complete 'Depreciation cost' sheet)
A63: Equipment | B63: =#REF!+#REF!+#REF!+#REF!+#REF!+#REF!+#REF!+#REF!+#REF!+#REF! ->  | D63: =#REF!+#REF!+#REF!+#REF!+#REF!+#REF!+#REF!+#REF!+#REF!+#REF! ->  | E63: =#REF!+#REF!+#REF!+#REF!+#REF!+#REF!+#REF!+#REF!+#REF!+#REF! ->  | G63: =#REF!+#REF!+#REF!+#REF!+#REF!+#REF!+#REF!+#REF!+#REF!+#REF! ->  | I63: =D63+G63 ->  | J63: =E63+B63 ->  | K63: =IF(J63>0,L63/J63," ") ->  | L63: =G63+D63 ->  | N63: =D63+G63 -> 
A64: Infrastructure | B64: =#REF!+#REF!+#REF!+#REF!+#REF!+#REF!+#REF!+#REF!+#REF!+#REF! ->  | D64: =#REF!+#REF!+#REF!+#REF!+#REF!+#REF!+#REF!+#REF!+#REF!+#REF! ->  | E64: =#REF!+#REF!+#REF!+#REF!+#REF!+#REF!+#REF!+#REF!+#REF!+#REF! ->  | G64: =#REF!+#REF!+#REF!+#REF!+#REF!+#REF!+#REF!+#REF!+#REF!+#REF! ->  | I64: =D64+G64 ->  | J64: =E64+B64 ->  | K64: =IF(J64>0,L64/J64," ") ->  | L64: =G64+D64 ->  | N64: =D64+G64 -> 
A65: Other assets | B65: =#REF!+#REF!+#REF!+#REF!+#REF!+#REF!+#REF!+#REF!+#REF!+#REF! ->  | D65: =#REF!+#REF!+#REF!+#REF!+#REF!+#REF!+#REF!+#REF!+#REF!+#REF! ->  | E65: =#REF!+#REF!+#REF!+#REF!+#REF!+#REF!+#REF!+#REF!+#REF!+#REF! ->  | G65: =#REF!+#REF!+#REF!+#REF!+#REF!+#REF!+#REF!+#REF!+#REF!+#REF! ->  | I65: =D65+G65 ->  | J65: =E65+B65 ->  | K65: =IF(J65>0,L65/J65," ") ->  | L65: =G65+D65 ->  | N65: =D65+G65 -> 
A66: C.3 Other goods, works and services
A67: Consumables | B67: =#REF!+#REF!+#REF!+#REF!+#REF!+#REF!+#REF!+#REF!+#REF!+#REF! ->  | D67: =#REF!+#REF!+#REF!+#REF!+#REF!+#REF!+#REF!+#REF!+#REF!+#REF! ->  | E67: =#REF!+#REF!+#REF!+#REF!+#REF!+#REF!+#REF!+#REF!+#REF!+#REF! ->  | G67: =#REF!+#REF!+#REF!+#REF!+#REF!+#REF!+#REF!+#REF!+#REF!+#REF! ->  | I67: =D67+G67 ->  | J67: =E67+B67 ->  | K67: =IF(J67>0,L67/J67," ") ->  | L67: =G67+D67 ->  | N67: =D67+G67 -> 
A68: Services for meetings, seminars | B68: =#REF!+#REF!+#REF!+#REF!+#REF!+#REF!+#REF!+#REF!+#REF!+#REF! ->  | D68: =#REF!+#REF!+#REF!+#REF!+#REF!+#REF!+#REF!+#REF!+#REF!+#REF! ->  | E68: =#REF!+#REF!+#REF!+#REF!+#REF!+#REF!+#REF!+#REF!+#REF!+#REF! ->  | G68: =#REF!+#REF!+#REF!+#REF!+#REF!+#REF!+#REF!+#REF!+#REF!+#REF! ->  | I68: =D68+G68 ->  | J68: =E68+B68 ->  | L68: =G68+D68 ->  | N68: =D68+G68 -> 
A69: Services for dissemination activities (including website) | B69: =#REF!+#REF!+#REF!+#REF!+#REF!+#REF!+#REF!+#REF!+#REF!+#REF! ->  | D69: =#REF!+#REF!+#REF!+#REF!+#REF!+#REF!+#REF!+#REF!+#REF!+#REF! ->  | E69: =#REF!+#REF!+#REF!+#REF!+#REF!+#REF!+#REF!+#REF!+#REF!+#REF! ->  | G69: =#REF!+#REF!+#REF!+#REF!+#REF!+#REF!+#REF!+#REF!+#REF!+#REF! ->  | I69: =D69+G69 ->  | J69: =E69+B69 ->  | L69: =G69+D69 ->  | N69: =D69+G69 -> 
A70: Publication fees | B70: =#REF!+#REF!+#REF!+#REF!+#REF!+#REF!+#REF!+#REF!+#REF!+#REF! ->  | D70: =#REF!+#REF!+#REF!+#REF!+#REF!+#REF!+#REF!+#REF!+#REF!+#REF! ->  | E70: =#REF!+#REF!+#REF!+#REF!+#REF!+#REF!+#REF!+#REF!+#REF!+#REF! ->  | G70: =#REF!+#REF!+#REF!+#REF!+#REF!+#REF!+#REF!+#REF!+#REF!+#REF! ->  | I70: =D70+G70 ->  | J70: =E70+B70 ->  | L70: =G70+D70 ->  | N70: =D70+G70 -> 
A71: Other (shipment,insurance, translation, etc.) | B71: =#REF!+#REF!+#REF!+#REF!+#REF!+#REF!+#REF!+#REF!+#REF!+#REF! ->  | D71: =#REF!+#REF!+#REF!+#REF!+#REF!+#REF!+#REF!+#REF!+#REF!+#REF! ->  | E71: =#REF!+#REF!+#REF!+#REF!+#REF!+#REF!+#REF!+#REF!+#REF!+#REF! ->  | G71: =#REF!+#REF!+#REF!+#REF!+#REF!+#REF!+#REF!+#REF!+#REF!+#REF! ->  | I71: =D71+G71 ->  | J71: =E71+B71 ->  | L71: =G71+D71 ->  | N71: =D71+G71 -> 
A72: D. OTHER COST CATEGORIES
A73: D.1 Financial support to third parties (if applicable in the topic specific conditions) | B73: =#REF!+#REF!+#REF!+#REF!+#REF!+#REF!+#REF!+#REF!+#REF!+#REF! ->  | D73: =#REF!+#REF!+#REF!+#REF!+#REF!+#REF!+#REF!+#REF!+#REF!+#REF! ->  | E73: =#REF!+#REF!+#REF!+#REF!+#REF!+#REF!+#REF!+#REF!+#REF!+#REF! ->  | G73: =#REF!+#REF!+#REF!+#REF!+#REF!+#REF!+#REF!+#REF!+#REF!+#REF! ->  | I73: =D73+G73 ->  | J73: =E73+B73 ->  | K73: =IF(J73>0,L73/J73," ") ->  | L73: =G73+D73 ->  | N73: =D73+G73 -> 
A74: D.2 Internally invoiced goods and services | B74: =#REF!+#REF!+#REF!+#REF!+#REF!+#REF!+#REF!+#REF!+#REF!+#REF! ->  | D74: =#REF!+#REF!+#REF!+#REF!+#REF!+#REF!+#REF!+#REF!+#REF!+#REF! ->  | E74: =#REF!+#REF!+#REF!+#REF!+#REF!+#REF!+#REF!+#REF!+#REF!+#REF! ->  | G74: =#REF!+#REF!+#REF!+#REF!+#REF!+#REF!+#REF!+#REF!+#REF!+#REF! ->  | I74: =D74+G74 ->  | J74: =E74+B74 ->  | K74: =IF(J74>0,L74/J74," ") ->  | L74: =G74+D74 ->  | N74: =D74+G74 -> 
A75: D.3 Transnational access to research infrastructure unit costs (if required in the topic specific conditions) | B75: =#REF!+#REF!+#REF!+#REF!+#REF!+#REF!+#REF!+#REF!+#REF!+#REF! ->  | D75: =#REF!+#REF!+#REF!+#REF!+#REF!+#REF!+#REF!+#REF!+#REF!+#REF! ->  | E75: =#REF!+#REF!+#REF!+#REF!+#REF!+#REF!+#REF!+#REF!+#REF!+#REF! ->  | G75: =#REF!+#REF!+#REF!+#REF!+#REF!+#REF!+#REF!+#REF!+#REF!+#REF! ->  | I75: =D75+G75 ->  | J75: =E75+B75 ->  | L75: =G75+D75 ->  | N75: =D75+G75 -> 
A76: D.4 Virtual access to research infrastructure unit costs (if required in the topic specific conditions) | B76: =#REF!+#REF!+#REF!+#REF!+#REF!+#REF!+#REF!+#REF!+#REF!+#REF! ->  | D76: =#REF!+#REF!+#REF!+#REF!+#REF!+#REF!+#REF!+#REF!+#REF!+#REF! ->  | E76: =#REF!+#REF!+#REF!+#REF!+#REF!+#REF!+#REF!+#REF!+#REF!+#REF! ->  | G76: =#REF!+#REF!+#REF!+#REF!+#REF!+#REF!+#REF!+#REF!+#REF!+#REF! ->  | I76: =D76+G76 ->  | J76: =E76+B76 ->  | L76: =G76+D76 ->  | N76: =D76+G76 -> 
A77: D.5 PCP/PPI procurement costs (if mentioned as eligible in the topic specific conditions) | B77: =#REF!+#REF!+#REF!+#REF!+#REF!+#REF!+#REF!+#REF!+#REF!+#REF! ->  | D77: =#REF!+#REF!+#REF!+#REF!+#REF!+#REF!+#REF!+#REF!+#REF!+#REF! ->  | E77: =#REF!+#REF!+#REF!+#REF!+#REF!+#REF!+#REF!+#REF!+#REF!+#REF! ->  | G77: =#REF!+#REF!+#REF!+#REF!+#REF!+#REF!+#REF!+#REF!+#REF!+#REF! ->  | I77: =D77+G77 ->  | J77: =E77+B77 ->  | L77: =G77+D77 ->  | N77: =D77+G77 -> 
A79: TOTAL DIRECT PERSONNEL COSTS AND PURCHASE COSTS (A+C) | D79: =SUM(D49:D77) ->  | G79: =SUM(G49:G78) ->  | I79: =D79+G79 ->  | J79: =E79+B79 -> 0 | L79: =G79+D79 ->  | N79: =D79+G79 -> 
A80: TOTAL DIRECT COSTS (A+B+C+D) | D80: =SUM(D49:D78) ->  | G80: =SUM(G49:G78) ->  | I80: =D80+G80 ->  | J80: =E80+B80 -> 0 | L80: =G80+D80 ->  | N80: =D80+G80 -> 
A82: E. INDIRECT COSTS (25% * (A+C)) | D82: =+D79*0.25 ->  | G82: =+G79*0.25 ->  | I82: =D82+G82 ->  | J82: =E82+B82 -> 0 | L82: =G82+D82 ->  | N82: =D82+G82 -> 
A84: F. TOTAL COSTS (A+B+C+D+E) | D84: =D80+D82 ->  | G84: =G80+G82 ->  | I84: =D84+G84 ->  | J84: =E84+B84 -> 0 | L84: =G84+D84 ->  | N84: =D84+G84 -> 

Sheet BE Template (hidden)
A1: BENEFICIARY x - CALCULATION SHEET | C1: View Summary | E1: Affiliated Entity n
A3: COST CATEGORY | B3: UNITS | C3: COST PER UNIT | D3: BE TOTAL COSTS | E3: UNITS | F3: COST PER UNIT | G3: AE TOTAL COSTS | I3: BE+AE TOTAL COSTS
A5: WORK PACKAGE
A7: A. DIRECT PERSONNEL COSTS
A8: A.1 Employees (or equivalent)
A9: SENIOR SCIENTISTS (or equivalent in the private sector) | D9: =B9*C9 -> 0 | G9: =E9*F9 -> 0 | I9: =D9+G9 -> 0
A10: JUNIOR SCIENTISTS (or equivalent in the private sector) | D10: 0 | G10: 0 | I10: 0
A11: TECHNICAL PERSONNEL (or equivalent in the private sector) | D11: 0 | G11: 0 | I11: 0
A12: ADMINISTRATIVE PERSONNEL (or equivalent in the private sector) | D12: 0 | G12: 0 | I12: 0
A13: OTHERS | D13: 0 | G13: 0 | I13: 0
A14: A.2 Natural Persons under direct contract | D14: 0 | G14: 0 | I14: 0
A15: A.3 Seconded Persons | D15: 0 | G15: 0 | I15: 0
A16: A.4 SME owners and natural person beneficiaries | C16: =5080*VLOOKUP('BE list'!D4,CountryList!A2:B164,2,FALSE) -> 3657.6 | D16: 0 | G16: 0 | I16: 0
A17: B. DIRECT SUBCONTRACTING COSTS
D18: =B18*C18 -> 0 | G18: =E18*F18 -> 0 | I18: =D18+G18 -> 0
A19: C. DIRECT PURCHASE COSTS
A20: C.1 Travel and subsistence | D20: =B20*C20 -> 0 | G20: =E20*F20 -> 0 | I20: =D20+G20 -> 0
A21: C.2 Equipment (complete 'Depreciation costs' sheet)
A22: Equipment | D22: =B22*C22 -> 0 | G22: =E22*F22 -> 0 | I22: =D22+G22 -> 0
A23: Infrastructure | D23: =B23*C23 -> 0 | G23: =E23*F23 -> 0 | I23: =D23+G23 -> 0
A24: Other assets | D24: =B24*C24 -> 0 | G24: =E24*F24 -> 0 | I24: =D24+G24 -> 0
A25: C.3 Other goods, works and services
A26: Consumables | D26: =B26*C26 -> 0 | G26: =E26*F26 -> 0 | I26: =D26+G26 -> 0
A27: Services for meetings, seminars | D27: =B27*C27 -> 0 | G27: =E27*F27 -> 0 | I27: =D27+G27 -> 0
A28: Services for dissemination activities (including website) | D28: =B28*C28 -> 0 | G28: =E28*F28 -> 0 | I28: =D28+G28 -> 0
A29: Publication fees | D29: =B29*C29 -> 0 | G29: =E29*F29 -> 0 | I29: =D29+G29 -> 0
A30: Other (shipment, insurance, translation, etc.) | D30: =B30*C30 -> 0 | G30: =E30*F30 -> 0 | I30: =D30+G30 -> 0
A31: D. OTHER COST CATEGORIES
A32: D.1 Financial support to third parties (if applicable in the topic specific conditions) | D32: =B32*C32 -> 0 | G32: =E32*F32 -> 0 | I32: =D32+G32 -> 0
A33: D.2 Internally invoiced goods and services | D33: =B33*C33 -> 0 | G33: =E33*F33 -> 0 | I33: =D33+G33 -> 0
A34: D.3 Transnational access to research infrastructure unit costs (if mentioned as eligible in the topic specific conditions) | D34: =B34*C34 -> 0 | G34: =E34*F34 -> 0 | I34: =D34+G34 -> 0
A35: D.4 Virtual access to research infrastructure unit costs (if mentioned as eligible in the topic specific conditions) | D35: =B35*C35 -> 0 | G35: =E35*F35 -> 0 | I35: =D35+G35 -> 0
A36: D.5 PCP/PPI procurement costs (if mentioned as eligible in the topic specific conditions) | D36: =B36*C36 -> 0 | G36: =E36*F36 -> 0 | I36: =D36+G36 -> 0
A38: TOTAL DIRECT PERSONNEL COSTS AND PURCHASE COSTS (A+C) | D38: =SUM(D9:D16)+SUM(D20:D30) -> 0 | G38: =SUM(G9:G16)+SUM(G20:G30) -> 0 | I38: =SUM(I9:I16)+SUM(I20:I30) -> 0
A39: TOTAL DIRECT COSTS (A+B+C+D) | D39: =SUM(D8:D36) -> 0 | G39: =SUM(G8:G36) -> 0 | I39: =SUM(I8:I36) -> 0
A41: E. INDIRECT COSTS (25% * (A+C)) | D41: =D38*0.25 -> 0 | G41: =G38*0.25 -> 0 | I41: =I38*0.25 -> 0
A43: F. TOTAL COSTS (A+B+C+D+E) | D43: =D39+D41 -> 0 | G43: =G39+G41 -> 0 | I43: =I39+I41 -> 0
A46: SUMMARY
A48: A. DIRECT PERSONNEL COSTS
A49: A.1 Employees (or equivalent)
A50: SENIOR SCIENTISTS (or equivalent in the private sector) | B50: =#REF!+#REF!+#REF!+#REF!+#REF!+#REF!+#REF!+#REF!+#REF!+#REF!+#REF!+#REF!+#REF!+#REF!+#REF!+#REF!+#REF!+#REF!+#REF!+B9 ->  | C50: =IF(B50>0,D50/B50," ") ->  | D50: =#REF!+#REF!+#REF!+#REF!+#REF!+#REF!+#REF!+#REF!+#REF!+#REF!+#REF!+#REF!+#REF!+#REF!+#REF!+#REF!+#REF!+#REF!+#REF!+D9 ->  | E50: =#REF!+#REF!+#REF!+#REF!+#REF!+#REF!+#REF!+#REF!+#REF!+#REF!+#REF!+#REF!+#REF!+#REF!+#REF!+#REF!+#REF!+#REF!+#REF!+E9 ->  | F50: =IF(E50>0,G50/E50," ") ->  | G50: =#REF!+#REF!+#REF!+#REF!+#REF!+#REF!+#REF!+#REF!+#REF!+#REF!+#REF!+#REF!+#REF!+#REF!+#REF!+#REF!+#REF!+#REF!+#REF!+G9 ->  | I50: =D50+G50 -> 
A51: JUNIOR SCIENTISTS (or equivalent in the private sector) | B51: =#REF!+#REF!+#REF!+#REF!+#REF!+#REF!+#REF!+#REF!+#REF!+#REF!+#REF!+#REF!+#REF!+#REF!+#REF!+#REF!+#REF!+#REF!+#REF!+B10 ->  | D51: =#REF!+#REF!+#REF!+#REF!+#REF!+#REF!+#REF!+#REF!+#REF!+#REF!+#REF!+#REF!+#REF!+#REF!+#REF!+#REF!+#REF!+#REF!+#REF!+D10 ->  | E51: =#REF!+#REF!+#REF!+#REF!+#REF!+#REF!+#REF!+#REF!+#REF!+#REF!+#REF!+#REF!+#REF!+#REF!+#REF!+#REF!+#REF!+#REF!+#REF!+E10 ->  | G51: =#REF!+#REF!+#REF!+#REF!+#REF!+#REF!+#REF!+#REF!+#REF!+#REF!+#REF!+#REF!+#REF!+#REF!+#REF!+#REF!+#REF!+#REF!+#REF!+G10 -> 
A52: TECHNICAL PERSONNEL (or equivalent in the private sector) | B52: =#REF!+#REF!+#REF!+#REF!+#REF!+#REF!+#REF!+#REF!+#REF!+#REF!+#REF!+#REF!+#REF!+#REF!+#REF!+#REF!+#REF!+#REF!+#REF!+B11 ->  | D52: =#REF!+#REF!+#REF!+#REF!+#REF!+#REF!+#REF!+#REF!+#REF!+#REF!+#REF!+#REF!+#REF!+#REF!+#REF!+#REF!+#REF!+#REF!+#REF!+D11 ->  | E52: =#REF!+#REF!+#REF!+#REF!+#REF!+#REF!+#REF!+#REF!+#REF!+#REF!+#REF!+#REF!+#REF!+#REF!+#REF!+#REF!+#REF!+#REF!+#REF!+E11 ->  | G52: =#REF!+#REF!+#REF!+#REF!+#REF!+#REF!+#REF!+#REF!+#REF!+#REF!+#REF!+#REF!+#REF!+#REF!+#REF!+#REF!+#REF!+#REF!+#REF!+G11 -> 
A53: ADMINISTRATIVE PERSONNEL (or equivalent in the private sector) | B53: =#REF!+#REF!+#REF!+#REF!+#REF!+#REF!+#REF!+#REF!+#REF!+#REF!+#REF!+#REF!+#REF!+#REF!+#REF!+#REF!+#REF!+#REF!+#REF!+B12 ->  | D53: =#REF!+#REF!+#REF!+#REF!+#REF!+#REF!+#REF!+#REF!+#REF!+#REF!+#REF!+#REF!+#REF!+#REF!+#REF!+#REF!+#REF!+#REF!+#REF!+D12 ->  | E53: =#REF!+#REF!+#REF!+#REF!+#REF!+#REF!+#REF!+#REF!+#REF!+#REF!+#REF!+#REF!+#REF!+#REF!+#REF!+#REF!+#REF!+#REF!+#REF!+E12 ->  | G53: =#REF!+#REF!+#REF!+#REF!+#REF!+#REF!+#REF!+#REF!+#REF!+#REF!+#REF!+#REF!+#REF!+#REF!+#REF!+#REF!+#REF!+#REF!+#REF!+G12 -> 
A54: OTHERS | B54: =#REF!+#REF!+#REF!+#REF!+#REF!+#REF!+#REF!+#REF!+#REF!+#REF!+#REF!+#REF!+#REF!+#REF!+#REF!+#REF!+#REF!+#REF!+#REF!+B13 ->  | D54: =#REF!+#REF!+#REF!+#REF!+#REF!+#REF!+#REF!+#REF!+#REF!+#REF!+#REF!+#REF!+#REF!+#REF!+#REF!+#REF!+#REF!+#REF!+#REF!+D13 ->  | E54: =#REF!+#REF!+#REF!+#REF!+#REF!+#REF!+#REF!+#REF!+#REF!+#REF!+#REF!+#REF!+#REF!+#REF!+#REF!+#REF!+#REF!+#REF!+#REF!+E13 ->  | G54: =#REF!+#REF!+#REF!+#REF!+#REF!+#REF!+#REF!+#REF!+#REF!+#REF!+#REF!+#REF!+#REF!+#REF!+#REF!+#REF!+#REF!+#REF!+#REF!+G13 -> 
A55: A.2 Natural Persons under direct contract | B55: =#REF!+#REF!+#REF!+#REF!+#REF!+#REF!+#REF!+#REF!+#REF!+#REF!+#REF!+#REF!+#REF!+#REF!+#REF!+#REF!+#REF!+#REF!+#REF!+B14 ->  | D55: =#REF!+#REF!+#REF!+#REF!+#REF!+#REF!+#REF!+#REF!+#REF!+#REF!+#REF!+#REF!+#REF!+#REF!+#REF!+#REF!+#REF!+#REF!+#REF!+D14 ->  | E55: =#REF!+#REF!+#REF!+#REF!+#REF!+#REF!+#REF!+#REF!+#REF!+#REF!+#REF!+#REF!+#REF!+#REF!+#REF!+#REF!+#REF!+#REF!+#REF!+E14 ->  | G55: =#REF!+#REF!+#REF!+#REF!+#REF!+#REF!+#REF!+#REF!+#REF!+#REF!+#REF!+#REF!+#REF!+#REF!+#REF!+#REF!+#REF!+#REF!+#REF!+G14 -> 
A56: A.3 Seconded Persons | B56: =#REF!+#REF!+#REF!+#REF!+#REF!+#REF!+#REF!+#REF!+#REF!+#REF!+#REF!+#REF!+#REF!+#REF!+#REF!+#REF!+#REF!+#REF!+#REF!+B15 ->  | D56: =#REF!+#REF!+#REF!+#REF!+#REF!+#REF!+#REF!+#REF!+#REF!+#REF!+#REF!+#REF!+#REF!+#REF!+#REF!+#REF!+#REF!+#REF!+#REF!+D15 ->  | E56: =#REF!+#REF!+#REF!+#REF!+#REF!+#REF!+#REF!+#REF!+#REF!+#REF!+#REF!+#REF!+#REF!+#REF!+#REF!+#REF!+#REF!+#REF!+#REF!+E15 ->  | G56: =#REF!+#REF!+#REF!+#REF!+#REF!+#REF!+#REF!+#REF!+#REF!+#REF!+#REF!+#REF!+#REF!+#REF!+#REF!+#REF!+#REF!+#REF!+#REF!+G15 -> 
A57: A.4 SME owners and natural person beneficiaries | B57: =#REF!+#REF!+#REF!+#REF!+#REF!+#REF!+#REF!+#REF!+#REF!+#REF!+#REF!+#REF!+#REF!+#REF!+#REF!+#REF!+#REF!+#REF!+#REF!+B16 ->  | D57: =#REF!+#REF!+#REF!+#REF!+#REF!+#REF!+#REF!+#REF!+#REF!+#REF!+#REF!+#REF!+#REF!+#REF!+#REF!+#REF!+#REF!+#REF!+#REF!+D16 ->  | E57: =#REF!+#REF!+#REF!+#REF!+#REF!+#REF!+#REF!+#REF!+#REF!+#REF!+#REF!+#REF!+#REF!+#REF!+#REF!+#REF!+#REF!+#REF!+#REF!+E16 ->  | G57: =#REF!+#REF!+#REF!+#REF!+#REF!+#REF!+#REF!+#REF!+#REF!+#REF!+#REF!+#REF!+#REF!+#REF!+#REF!+#REF!+#REF!+#REF!+#REF!+G16 -> 
A58: B. DIRECT SUBCONTRACTING COSTS
B59: =#REF!+#REF!+#REF!+#REF!+#REF!+#REF!+#REF!+#REF!+#REF!+#REF!+#REF!+#REF!+#REF!+#REF!+#REF!+#REF!+#REF!+#REF!+#REF!+B18 ->  | C59: =IF(B59>0,D59/B59," ") ->  | D59: =#REF!+#REF!+#REF!+#REF!+#REF!+#REF!+#REF!+#REF!+#REF!+#REF!+#REF!+#REF!+#REF!+#REF!+#REF!+#REF!+#REF!+#REF!+#REF!+#REF! ->  | E59: =#REF!+#REF!+#REF!+#REF!+#REF!+#REF!+#REF!+#REF!+#REF!+#REF!+#REF!+#REF!+#REF!+#REF!+#REF!+#REF!+#REF!+#REF!+#REF!+#REF! ->  | F59: =IF(E59>0,G59/E59," ") ->  | G59: =#REF!+#REF!+#REF!+#REF!+#REF!+#REF!+#REF!+#REF!+#REF!+#REF!+#REF!+#REF!+#REF!+#REF!+#REF!+#REF!+#REF!+#REF!+#REF!+#REF! ->  | I59: =D59+G59 -> 
A60: C. DIRECT PURCHASE COSTS
A61: C.1 Travel and subsistence | B61: =#REF!+#REF!+#REF!+#REF!+#REF!+#REF!+#REF!+#REF!+#REF!+#REF!+#REF!+#REF!+#REF!+#REF!+#REF!+#REF!+#REF!+#REF!+#REF!+B20 ->  | C61: =IF(B61>0,D61/B61," ") ->  | D61: =#REF!+#REF!+#REF!+#REF!+#REF!+#REF!+#REF!+#REF!+#REF!+#REF!+#REF!+#REF!+#REF!+#REF!+#REF!+#REF!+#REF!+#REF!+#REF!+#REF! ->  | E61: =#REF!+#REF!+#REF!+#REF!+#REF!+#REF!+#REF!+#REF!+#REF!+#REF!+#REF!+#REF!+#REF!+#REF!+#REF!+#REF!+#REF!+#REF!+#REF!+#REF! ->  | F61: =IF(E61>0,G61/E61," ") ->  | G61: =#REF!+#REF!+#REF!+#REF!+#REF!+#REF!+#REF!+#REF!+#REF!+#REF!+#REF!+#REF!+#REF!+#REF!+#REF!+#REF!+#REF!+#REF!+#REF!+#REF! ->  | I61: =D61+G61 -> 
A62: C.2 Equipment (complete 'Depreciation costs' sheet)
A63: Equipment | B63: =#REF!+#REF!+#REF!+#REF!+#REF!+#REF!+#REF!+#REF!+#REF!+#REF!+#REF!+#REF!+#REF!+#REF!+#REF!+#REF!+#REF!+#REF!+#REF!+B22 ->  | C63: =IF(B63>0,D63/B63," ") ->  | D63: =#REF!+#REF!+#REF!+#REF!+#REF!+#REF!+#REF!+#REF!+#REF!+#REF!+#REF!+#REF!+#REF!+#REF!+#REF!+#REF!+#REF!+#REF!+#REF!+D41 ->  | E63: =#REF!+#REF!+#REF!+#REF!+#REF!+#REF!+#REF!+#REF!+#REF!+#REF!+#REF!+#REF!+#REF!+#REF!+#REF!+#REF!+#REF!+#REF!+#REF!+E41 ->  | F63: =IF(E63>0,G63/E63," ") ->  | G63: =#REF!+#REF!+#REF!+#REF!+#REF!+#REF!+#REF!+#REF!+#REF!+#REF!+#REF!+#REF!+#REF!+#REF!+#REF!+#REF!+#REF!+#REF!+#REF!+G41 ->  | I63: =D63+G63 -> 
A64: Infrastructure | B64: =#REF!+#REF!+#REF!+#REF!+#REF!+#REF!+#REF!+#REF!+#REF!+#REF!+#REF!+#REF!+#REF!+#REF!+#REF!+#REF!+#REF!+#REF!+#REF!+B23 ->  | C64: =IF(B64>0,D64/B64," ") ->  | D64: =#REF!+#REF!+#REF!+#REF!+#REF!+#REF!+#REF!+#REF!+#REF!+#REF!+#REF!+#REF!+#REF!+#REF!+#REF!+#REF!+#REF!+#REF!+#REF!+D38 ->  | E64: =#REF!+#REF!+#REF!+#REF!+#REF!+#REF!+#REF!+#REF!+#REF!+#REF!+#REF!+#REF!+#REF!+#REF!+#REF!+#REF!+#REF!+#REF!+#REF!+E38 ->  | F64: =IF(E64>0,G64/E64," ") ->  | G64: =#REF!+#REF!+#REF!+#REF!+#REF!+#REF!+#REF!+#REF!+#REF!+#REF!+#REF!+#REF!+#REF!+#REF!+#REF!+#REF!+#REF!+#REF!+#REF!+G38 ->  | I64: =D64+G64 -> 
A65: Other assets | B65: =#REF!+#REF!+#REF!+#REF!+#REF!+#REF!+#REF!+#REF!+#REF!+#REF!+#REF!+#REF!+#REF!+#REF!+#REF!+#REF!+#REF!+#REF!+#REF!+B24 ->  | C65: =IF(B65>0,D65/B65," ") ->  | D65: =#REF!+#REF!+#REF!+#REF!+#REF!+#REF!+#REF!+#REF!+#REF!+#REF!+#REF!+#REF!+#REF!+#REF!+#REF!+#REF!+#REF!+#REF!+#REF!+#REF! ->  | E65: =#REF!+#REF!+#REF!+#REF!+#REF!+#REF!+#REF!+#REF!+#REF!+#REF!+#REF!+#REF!+#REF!+#REF!+#REF!+#REF!+#REF!+#REF!+#REF!+#REF! ->  | F65: =IF(E65>0,G65/E65," ") ->  | G65: =#REF!+#REF!+#REF!+#REF!+#REF!+#REF!+#REF!+#REF!+#REF!+#REF!+#REF!+#REF!+#REF!+#REF!+#REF!+#REF!+#REF!+#REF!+#REF!+#REF! ->  | I65: =D65+G65 -> 
A66: C.3 Other goods, works and services
A67: Consumables | B67: =#REF!+#REF!+#REF!+#REF!+#REF!+#REF!+#REF!+#REF!+#REF!+#REF!+#REF!+#REF!+#REF!+#REF!+#REF!+#REF!+#REF!+#REF!+#REF!+#REF! ->  | C67: =IF(B67>0,D67/B67," ") ->  | D67: =#REF!+#REF!+#REF!+#REF!+#REF!+#REF!+#REF!+#REF!+#REF!+#REF!+#REF!+#REF!+#REF!+#REF!+#REF!+#REF!+#REF!+#REF!+#REF!+#REF! ->  | E67: =#REF!+#REF!+#REF!+#REF!+#REF!+#REF!+#REF!+#REF!+#REF!+#REF!+#REF!+#REF!+#REF!+#REF!+#REF!+#REF!+#REF!+#REF!+#REF!+#REF! ->  | F67: =IF(E67>0,G67/E67," ") ->  | G67: =#REF!+#REF!+#REF!+#REF!+#REF!+#REF!+#REF!+#REF!+#REF!+#REF!+#REF!+#REF!+#REF!+#REF!+#REF!+#REF!+#REF!+#REF!+#REF!+#REF! ->  | I67: =D67+G67 -> 
A68: Services for meetings, seminars | B68: =#REF!+#REF!+#REF!+#REF!+#REF!+#REF!+#REF!+#REF!+#REF!+#REF!+#REF!+#REF!+#REF!+#REF!+#REF!+#REF!+#REF!+#REF!+#REF!+#REF! ->  | D68: =#REF!+#REF!+#REF!+#REF!+#REF!+#REF!+#REF!+#REF!+#REF!+#REF!+#REF!+#REF!+#REF!+#REF!+#REF!+#REF!+#REF!+#REF!+#REF!+#REF! ->  | E68: =#REF!+#REF!+#REF!+#REF!+#REF!+#REF!+#REF!+#REF!+#REF!+#REF!+#REF!+#REF!+#REF!+#REF!+#REF!+#REF!+#REF!+#REF!+#REF!+#REF! ->  | G68: =#REF!+#REF!+#REF!+#REF!+#REF!+#REF!+#REF!+#REF!+#REF!+#REF!+#REF!+#REF!+#REF!+#REF!+#REF!+#REF!+#REF!+#REF!+#REF!+#REF! -> 
A69: Services for dissemination activities (including website) | B69: =#REF!+#REF!+#REF!+#REF!+#REF!+#REF!+#REF!+#REF!+#REF!+#REF!+#REF!+#REF!+#REF!+#REF!+#REF!+#REF!+#REF!+#REF!+#REF!+#REF! ->  | D69: =#REF!+#REF!+#REF!+#REF!+#REF!+#REF!+#REF!+#REF!+#REF!+#REF!+#REF!+#REF!+#REF!+#REF!+#REF!+#REF!+#REF!+#REF!+#REF!+#REF! ->  | E69: =#REF!+#REF!+#REF!+#REF!+#REF!+#REF!+#REF!+#REF!+#REF!+#REF!+#REF!+#REF!+#REF!+#REF!+#REF!+#REF!+#REF!+#REF!+#REF!+#REF! ->  | G69: =#REF!+#REF!+#REF!+#REF!+#REF!+#REF!+#REF!+#REF!+#REF!+#REF!+#REF!+#REF!+#REF!+#REF!+#REF!+#REF!+#REF!+#REF!+#REF!+#REF! -> 
A70: Publication fees | B70: =#REF!+#REF!+#REF!+#REF!+#REF!+#REF!+#REF!+#REF!+#REF!+#REF!+#REF!+#REF!+#REF!+#REF!+#REF!+#REF!+#REF!+#REF!+#REF!+#REF! ->  | D70: =#REF!+#REF!+#REF!+#REF!+#REF!+#REF!+#REF!+#REF!+#REF!+#REF!+#REF!+#REF!+#REF!+#REF!+#REF!+#REF!+#REF!+#REF!+#REF!+#REF! ->  | E70: =#REF!+#REF!+#REF!+#REF!+#REF!+#REF!+#REF!+#REF!+#REF!+#REF!+#REF!+#REF!+#REF!+#REF!+#REF!+#REF!+#REF!+#REF!+#REF!+#REF! ->  | G70: =#REF!+#REF!+#REF!+#REF!+#REF!+#REF!+#REF!+#REF!+#REF!+#REF!+#REF!+#REF!+#REF!+#REF!+#REF!+#REF!+#REF!+#REF!+#REF!+#REF! -> 
A71: Other (shipment, insurance, translation, etc.) | B71: =#REF!+#REF!+#REF!+#REF!+#REF!+#REF!+#REF!+#REF!+#REF!+#REF!+#REF!+#REF!+#REF!+#REF!+#REF!+#REF!+#REF!+#REF!+#REF!+#REF! ->  | D71: =#REF!+#REF!+#REF!+#REF!+#REF!+#REF!+#REF!+#REF!+#REF!+#REF!+#REF!+#REF!+#REF!+#REF!+#REF!+#REF!+#REF!+#REF!+#REF!+#REF! ->  | E71: =#REF!+#REF!+#REF!+#REF!+#REF!+#REF!+#REF!+#REF!+#REF!+#REF!+#REF!+#REF!+#REF!+#REF!+#REF!+#REF!+#REF!+#REF!+#REF!+#REF! ->  | G71: =#REF!+#REF!+#REF!+#REF!+#REF!+#REF!+#REF!+#REF!+#REF!+#REF!+#REF!+#REF!+#REF!+#REF!+#REF!+#REF!+#REF!+#REF!+#REF!+#REF! -> 
A72: D. OTHER COST CATEGORIES
A73: D.1 Financial support to third parties (if applicable in the topic specific conditions) | B73: =#REF!+#REF!+#REF!+#REF!+#REF!+#REF!+#REF!+#REF!+#REF!+#REF!+#REF!+#REF!+#REF!+#REF!+#REF!+#REF!+#REF!+#REF!+#REF!+#REF! ->  | D73: =#REF!+#REF!+#REF!+#REF!+#REF!+#REF!+#REF!+#REF!+#REF!+#REF!+#REF!+#REF!+#REF!+#REF!+#REF!+#REF!+#REF!+#REF!+#REF!+#REF! ->  | E73: =#REF!+#REF!+#REF!+#REF!+#REF!+#REF!+#REF!+#REF!+#REF!+#REF!+#REF!+#REF!+#REF!+#REF!+#REF!+#REF!+#REF!+#REF!+#REF!+#REF! ->  | G73: =#REF!+#REF!+#REF!+#REF!+#REF!+#REF!+#REF!+#REF!+#REF!+#REF!+#REF!+#REF!+#REF!+#REF!+#REF!+#REF!+#REF!+#REF!+#REF!+#REF! -> 
A74: D.2 Internally invoiced goods and services | B74: =#REF!+#REF!+#REF!+#REF!+#REF!+#REF!+#REF!+#REF!+#REF!+#REF!+#REF!+#REF!+#REF!+#REF!+#REF!+#REF!+#REF!+#REF!+#REF!+#REF! ->  | C74: =IF(B74>0,D74/B74," ") ->  | D74: =#REF!+#REF!+#REF!+#REF!+#REF!+#REF!+#REF!+#REF!+#REF!+#REF!+#REF!+#REF!+#REF!+#REF!+#REF!+#REF!+#REF!+#REF!+#REF!+#REF! ->  | E74: =#REF!+#REF!+#REF!+#REF!+#REF!+#REF!+#REF!+#REF!+#REF!+#REF!+#REF!+#REF!+#REF!+#REF!+#REF!+#REF!+#REF!+#REF!+#REF!+#REF! ->  | F74: =IF(E74>0,G74/E74," ") ->  | G74: =#REF!+#REF!+#REF!+#REF!+#REF!+#REF!+#REF!+#REF!+#REF!+#REF!+#REF!+#REF!+#REF!+#REF!+#REF!+#REF!+#REF!+#REF!+#REF!+#REF! ->  | I74: =D74+G74 -> 
A75: D.3 Transnational access to research infrastructure unit costs (if mentioned as eligible in the topic specific conditions) | B75: =#REF!+#REF!+#REF!+#REF!+#REF!+#REF!+#REF!+#REF!+#REF!+#REF!+#REF!+#REF!+#REF!+#REF!+#REF!+#REF!+#REF!+#REF!+#REF!+#REF! ->  | D75: =#REF!+#REF!+#REF!+#REF!+#REF!+#REF!+#REF!+#REF!+#REF!+#REF!+#REF!+#REF!+#REF!+#REF!+#REF!+#REF!+#REF!+#REF!+#REF!+#REF! ->  | E75: =#REF!+#REF!+#REF!+#REF!+#REF!+#REF!+#REF!+#REF!+#REF!+#REF!+#REF!+#REF!+#REF!+#REF!+#REF!+#REF!+#REF!+#REF!+#REF!+#REF! ->  | G75: =#REF!+#REF!+#REF!+#REF!+#REF!+#REF!+#REF!+#REF!+#REF!+#REF!+#REF!+#REF!+#REF!+#REF!+#REF!+#REF!+#REF!+#REF!+#REF!+#REF! -> 
A76: D.4 Virtual access to research infrastructure unit costs (if mentioned as eligible in the topic specific conditions) | B76: =#REF!+#REF!+#REF!+#REF!+#REF!+#REF!+#REF!+#REF!+#REF!+#REF!+#REF!+#REF!+#REF!+#REF!+#REF!+#REF!+#REF!+#REF!+#REF!+#REF! ->  | D76: =#REF!+#REF!+#REF!+#REF!+#REF!+#REF!+#REF!+#REF!+#REF!+#REF!+#REF!+#REF!+#REF!+#REF!+#REF!+#REF!+#REF!+#REF!+#REF!+#REF! ->  | E76: =#REF!+#REF!+#REF!+#REF!+#REF!+#REF!+#REF!+#REF!+#REF!+#REF!+#REF!+#REF!+#REF!+#REF!+#REF!+#REF!+#REF!+#REF!+#REF!+#REF! ->  | G76: =#REF!+#REF!+#REF!+#REF!+#REF!+#REF!+#REF!+#REF!+#REF!+#REF!+#REF!+#REF!+#REF!+#REF!+#REF!+#REF!+#REF!+#REF!+#REF!+#REF! -> 
A77: D.5 PCP/PPI procurement costs (if mentioned as eligible in the topic specific conditions) | B77: =#REF!+#REF!+#REF!+#REF!+#REF!+#REF!+#REF!+#REF!+#REF!+#REF!+#REF!+#REF!+#REF!+#REF!+#REF!+#REF!+#REF!+#REF!+#REF!+#REF! ->  | D77: =#REF!+#REF!+#REF!+#REF!+#REF!+#REF!+#REF!+#REF!+#REF!+#REF!+#REF!+#REF!+#REF!+#REF!+#REF!+#REF!+#REF!+#REF!+#REF!+#REF! ->  | E77: =#REF!+#REF!+#REF!+#REF!+#REF!+#REF!+#REF!+#REF!+#REF!+#REF!+#REF!+#REF!+#REF!+#REF!+#REF!+#REF!+#REF!+#REF!+#REF!+#REF! ->  | G77: =#REF!+#REF!+#REF!+#REF!+#REF!+#REF!+#REF!+#REF!+#REF!+#REF!+#REF!+#REF!+#REF!+#REF!+#REF!+#REF!+#REF!+#REF!+#REF!+#REF! -> 
A79: TOTAL DIRECT PERSONNEL COSTS AND PURCHASE COSTS (A+C) | D79: =#REF!+#REF!+#REF!+#REF!+#REF!+#REF!+#REF!+#REF!+#REF!+#REF!+#REF!+#REF!+#REF!+#REF!+#REF!+#REF!+#REF!+#REF!+#REF!+#REF! ->  | G79: =#REF!+#REF!+#REF!+#REF!+#REF!+#REF!+#REF!+#REF!+#REF!+#REF!+#REF!+#REF!+#REF!+#REF!+#REF!+#REF!+#REF!+#REF!+#REF!+#REF! ->  | I79: =D79+G79 -> 
A80: TOTAL DIRECT COSTS (A+B+C+D) | D80: =#REF!+#REF!+#REF!+#REF!+#REF!+#REF!+#REF!+#REF!+#REF!+#REF!+#REF!+#REF!+#REF!+#REF!+#REF!+#REF!+#REF!+#REF!+#REF!+#REF! ->  | G80: =#REF!+#REF!+#REF!+#REF!+#REF!+#REF!+#REF!+#REF!+#REF!+#REF!+#REF!+#REF!+#REF!+#REF!+#REF!+#REF!+#REF!+#REF!+#REF!+#REF! ->  | I80: =D80+G80 -> 
A82: E. INDIRECT COSTS (25% * (A+C)) | D82: =#REF!+#REF!+#REF!+#REF!+#REF!+#REF!+#REF!+#REF!+#REF!+#REF!+#REF!+#REF!+#REF!+#REF!+#REF!+#REF!+#REF!+#REF!+#REF!+#REF! ->  | G82: =#REF!+#REF!+#REF!+#REF!+#REF!+#REF!+#REF!+#REF!+#REF!+#REF!+#REF!+#REF!+#REF!+#REF!+#REF!+#REF!+#REF!+#REF!+#REF!+#REF! ->  | I82: =D82+G82 -> 
A84: F. TOTAL COSTS (A+B+C+D+E) | D84: =#REF!+#REF!+#REF!+#REF!+#REF!+#REF!+#REF!+#REF!+#REF!+#REF!+#REF!+#REF!+#REF!+#REF!+#REF!+#REF!+#REF!+#REF!+D1+#REF! ->  | G84: =#REF!+#REF!+#REF!+#REF!+#REF!+#REF!+#REF!+#REF!+#REF!+#REF!+#REF!+#REF!+#REF!+#REF!+#REF!+#REF!+#REF!+#REF!+G1+#REF! ->  | I84: =D84+G84 -> 

Sheet BE1
A1: BENEFICIARY 1 - CALCULATION SHEET | C1: View Summary
B2: Eötvös Loránd Tudományegyetem
A3: COST CATEGORY | B3: UNITS | C3: COST PER UNIT | D3: BE TOTAL COSTS
A5: =CONCATENATE("COSTS WORK PACKAGE 1: "," ","Research Management and Administration Skill Development – Period 1") -> COSTS WORK PACKAGE 1: Research Management and Administration Skill Development – Period 1
A7: A. DIRECT PERSONNEL COSTS
A8: A.1 Employees (or equivalent)
A9: SENIOR SCIENTISTS (or equivalent in the private sector) | D9: =B9*C9 -> 0
A10: JUNIOR SCIENTISTS (or equivalent in the private sector) | D10: 0
A11: TECHNICAL PERSONNEL (or equivalent in the private sector) | D11: 0
A12: ADMINISTRATIVE PERSONNEL (or equivalent in the private sector) | B12: 8 | C12: 2600 | D12: 20800
A13: OTHERS | D13: 0
A14: A.2 Natural Persons under direct contract | D14: 0
A15: A.3 Seconded Persons | D15: 0
A16: A.4 SME owners and natural person beneficiaries | C16: =5080*VLOOKUP('BE list'!D4,CountryList!A2:B164,2,FALSE) -> 3657.6 | D16: 0
A17: B. DIRECT SUBCONTRACTING COSTS
D18: =B18*C18 -> 0
A19: C. DIRECT PURCHASE COSTS
A20: C.1 Travel and subsistence | B20: 1 | C20: 3500 | D20: =B20*C20 -> 3500
A21: C.2 Equipment (complete 'Depreciation costs' sheet)
A22: Equipment | D22: =B22*C22 -> 0
A23: Infrastructure | D23: =B23*C23 -> 0
A24: Other assets | D24: =B24*C24 -> 0
A25: C.3 Other goods, works and services
A26: Consumables | D26: =B26*C26 -> 0
A27: Services for meetings, seminars | B27: 4 | C27: 1000 | D27: =B27*C27 -> 4000
A28: Services for dissemination activities (including website) | D28: =B28*C28 -> 0
A29: Publication fees | D29: =B29*C29 -> 0
A30: Other (shipment, insurance, translation, etc.) | D30: =B30*C30 -> 0
A31: D. OTHER COST CATEGORIES
A32: D.1 Financial support to third parties (if applicable in the topic specific conditions) | D32: =B32*C32 -> 0
A33: D.2 Internally invoiced goods and services | D33: =B33*C33 -> 0
A34: D.3 Transnational access to research infrastructure unit costs (if mentioned as eligible in the topic specific conditions) | D34: =B34*C34 -> 0
A35: D.4 Virtual access to research infrastructure unit costs (if mentioned as eligible in the topic specific conditions) | D35: =B35*C35 -> 0
A36: D.5 PCP/PPI procurement costs (if mentioned as eligible in the topic specific conditions) | D36: =B36*C36 -> 0
A38: TOTAL DIRECT PERSONNEL COSTS AND PURCHASE COSTS (A+C) | D38: =SUM(D9:D16)+SUM(D20:D30) -> 28300
A39: TOTAL DIRECT COSTS (A+B+C+D) | D39: =SUM(D8:D36) -> 28300
A41: E. INDIRECT COSTS (25% * (A+C)) | D41: =D38*0.25 -> 7075
A43: F. TOTAL COSTS (A+B+C+D+E) | D43: =D39+D41 -> 35375
A46: =CONCATENATE("COSTS WORK PACKAGE 2: "," ","Research Management and Administration Skill Development – Period 2") -> COSTS WORK PACKAGE 2: Research Management and Administration Skill Development – Period 2
A48: A. DIRECT PERSONNEL COSTS
A49: A.1 Employees (or equivalent)
A50: SENIOR SCIENTISTS (or equivalent in the private sector) | D50: =B50*C50 -> 0
A51: JUNIOR SCIENTISTS (or equivalent in the private sector) | D51: 0
A52: TECHNICAL PERSONNEL (or equivalent in the private sector) | D52: 0
A53: ADMINISTRATIVE PERSONNEL (or equivalent in the private sector) | B53: 10 | C53: 2600 | D53: 26000
A54: OTHERS | D54: 0
A55: A.2 Natural Persons under direct contract | D55: 0
A56: A.3 Seconded Persons | D56: 0
A57: A.4 SME owners and natural person beneficiaries | C57: =5080*VLOOKUP('BE list'!D4,CountryList!A2:B164,2,FALSE) -> 3657.6 | D57: 0
A58: B. DIRECT SUBCONTRACTING COSTS
D59: =B59*C59 -> 0
A60: C. DIRECT PURCHASE COSTS
A61: C.1 Travel and subsistence | B61: 1 | C61: 3500 | D61: =B61*C61 -> 3500
A62: C.2 Equipment (complete 'Depreciation costs' sheet)
A63: Equipment | D63: =B63*C63 -> 0
A64: Infrastructure | D64: =B64*C64 -> 0
A65: Other assets | D65: =B65*C65 -> 0
A66: C.3 Other goods, works and services
A67: Consumables | D67: =B67*C67 -> 0
A68: Services for meetings, seminars | B68: 6 | C68: 1000 | D68: =B68*C68 -> 6000
A69: Services for dissemination activities (including website) | D69: =B69*C69 -> 0
A70: Publication fees | D70: =B70*C70 -> 0
A71: Other (shipment, insurance, translation, etc.) | D71: =B71*C71 -> 0
A72: D. OTHER COST CATEGORIES
A73: D.1 Financial support to third parties (if applicable in the topic specific conditions) | D73: =B73*C73 -> 0
A74: D.2 Internally invoiced goods and services | D74: =B74*C74 -> 0
A75: D.3 Transnational access to research infrastructure unit costs (if mentioned as eligible in the topic specific conditions) | D75: =B75*C75 -> 0
A76: D.4 Virtual access to research infrastructure unit costs (if mentioned as eligible in the topic specific conditions) | D76: =B76*C76 -> 0
A77: D.5 PCP/PPI procurement costs (if mentioned as eligible in the topic specific conditions) | D77: =B77*C77 -> 0
A79: TOTAL DIRECT PERSONNEL COSTS AND PURCHASE COSTS (A+C) | D79: =SUM(D50:D57)+SUM(D61:D71) -> 35500
A80: TOTAL DIRECT COSTS (A+B+C+D) | D80: =SUM(D49:D77) -> 35500
A82: E. INDIRECT COSTS (25% * (A+C)) | D82: =D79*0.25 -> 8875
A84: F. TOTAL COSTS (A+B+C+D+E) | D84: =D80+D82 -> 44375
A87: =CONCATENATE("COSTS WORK PACKAGE 3: "," ","Short termstaff exchanges and trainings for experienced researchers – Period 1") -> COSTS WORK PACKAGE 3: Short termstaff exchanges and trainings for experienced researchers – Period 1
A89: A. DIRECT PERSONNEL COSTS
A90: A.1 Employees (or equivalent)
A91: SENIOR SCIENTISTS (or equivalent in the private sector) | B91: 2 | C91: 5000 | D91: =B91*C91 -> 10000
A92: JUNIOR SCIENTISTS (or equivalent in the private sector) | C92: 2600 | D92: 0
A93: TECHNICAL PERSONNEL (or equivalent in the private sector) | D93: 0
A94: ADMINISTRATIVE PERSONNEL (or equivalent in the private sector) | D94: 0
A95: OTHERS | D95: 0
A96: A.2 Natural Persons under direct contract | D96: 0
A97: A.3 Seconded Persons | D97: 0
A98: A.4 SME owners and natural person beneficiaries | C98: =5080*VLOOKUP('BE list'!D4,CountryList!A2:B164,2,FALSE) -> 3657.6 | D98: 0
A99: B. DIRECT SUBCONTRACTING COSTS
D100: =B100*C100 -> 0
A101: C. DIRECT PURCHASE COSTS
A102: C.1 Travel and subsistence | B102: 2 | C102: 3500 | D102: =B102*C102 -> 7000
A103: C.2 Equipment (complete 'Depreciation costs' sheet)
A104: Equipment | D104: =B104*C104 -> 0
A105: Infrastructure | D105: =B105*C105 -> 0
A106: Other assets | D106: =B106*C106 -> 0
A107: C.3 Other goods, works and services
A108: Consumables | D108: =B108*C108 -> 0
A109: Services for meetings, seminars | D109: =B109*C109 -> 0
A110: Services for dissemination activities (including website) | D110: =B110*C110 -> 0
A111: Publication fees | D111: =B111*C111 -> 0
A112: Other (shipment, insurance, translation, etc.) | D112: =B112*C112 -> 0
A113: D. OTHER COST CATEGORIES
A114: D.1 Financial support to third parties (if applicable in the topic specific conditions) | D114: =B114*C114 -> 0
A115: D.2 Internally invoiced goods and services | D115: =B115*C115 -> 0
A116: D.3 Transnational access to research infrastructure unit costs (if mentioned as eligible in the topic specific conditions) | D116: =B116*C116 -> 0
A117: D.4 Virtual access to research infrastructure unit costs (if mentioned as eligible in the topic specific conditions) | D117: =B117*C117 -> 0
A118: D.5 PCP/PPI procurement costs (if mentioned as eligible in the topic specific conditions) | D118: =B118*C118 -> 0
A120: TOTAL DIRECT PERSONNEL COSTS AND PURCHASE COSTS (A+C) | D120: =SUM(D91:D98)+SUM(D102:D112) -> 17000
A121: TOTAL DIRECT COSTS (A+B+C+D) | D121: =SUM(D90:D118) -> 17000
A123: E. INDIRECT COSTS (25% * (A+C)) | D123: =D120*0.25 -> 4250
A125: F. TOTAL COSTS (A+B+C+D+E) | D125: =D121+D123 -> 21250
A128: =CONCATENATE("COSTS WORK PACKAGE 4: "," ","Short term staff exchanges and trainings for experienced researchers – Period 2") -> COSTS WORK PACKAGE 4: Short term staff exchanges and trainings for experienced researchers – Period 2
A130: A. DIRECT PERSONNEL COSTS
A131: A.1 Employees (or equivalent)
A132: SENIOR SCIENTISTS (or equivalent in the private sector) | B132: 2 | C132: 5000 | D132: =B132*C132 -> 10000
A133: JUNIOR SCIENTISTS (or equivalent in the private sector) | C133: 2600 | D133: 0
A134: TECHNICAL PERSONNEL (or equivalent in the private sector) | D134: 0
A135: ADMINISTRATIVE PERSONNEL (or equivalent in the private sector) | D135: 0
A136: OTHERS | D136: 0
A137: A.2 Natural Persons under direct contract | D137: 0
A138: A.3 Seconded Persons | D138: 0
A139: A.4 SME owners and natural person beneficiaries | C139: =5080*VLOOKUP('BE list'!D4,CountryList!A2:B164,2,FALSE) -> 3657.6 | D139: 0
A140: B. DIRECT SUBCONTRACTING COSTS
D141: =B141*C141 -> 0
A142: C. DIRECT PURCHASE COSTS
A143: C.1 Travel and subsistence | B143: 4 | C143: 3500 | D143: =B143*C143 -> 14000
A144: C.2 Equipment (complete 'Depreciation costs' sheet)
A145: Equipment | D145: =B145*C145 -> 0
A146: Infrastructure | D146: =B146*C146 -> 0
A147: Other assets | D147: =B147*C147 -> 0
A148: C.3 Other goods, works and services
A149: Consumables | D149: =B149*C149 -> 0
A150: Services for meetings, seminars | D150: =B150*C150 -> 0
A151: Services for dissemination activities (including website) | D151: =B151*C151 -> 0
A152: Publication fees | D152: =B152*C152 -> 0
A153: Other (shipment, insurance, translation, etc.) | D153: =B153*C153 -> 0
A154: D. OTHER COST CATEGORIES
A155: D.1 Financial support to third parties (if applicable in the topic specific conditions) | D155: =B155*C155 -> 0
A156: D.2 Internally invoiced goods and services | D156: =B156*C156 -> 0
A157: D.3 Transnational access to research infrastructure unit costs (if mentioned as eligible in the topic specific conditions) | D157: =B157*C157 -> 0
A158: D.4 Virtual access to research infrastructure unit costs (if mentioned as eligible in the topic specific conditions) | D158: =B158*C158 -> 0
A159: D.5 PCP/PPI procurement costs (if mentioned as eligible in the topic specific conditions) | D159: =B159*C159 -> 0
A161: TOTAL DIRECT PERSONNEL COSTS AND PURCHASE COSTS (A+C) | D161: =SUM(D132:D139)+SUM(D143:D153) -> 24000
A162: TOTAL DIRECT COSTS (A+B+C+D) | D162: =SUM(D131:D159) -> 24000
A164: E. INDIRECT COSTS (25% * (A+C)) | D164: =D161*0.25 -> 6000
A166: F. TOTAL COSTS (A+B+C+D+E) | D166: =D162+D164 -> 30000
A169: =CONCATENATE("COSTS WORK PACKAGE 5: "," ","Research internships and trainings for early-stage researchers – Period 1") -> COSTS WORK PACKAGE 5: Research internships and trainings for early-stage researchers – Period 1
A171: A. DIRECT PERSONNEL COSTS
A172: A.1 Employees (or equivalent)
A173: SENIOR SCIENTISTS (or equivalent in the private sector) | B173: 2 | C173: 5000 | D173: =B173*C173 -> 10000
A174: JUNIOR SCIENTISTS (or equivalent in the private sector) | B174: 8 | C174: 2600 | D174: 20800
A175: TECHNICAL PERSONNEL (or equivalent in the private sector) | D175: 0
A176: ADMINISTRATIVE PERSONNEL (or equivalent in the private sector) | D176: 0
A177: OTHERS | D177: 0
A178: A.2 Natural Persons under direct contract | D178: 0
A179: A.3 Seconded Persons | D179: 0
A180: A.4 SME owners and natural person beneficiaries | C180: =5080*VLOOKUP('BE list'!D4,CountryList!A2:B164,2,FALSE) -> 3657.6 | D180: 0
A181: B. DIRECT SUBCONTRACTING COSTS
D182: =B182*C182 -> 0
A183: C. DIRECT PURCHASE COSTS
A184: C.1 Travel and subsistence | B184: 8 | C184: 3500 | D184: =B184*C184 -> 28000
A185: C.2 Equipment (complete 'Depreciation costs' sheet)
A186: Equipment | D186: =B186*C186 -> 0
A187: Infrastructure | D187: =B187*C187 -> 0
A188: Other assets | D188: =B188*C188 -> 0
A189: C.3 Other goods, works and services
A190: Consumables | D190: =B190*C190 -> 0
A191: Services for meetings, seminars | B191: 1 | C191: 8000 | D191: =B191*C191 -> 8000
A192: Services for dissemination activities (including website) | D192: =B192*C192 -> 0
A193: Publication fees | D193: =B193*C193 -> 0
A194: Other (shipment, insurance, translation, etc.) | D194: =B194*C194 -> 0
A195: D. OTHER COST CATEGORIES
A196: D.1 Financial support to third parties (if applicable in the topic specific conditions) | D196: =B196*C196 -> 0
A197: D.2 Internally invoiced goods and services | D197: =B197*C197 -> 0
A198: D.3 Transnational access to research infrastructure unit costs (if mentioned as eligible in the topic specific conditions) | D198: =B198*C198 -> 0
A199: D.4 Virtual access to research infrastructure unit costs (if mentioned as eligible in the topic specific conditions) | D199: =B199*C199 -> 0
A200: D.5 PCP/PPI procurement costs (if mentioned as eligible in the topic specific conditions) | D200: =B200*C200 -> 0
A202: TOTAL DIRECT PERSONNEL COSTS AND PURCHASE COSTS (A+C) | D202: =SUM(D173:D180)+SUM(D184:D194) -> 66800
A203: TOTAL DIRECT COSTS (A+B+C+D) | D203: =SUM(D172:D200) -> 66800
A205: E. INDIRECT COSTS (25% * (A+C)) | D205: =D202*0.25 -> 16700
A207: F. TOTAL COSTS (A+B+C+D+E) | D207: =D203+D205 -> 83500
A210: =CONCATENATE("COSTS WORK PACKAGE 6: "," ","Research internships and trainings for early-stage researchers – Period 2") -> COSTS WORK PACKAGE 6: Research internships and trainings for early-stage researchers – Period 2
A212: A. DIRECT PERSONNEL COSTS
A213: A.1 Employees (or equivalent)
A214: SENIOR SCIENTISTS (or equivalent in the private sector) | B214: 2 | C214: 5000 | D214: =B214*C214 -> 10000
A215: JUNIOR SCIENTISTS (or equivalent in the private sector) | B215: 12 | C215: 2600 | D215: 31200
A216: TECHNICAL PERSONNEL (or equivalent in the private sector) | D216: 0
A217: ADMINISTRATIVE PERSONNEL (or equivalent in the private sector) | D217: 0
A218: OTHERS | D218: 0
A219: A.2 Natural Persons under direct contract | D219: 0
A220: A.3 Seconded Persons | D220: 0
A221: A.4 SME owners and natural person beneficiaries | C221: =5080*VLOOKUP('BE list'!D4,CountryList!A2:B164,2,FALSE) -> 3657.6 | D221: 0
A222: B. DIRECT SUBCONTRACTING COSTS
B223: 16 | C223: 3500 | D223: =B223*C223 -> 56000
A224: C. DIRECT PURCHASE COSTS
A225: C.1 Travel and subsistence | D225: =B225*C225 -> 0
A226: C.2 Equipment (complete 'Depreciation costs' sheet)
A227: Equipment | D227: =B227*C227 -> 0
A228: Infrastructure | D228: =B228*C228 -> 0
A229: Other assets | D229: =B229*C229 -> 0
A230: C.3 Other goods, works and services
A231: Consumables | D231: =B231*C231 -> 0
A232: Services for meetings, seminars | D232: =B232*C232 -> 0
... 153 more rows

Sheet BE2
A1: BENEFICIARY 2 - CALCULATION SHEET | C1: View Summary
B2: Linköpings universitet
A3: COST CATEGORY | B3: UNITS | C3: COST PER UNIT | D3: BE TOTAL COSTS
A5: =CONCATENATE("COSTS WORK PACKAGE 1: "," ","Research Management and Administration Skill Development – Period 1") -> COSTS WORK PACKAGE 1: Research Management and Administration Skill Development – Period 1
A7: A. DIRECT PERSONNEL COSTS
A8: A.1 Employees (or equivalent)
A9: SENIOR SCIENTISTS (or equivalent in the private sector) | D9: =B9*C9 -> 0
A10: JUNIOR SCIENTISTS (or equivalent in the private sector) | D10: 0
A11: TECHNICAL PERSONNEL (or equivalent in the private sector) | D11: 0
A12: ADMINISTRATIVE PERSONNEL (or equivalent in the private sector) | B12: 2 | C12: 7000 | D12: 14000
A13: OTHERS | D13: 0
A14: A.2 Natural Persons under direct contract | D14: 0
A15: A.3 Seconded Persons | D15: 0
A16: A.4 SME owners and natural person beneficiaries | C16: =5080*VLOOKUP('BE list'!D5,CountryList!A2:B164,2,FALSE) -> 6370.32 | D16: 0
A17: B. DIRECT SUBCONTRACTING COSTS
D18: =B18*C18 -> 0
A19: C. DIRECT PURCHASE COSTS
A20: C.1 Travel and subsistence | B20: 0.5 | C20: 3500 | D20: =B20*C20 -> 1750
A21: C.2 Equipment (complete 'Depreciation costs' sheet)
A22: Equipment | D22: =B22*C22 -> 0
A23: Infrastructure | D23: =B23*C23 -> 0
A24: Other assets | D24: =B24*C24 -> 0
A25: C.3 Other goods, works and services
A26: Consumables | D26: =B26*C26 -> 0
A27: Services for meetings, seminars | D27: =B27*C27 -> 0
A28: Services for dissemination activities (including website) | D28: =B28*C28 -> 0
A29: Publication fees | D29: =B29*C29 -> 0
A30: Other (shipment, insurance, translation, etc.) | D30: =B30*C30 -> 0
A31: D. OTHER COST CATEGORIES
A32: D.1 Financial support to third parties (if applicable in the topic specific conditions) | D32: =B32*C32 -> 0
A33: D.2 Internally invoiced goods and services | D33: =B33*C33 -> 0
A34: D.3 Transnational access to research infrastructure unit costs (if mentioned as eligible in the topic specific conditions) | D34: =B34*C34 -> 0
A35: D.4 Virtual access to research infrastructure unit costs (if mentioned as eligible in the topic specific conditions) | D35: =B35*C35 -> 0
A36: D.5 PCP/PPI procurement costs (if mentioned as eligible in the topic specific conditions) | D36: =B36*C36 -> 0
A38: TOTAL DIRECT PERSONNEL COSTS AND PURCHASE COSTS (A+C) | D38: =SUM(D9:D16)+SUM(D20:D30) -> 15750
A39: TOTAL DIRECT COSTS (A+B+C+D) | D39: =SUM(D8:D36) -> 15750
A41: E. INDIRECT COSTS (25% * (A+C)) | D41: =D38*0.25 -> 3937.5
A43: F. TOTAL COSTS (A+B+C+D+E) | D43: =D39+D41 -> 19687.5
A46: =CONCATENATE("COSTS WORK PACKAGE 2: "," ","Research Management and Administration Skill Development – Period 2") -> COSTS WORK PACKAGE 2: Research Management and Administration Skill Development – Period 2
A48: A. DIRECT PERSONNEL COSTS
A49: A.1 Employees (or equivalent)
A50: SENIOR SCIENTISTS (or equivalent in the private sector) | D50: =B50*C50 -> 0
A51: JUNIOR SCIENTISTS (or equivalent in the private sector) | D51: 0
A52: TECHNICAL PERSONNEL (or equivalent in the private sector) | D52: 0
A53: ADMINISTRATIVE PERSONNEL (or equivalent in the private sector) | B53: 3 | C53: 7000 | D53: 21000
A54: OTHERS | D54: 0
A55: A.2 Natural Persons under direct contract | D55: 0
A56: A.3 Seconded Persons | D56: 0
A57: A.4 SME owners and natural person beneficiaries | C57: =5080*VLOOKUP('BE list'!D5,CountryList!A2:B164,2,FALSE) -> 6370.32 | D57: 0
A58: B. DIRECT SUBCONTRACTING COSTS
D59: =B59*C59 -> 0
A60: C. DIRECT PURCHASE COSTS
A61: C.1 Travel and subsistence | B61: 1 | C61: 3500 | D61: =B61*C61 -> 3500
A62: C.2 Equipment (complete 'Depreciation costs' sheet)
A63: Equipment | D63: =B63*C63 -> 0
A64: Infrastructure | D64: =B64*C64 -> 0
A65: Other assets | D65: =B65*C65 -> 0
A66: C.3 Other goods, works and services
A67: Consumables | D67: =B67*C67 -> 0
A68: Services for meetings, seminars | D68: =B68*C68 -> 0
A69: Services for dissemination activities (including website) | D69: =B69*C69 -> 0
A70: Publication fees | D70: =B70*C70 -> 0
A71: Other (shipment, insurance, translation, etc.) | D71: =B71*C71 -> 0
A72: D. OTHER COST CATEGORIES
A73: D.1 Financial support to third parties (if applicable in the topic specific conditions) | D73: =B73*C73 -> 0
A74: D.2 Internally invoiced goods and services | D74: =B74*C74 -> 0
A75: D.3 Transnational access to research infrastructure unit costs (if mentioned as eligible in the topic specific conditions) | D75: =B75*C75 -> 0
A76: D.4 Virtual access to research infrastructure unit costs (if mentioned as eligible in the topic specific conditions) | D76: =B76*C76 -> 0
A77: D.5 PCP/PPI procurement costs (if mentioned as eligible in the topic specific conditions) | D77: =B77*C77 -> 0
A79: TOTAL DIRECT PERSONNEL COSTS AND PURCHASE COSTS (A+C) | D79: =SUM(D50:D57)+SUM(D61:D71) -> 24500
A80: TOTAL DIRECT COSTS (A+B+C+D) | D80: =SUM(D49:D77) -> 24500
A82: E. INDIRECT COSTS (25% * (A+C)) | D82: =D79*0.25 -> 6125
A84: F. TOTAL COSTS (A+B+C+D+E) | D84: =D80+D82 -> 30625
A87: =CONCATENATE("COSTS WORK PACKAGE 3: "," ","Short termstaff exchanges and trainings for experienced researchers – Period 1") -> COSTS WORK PACKAGE 3: Short termstaff exchanges and trainings for experienced researchers – Period 1
A89: A. DIRECT PERSONNEL COSTS
A90: A.1 Employees (or equivalent)
A91: SENIOR SCIENTISTS (or equivalent in the private sector) | B91: 2 | C91: 7661 | D91: =B91*C91 -> 15322
A92: JUNIOR SCIENTISTS (or equivalent in the private sector) | D92: 0
A93: TECHNICAL PERSONNEL (or equivalent in the private sector) | D93: 0
A94: ADMINISTRATIVE PERSONNEL (or equivalent in the private sector) | D94: 0
A95: OTHERS | D95: 0
A96: A.2 Natural Persons under direct contract | D96: 0
A97: A.3 Seconded Persons | D97: 0
A98: A.4 SME owners and natural person beneficiaries | C98: =5080*VLOOKUP('BE list'!D5,CountryList!A2:B164,2,FALSE) -> 6370.32 | D98: 0
A99: B. DIRECT SUBCONTRACTING COSTS
D100: =B100*C100 -> 0
A101: C. DIRECT PURCHASE COSTS
A102: C.1 Travel and subsistence | B102: 1 | C102: 3500 | D102: =B102*C102 -> 3500
A103: C.2 Equipment (complete 'Depreciation costs' sheet)
A104: Equipment | D104: =B104*C104 -> 0
A105: Infrastructure | D105: =B105*C105 -> 0
A106: Other assets | D106: =B106*C106 -> 0
A107: C.3 Other goods, works and services
A108: Consumables | D108: =B108*C108 -> 0
A109: Services for meetings, seminars | D109: =B109*C109 -> 0
A110: Services for dissemination activities (including website) | D110: =B110*C110 -> 0
A111: Publication fees | D111: =B111*C111 -> 0
A112: Other (shipment, insurance, translation, etc.) | D112: =B112*C112 -> 0
A113: D. OTHER COST CATEGORIES
A114: D.1 Financial support to third parties (if applicable in the topic specific conditions) | D114: =B114*C114 -> 0
A115: D.2 Internally invoiced goods and services | D115: =B115*C115 -> 0
A116: D.3 Transnational access to research infrastructure unit costs (if mentioned as eligible in the topic specific conditions) | D116: =B116*C116 -> 0
A117: D.4 Virtual access to research infrastructure unit costs (if mentioned as eligible in the topic specific conditions) | D117: =B117*C117 -> 0
A118: D.5 PCP/PPI procurement costs (if mentioned as eligible in the topic specific conditions) | D118: =B118*C118 -> 0
A120: TOTAL DIRECT PERSONNEL COSTS AND PURCHASE COSTS (A+C) | D120: =SUM(D91:D98)+SUM(D102:D112) -> 18822
A121: TOTAL DIRECT COSTS (A+B+C+D) | D121: =SUM(D90:D118) -> 18822
A123: E. INDIRECT COSTS (25% * (A+C)) | D123: =D120*0.25 -> 4705.5
A125: F. TOTAL COSTS (A+B+C+D+E) | D125: =D121+D123 -> 23527.5
A128: =CONCATENATE("COSTS WORK PACKAGE 4: "," ","Short term staff exchanges and trainings for experienced researchers – Period 2") -> COSTS WORK PACKAGE 4: Short term staff exchanges and trainings for experienced researchers – Period 2
A130: A. DIRECT PERSONNEL COSTS
A131: A.1 Employees (or equivalent)
A132: SENIOR SCIENTISTS (or equivalent in the private sector) | B132: 3 | C132: 7661 | D132: =B132*C132 -> 22983
A133: JUNIOR SCIENTISTS (or equivalent in the private sector) | D133: 0
A134: TECHNICAL PERSONNEL (or equivalent in the private sector) | D134: 0
A135: ADMINISTRATIVE PERSONNEL (or equivalent in the private sector) | D135: 0
A136: OTHERS | D136: 0
A137: A.2 Natural Persons under direct contract | D137: 0
A138: A.3 Seconded Persons | D138: 0
A139: A.4 SME owners and natural person beneficiaries | C139: =5080*VLOOKUP('BE list'!D5,CountryList!A2:B164,2,FALSE) -> 6370.32 | D139: 0
A140: B. DIRECT SUBCONTRACTING COSTS
D141: =B141*C141 -> 0
A142: C. DIRECT PURCHASE COSTS
A143: C.1 Travel and subsistence | B143: 2 | C143: 3500 | D143: =B143*C143 -> 7000
A144: C.2 Equipment (complete 'Depreciation costs' sheet)
A145: Equipment | D145: =B145*C145 -> 0
A146: Infrastructure | D146: =B146*C146 -> 0
A147: Other assets | D147: =B147*C147 -> 0
A148: C.3 Other goods, works and services
A149: Consumables | D149: =B149*C149 -> 0
A150: Services for meetings, seminars | D150: =B150*C150 -> 0
A151: Services for dissemination activities (including website) | D151: =B151*C151 -> 0
A152: Publication fees | D152: =B152*C152 -> 0
A153: Other (shipment, insurance, translation, etc.) | D153: =B153*C153 -> 0
A154: D. OTHER COST CATEGORIES
A155: D.1 Financial support to third parties (if applicable in the topic specific conditions) | D155: =B155*C155 -> 0
A156: D.2 Internally invoiced goods and services | D156: =B156*C156 -> 0
A157: D.3 Transnational access to research infrastructure unit costs (if mentioned as eligible in the topic specific conditions) | D157: =B157*C157 -> 0
A158: D.4 Virtual access to research infrastructure unit costs (if mentioned as eligible in the topic specific conditions) | D158: =B158*C158 -> 0
A159: D.5 PCP/PPI procurement costs (if mentioned as eligible in the topic specific conditions) | D159: =B159*C159 -> 0
A161: TOTAL DIRECT PERSONNEL COSTS AND PURCHASE COSTS (A+C) | D161: =SUM(D132:D139)+SUM(D143:D153) -> 29983
A162: TOTAL DIRECT COSTS (A+B+C+D) | D162: =SUM(D131:D159) -> 29983
A164: E. INDIRECT COSTS (25% * (A+C)) | D164: =D161*0.25 -> 7495.75
A166: F. TOTAL COSTS (A+B+C+D+E) | D166: =D162+D164 -> 37478.75
A169: =CONCATENATE("COSTS WORK PACKAGE 5: "," ","Research internships and trainings for early-stage researchers – Period 1") -> COSTS WORK PACKAGE 5: Research internships and trainings for early-stage researchers – Period 1
A171: A. DIRECT PERSONNEL COSTS
A172: A.1 Employees (or equivalent)
A173: SENIOR SCIENTISTS (or equivalent in the private sector) | B173: 2 | C173: 7661 | D173: =B173*C173 -> 15322
A174: JUNIOR SCIENTISTS (or equivalent in the private sector) | D174: 0
A175: TECHNICAL PERSONNEL (or equivalent in the private sector) | D175: 0
A176: ADMINISTRATIVE PERSONNEL (or equivalent in the private sector) | D176: 0
A177: OTHERS | D177: 0
A178: A.2 Natural Persons under direct contract | D178: 0
A179: A.3 Seconded Persons | D179: 0
A180: A.4 SME owners and natural person beneficiaries | C180: =5080*VLOOKUP('BE list'!D5,CountryList!A2:B164,2,FALSE) -> 6370.32 | D180: 0
A181: B. DIRECT SUBCONTRACTING COSTS
D182: =B182*C182 -> 0
A183: C. DIRECT PURCHASE COSTS
A184: C.1 Travel and subsistence | B184: 4 | C184: 3500 | D184: =B184*C184 -> 14000
A185: C.2 Equipment (complete 'Depreciation costs' sheet)
A186: Equipment | D186: =B186*C186 -> 0
A187: Infrastructure | D187: =B187*C187 -> 0
A188: Other assets | D188: =B188*C188 -> 0
A189: C.3 Other goods, works and services
A190: Consumables | D190: =B190*C190 -> 0
A191: Services for meetings, seminars | D191: =B191*C191 -> 0
A192: Services for dissemination activities (including website) | D192: =B192*C192 -> 0
A193: Publication fees | D193: =B193*C193 -> 0
A194: Other (shipment, insurance, translation, etc.) | D194: =B194*C194 -> 0
A195: D. OTHER COST CATEGORIES
A196: D.1 Financial support to third parties (if applicable in the topic specific conditions) | D196: =B196*C196 -> 0
A197: D.2 Internally invoiced goods and services | D197: =B197*C197 -> 0
A198: D.3 Transnational access to research infrastructure unit costs (if mentioned as eligible in the topic specific conditions) | D198: =B198*C198 -> 0
A199: D.4 Virtual access to research infrastructure unit costs (if mentioned as eligible in the topic specific conditions) | D199: =B199*C199 -> 0
A200: D.5 PCP/PPI procurement costs (if mentioned as eligible in the topic specific conditions) | D200: =B200*C200 -> 0
A202: TOTAL DIRECT PERSONNEL COSTS AND PURCHASE COSTS (A+C) | D202: =SUM(D173:D180)+SUM(D184:D194) -> 29322
A203: TOTAL DIRECT COSTS (A+B+C+D) | D203: =SUM(D172:D200) -> 29322
A205: E. INDIRECT COSTS (25% * (A+C)) | D205: =D202*0.25 -> 7330.5
A207: F. TOTAL COSTS (A+B+C+D+E) | D207: =D203+D205 -> 36652.5
A210: =CONCATENATE("COSTS WORK PACKAGE 6: "," ","Research internships and trainings for early-stage researchers – Period 2") -> COSTS WORK PACKAGE 6: Research internships and trainings for early-stage researchers – Period 2
A212: A. DIRECT PERSONNEL COSTS
A213: A.1 Employees (or equivalent)
A214: SENIOR SCIENTISTS (or equivalent in the private sector) | B214: 3 | C214: 7661 | D214: =B214*C214 -> 22983
A215: JUNIOR SCIENTISTS (or equivalent in the private sector) | D215: 0
A216: TECHNICAL PERSONNEL (or equivalent in the private sector) | D216: 0
A217: ADMINISTRATIVE PERSONNEL (or equivalent in the private sector) | D217: 0
A218: OTHERS | D218: 0
A219: A.2 Natural Persons under direct contract | D219: 0
A220: A.3 Seconded Persons | D220: 0
A221: A.4 SME owners and natural person beneficiaries | C221: =5080*VLOOKUP('BE list'!D5,CountryList!A2:B164,2,FALSE) -> 6370.32 | D221: 0
A222: B. DIRECT SUBCONTRACTING COSTS
D223: =B223*C223 -> 0
A224: C. DIRECT PURCHASE COSTS
A225: C.1 Travel and subsistence | B225: 8 | C225: 3500 | D225: =B225*C225 -> 28000
A226: C.2 Equipment (complete 'Depreciation costs' sheet)
A227: Equipment | D227: =B227*C227 -> 0
A228: Infrastructure | D228: =B228*C228 -> 0
A229: Other assets | D229: =B229*C229 -> 0
A230: C.3 Other goods, works and services
A231: Consumables | D231: =B231*C231 -> 0
A232: Services for meetings, seminars | D232: =B232*C232 -> 0
... 153 more rows

Sheet BE3
A1: BENEFICIARY 3 - CALCULATION SHEET | C1: View Summary
B2: Loughborough University
A3: COST CATEGORY | B3: UNITS | C3: COST PER UNIT | D3: BE TOTAL COSTS
A5: =CONCATENATE("COSTS WORK PACKAGE 1: "," ","Research Management and Administration Skill Development – Period 1") -> COSTS WORK PACKAGE 1: Research Management and Administration Skill Development – Period 1
A7: A. DIRECT PERSONNEL COSTS
A8: A.1 Employees (or equivalent)
A9: SENIOR SCIENTISTS (or equivalent in the private sector) | D9: =B9*C9 -> 0
A10: JUNIOR SCIENTISTS (or equivalent in the private sector) | D10: 0
A11: TECHNICAL PERSONNEL (or equivalent in the private sector) | D11: 0
A12: ADMINISTRATIVE PERSONNEL (or equivalent in the private sector) | B12: 2 | C12: 5000 | D12: 10000
A13: OTHERS | D13: 0
A14: A.2 Natural Persons under direct contract | D14: 0
A15: A.3 Seconded Persons | D15: 0
A16: A.4 SME owners and natural person beneficiaries | C16: =5080*VLOOKUP('BE list'!D6,CountryList!A2:B164,2,FALSE) -> 6954.52 | D16: 0
A17: B. DIRECT SUBCONTRACTING COSTS
D18: =B18*C18 -> 0
A19: C. DIRECT PURCHASE COSTS
A20: C.1 Travel and subsistence | B20: 0.5 | C20: 3500 | D20: =B20*C20 -> 1750
A21: C.2 Equipment (complete 'Depreciation costs' sheet)
A22: Equipment | D22: =B22*C22 -> 0
A23: Infrastructure | D23: =B23*C23 -> 0
A24: Other assets | D24: =B24*C24 -> 0
A25: C.3 Other goods, works and services
A26: Consumables | D26: =B26*C26 -> 0
A27: Services for meetings, seminars | D27: =B27*C27 -> 0
A28: Services for dissemination activities (including website) | D28: =B28*C28 -> 0
A29: Publication fees | D29: =B29*C29 -> 0
A30: Other (shipment, insurance, translation, etc.) | D30: =B30*C30 -> 0
A31: D. OTHER COST CATEGORIES
A32: D.1 Financial support to third parties (if applicable in the topic specific conditions) | D32: =B32*C32 -> 0
A33: D.2 Internally invoiced goods and services | D33: =B33*C33 -> 0
A34: D.3 Transnational access to research infrastructure unit costs (if mentioned as eligible in the topic specific conditions) | D34: =B34*C34 -> 0
A35: D.4 Virtual access to research infrastructure unit costs (if mentioned as eligible in the topic specific conditions) | D35: =B35*C35 -> 0
A36: D.5 PCP/PPI procurement costs (if mentioned as eligible in the topic specific conditions) | D36: =B36*C36 -> 0
A38: TOTAL DIRECT PERSONNEL COSTS AND PURCHASE COSTS (A+C) | D38: =SUM(D9:D16)+SUM(D20:D30) -> 11750
A39: TOTAL DIRECT COSTS (A+B+C+D) | D39: =SUM(D8:D36) -> 11750
A41: E. INDIRECT COSTS (25% * (A+C)) | D41: =D38*0.25 -> 2937.5
A43: F. TOTAL COSTS (A+B+C+D+E) | D43: =D39+D41 -> 14687.5
A46: =CONCATENATE("COSTS WORK PACKAGE 2: "," ","Research Management and Administration Skill Development – Period 2") -> COSTS WORK PACKAGE 2: Research Management and Administration Skill Development – Period 2
A48: A. DIRECT PERSONNEL COSTS
A49: A.1 Employees (or equivalent)
A50: SENIOR SCIENTISTS (or equivalent in the private sector) | C50: 6764 | D50: =B50*C50 -> 0
A51: JUNIOR SCIENTISTS (or equivalent in the private sector) | D51: 0
A52: TECHNICAL PERSONNEL (or equivalent in the private sector) | D52: 0
A53: ADMINISTRATIVE PERSONNEL (or equivalent in the private sector) | B53: 3 | C53: 5000 | D53: 15000
A54: OTHERS | D54: 0
A55: A.2 Natural Persons under direct contract | D55: 0
A56: A.3 Seconded Persons | D56: 0
A57: A.4 SME owners and natural person beneficiaries | C57: =5080*VLOOKUP('BE list'!D6,CountryList!A2:B164,2,FALSE) -> 6954.52 | D57: 0
A58: B. DIRECT SUBCONTRACTING COSTS
D59: =B59*C59 -> 0
A60: C. DIRECT PURCHASE COSTS
A61: C.1 Travel and subsistence | B61: 1 | C61: 3500 | D61: =B61*C61 -> 3500
A62: C.2 Equipment (complete 'Depreciation costs' sheet)
A63: Equipment | D63: =B63*C63 -> 0
A64: Infrastructure | D64: =B64*C64 -> 0
A65: Other assets | D65: =B65*C65 -> 0
A66: C.3 Other goods, works and services
A67: Consumables | D67: =B67*C67 -> 0
A68: Services for meetings, seminars | D68: =B68*C68 -> 0
A69: Services for dissemination activities (including website) | D69: =B69*C69 -> 0
A70: Publication fees | D70: =B70*C70 -> 0
A71: Other (shipment, insurance, translation, etc.) | D71: =B71*C71 -> 0
A72: D. OTHER COST CATEGORIES
A73: D.1 Financial support to third parties (if applicable in the topic specific conditions) | D73: =B73*C73 -> 0
A74: D.2 Internally invoiced goods and services | D74: =B74*C74 -> 0
A75: D.3 Transnational access to research infrastructure unit costs (if mentioned as eligible in the topic specific conditions) | D75: =B75*C75 -> 0
A76: D.4 Virtual access to research infrastructure unit costs (if mentioned as eligible in the topic specific conditions) | D76: =B76*C76 -> 0
A77: D.5 PCP/PPI procurement costs (if mentioned as eligible in the topic specific conditions) | D77: =B77*C77 -> 0
A79: TOTAL DIRECT PERSONNEL COSTS AND PURCHASE COSTS (A+C) | D79: =SUM(D50:D57)+SUM(D61:D71) -> 18500
A80: TOTAL DIRECT COSTS (A+B+C+D) | D80: =SUM(D49:D77) -> 18500
A82: E. INDIRECT COSTS (25% * (A+C)) | D82: =D79*0.25 -> 4625
A84: F. TOTAL COSTS (A+B+C+D+E) | D84: =D80+D82 -> 23125
A87: =CONCATENATE("COSTS WORK PACKAGE 3: "," ","Short termstaff exchanges and trainings for experienced researchers – Period 1") -> COSTS WORK PACKAGE 3: Short termstaff exchanges and trainings for experienced researchers – Period 1
A89: A. DIRECT PERSONNEL COSTS
A90: A.1 Employees (or equivalent)
A91: SENIOR SCIENTISTS (or equivalent in the private sector) | B91: 2 | C91: 6764 | D91: =B91*C91 -> 13528
A92: JUNIOR SCIENTISTS (or equivalent in the private sector) | D92: 0
A93: TECHNICAL PERSONNEL (or equivalent in the private sector) | D93: 0
A94: ADMINISTRATIVE PERSONNEL (or equivalent in the private sector) | D94: 0
A95: OTHERS | D95: 0
A96: A.2 Natural Persons under direct contract | D96: 0
A97: A.3 Seconded Persons | D97: 0
A98: A.4 SME owners and natural person beneficiaries | C98: =5080*VLOOKUP('BE list'!D6,CountryList!A2:B164,2,FALSE) -> 6954.52 | D98: 0
A99: B. DIRECT SUBCONTRACTING COSTS
D100: =B100*C100 -> 0
A101: C. DIRECT PURCHASE COSTS
A102: C.1 Travel and subsistence | B102: 1 | C102: 3500 | D102: =B102*C102 -> 3500
A103: C.2 Equipment (complete 'Depreciation costs' sheet)
A104: Equipment | D104: =B104*C104 -> 0
A105: Infrastructure | D105: =B105*C105 -> 0
A106: Other assets | D106: =B106*C106 -> 0
A107: C.3 Other goods, works and services
A108: Consumables | D108: =B108*C108 -> 0
A109: Services for meetings, seminars | D109: =B109*C109 -> 0
A110: Services for dissemination activities (including website) | D110: =B110*C110 -> 0
A111: Publication fees | D111: =B111*C111 -> 0
A112: Other (shipment, insurance, translation, etc.) | D112: =B112*C112 -> 0
A113: D. OTHER COST CATEGORIES
A114: D.1 Financial support to third parties (if applicable in the topic specific conditions) | D114: =B114*C114 -> 0
A115: D.2 Internally invoiced goods and services | D115: =B115*C115 -> 0
A116: D.3 Transnational access to research infrastructure unit costs (if mentioned as eligible in the topic specific conditions) | D116: =B116*C116 -> 0
A117: D.4 Virtual access to research infrastructure unit costs (if mentioned as eligible in the topic specific conditions) | D117: =B117*C117 -> 0
A118: D.5 PCP/PPI procurement costs (if mentioned as eligible in the topic specific conditions) | D118: =B118*C118 -> 0
A120: TOTAL DIRECT PERSONNEL COSTS AND PURCHASE COSTS (A+C) | D120: =SUM(D91:D98)+SUM(D102:D112) -> 17028
A121: TOTAL DIRECT COSTS (A+B+C+D) | D121: =SUM(D90:D118) -> 17028
A123: E. INDIRECT COSTS (25% * (A+C)) | D123: =D120*0.25 -> 4257
A125: F. TOTAL COSTS (A+B+C+D+E) | D125: =D121+D123 -> 21285
A128: =CONCATENATE("COSTS WORK PACKAGE 4: "," ","Short term staff exchanges and trainings for experienced researchers – Period 2") -> COSTS WORK PACKAGE 4: Short term staff exchanges and trainings for experienced researchers – Period 2
A130: A. DIRECT PERSONNEL COSTS
A131: A.1 Employees (or equivalent)
A132: SENIOR SCIENTISTS (or equivalent in the private sector) | B132: 3 | C132: 6764 | D132: =B132*C132 -> 20292
A133: JUNIOR SCIENTISTS (or equivalent in the private sector) | D133: 0
A134: TECHNICAL PERSONNEL (or equivalent in the private sector) | D134: 0
A135: ADMINISTRATIVE PERSONNEL (or equivalent in the private sector) | D135: 0
A136: OTHERS | D136: 0
A137: A.2 Natural Persons under direct contract | D137: 0
A138: A.3 Seconded Persons | D138: 0
A139: A.4 SME owners and natural person beneficiaries | C139: =5080*VLOOKUP('BE list'!D6,CountryList!A2:B164,2,FALSE) -> 6954.52 | D139: 0
A140: B. DIRECT SUBCONTRACTING COSTS
D141: =B141*C141 -> 0
A142: C. DIRECT PURCHASE COSTS
A143: C.1 Travel and subsistence | B143: 2 | C143: 3500 | D143: =B143*C143 -> 7000
A144: C.2 Equipment (complete 'Depreciation costs' sheet)
A145: Equipment | D145: =B145*C145 -> 0
A146: Infrastructure | D146: =B146*C146 -> 0
A147: Other assets | D147: =B147*C147 -> 0
A148: C.3 Other goods, works and services
A149: Consumables | D149: =B149*C149 -> 0
A150: Services for meetings, seminars | D150: =B150*C150 -> 0
A151: Services for dissemination activities (including website) | D151: =B151*C151 -> 0
A152: Publication fees | D152: =B152*C152 -> 0
A153: Other (shipment, insurance, translation, etc.) | D153: =B153*C153 -> 0
A154: D. OTHER COST CATEGORIES
A155: D.1 Financial support to third parties (if applicable in the topic specific conditions) | D155: =B155*C155 -> 0
A156: D.2 Internally invoiced goods and services | D156: =B156*C156 -> 0
A157: D.3 Transnational access to research infrastructure unit costs (if mentioned as eligible in the topic specific conditions) | D157: =B157*C157 -> 0
A158: D.4 Virtual access to research infrastructure unit costs (if mentioned as eligible in the topic specific conditions) | D158: =B158*C158 -> 0
A159: D.5 PCP/PPI procurement costs (if mentioned as eligible in the topic specific conditions) | D159: =B159*C159 -> 0
A161: TOTAL DIRECT PERSONNEL COSTS AND PURCHASE COSTS (A+C) | D161: =SUM(D132:D139)+SUM(D143:D153) -> 27292
A162: TOTAL DIRECT COSTS (A+B+C+D) | D162: =SUM(D131:D159) -> 27292
A164: E. INDIRECT COSTS (25% * (A+C)) | D164: =D161*0.25 -> 6823
A166: F. TOTAL COSTS (A+B+C+D+E) | D166: =D162+D164 -> 34115
A169: =CONCATENATE("COSTS WORK PACKAGE 5: "," ","Research internships and trainings for early-stage researchers – Period 1") -> COSTS WORK PACKAGE 5: Research internships and trainings for early-stage researchers – Period 1
A171: A. DIRECT PERSONNEL COSTS
A172: A.1 Employees (or equivalent)
A173: SENIOR SCIENTISTS (or equivalent in the private sector) | B173: 3 | C173: 6764 | D173: =B173*C173 -> 20292
A174: JUNIOR SCIENTISTS (or equivalent in the private sector) | D174: 0
A175: TECHNICAL PERSONNEL (or equivalent in the private sector) | D175: 0
A176: ADMINISTRATIVE PERSONNEL (or equivalent in the private sector) | D176: 0
A177: OTHERS | D177: 0
A178: A.2 Natural Persons under direct contract | D178: 0
A179: A.3 Seconded Persons | D179: 0
A180: A.4 SME owners and natural person beneficiaries | C180: =5080*VLOOKUP('BE list'!D6,CountryList!A2:B164,2,FALSE) -> 6954.52 | D180: 0
A181: B. DIRECT SUBCONTRACTING COSTS
D182: =B182*C182 -> 0
A183: C. DIRECT PURCHASE COSTS
A184: C.1 Travel and subsistence | B184: 4 | C184: 3500 | D184: =B184*C184 -> 14000
A185: C.2 Equipment (complete 'Depreciation costs' sheet)
A186: Equipment | D186: =B186*C186 -> 0
A187: Infrastructure | D187: =B187*C187 -> 0
A188: Other assets | D188: =B188*C188 -> 0
A189: C.3 Other goods, works and services
A190: Consumables | D190: =B190*C190 -> 0
A191: Services for meetings, seminars | D191: =B191*C191 -> 0
A192: Services for dissemination activities (including website) | D192: =B192*C192 -> 0
A193: Publication fees | D193: =B193*C193 -> 0
A194: Other (shipment, insurance, translation, etc.) | D194: =B194*C194 -> 0
A195: D. OTHER COST CATEGORIES
A196: D.1 Financial support to third parties (if applicable in the topic specific conditions) | D196: =B196*C196 -> 0
A197: D.2 Internally invoiced goods and services | D197: =B197*C197 -> 0
A198: D.3 Transnational access to research infrastructure unit costs (if mentioned as eligible in the topic specific conditions) | D198: =B198*C198 -> 0
A199: D.4 Virtual access to research infrastructure unit costs (if mentioned as eligible in the topic specific conditions) | D199: =B199*C199 -> 0
A200: D.5 PCP/PPI procurement costs (if mentioned as eligible in the topic specific conditions) | D200: =B200*C200 -> 0
A202: TOTAL DIRECT PERSONNEL COSTS AND PURCHASE COSTS (A+C) | D202: =SUM(D173:D180)+SUM(D184:D194) -> 34292
A203: TOTAL DIRECT COSTS (A+B+C+D) | D203: =SUM(D172:D200) -> 34292
A205: E. INDIRECT COSTS (25% * (A+C)) | D205: =D202*0.25 -> 8573
A207: F. TOTAL COSTS (A+B+C+D+E) | D207: =D203+D205 -> 42865
A210: =CONCATENATE("COSTS WORK PACKAGE 6: "," ","Research internships and trainings for early-stage researchers – Period 2") -> COSTS WORK PACKAGE 6: Research internships and trainings for early-stage researchers – Period 2
A212: A. DIRECT PERSONNEL COSTS
A213: A.1 Employees (or equivalent)
A214: SENIOR SCIENTISTS (or equivalent in the private sector) | B214: 4 | C214: 6764 | D214: =B214*C214 -> 27056
A215: JUNIOR SCIENTISTS (or equivalent in the private sector) | D215: 0
A216: TECHNICAL PERSONNEL (or equivalent in the private sector) | D216: 0
A217: ADMINISTRATIVE PERSONNEL (or equivalent in the private sector) | D217: 0
A218: OTHERS | D218: 0
A219: A.2 Natural Persons under direct contract | D219: 0
A220: A.3 Seconded Persons | D220: 0
A221: A.4 SME owners and natural person beneficiaries | C221: =5080*VLOOKUP('BE list'!D6,CountryList!A2:B164,2,FALSE) -> 6954.52 | D221: 0
A222: B. DIRECT SUBCONTRACTING COSTS
D223: =B223*C223 -> 0
A224: C. DIRECT PURCHASE COSTS
A225: C.1 Travel and subsistence | B225: 8 | C225: 3500 | D225: =B225*C225 -> 28000
A226: C.2 Equipment (complete 'Depreciation costs' sheet)
A227: Equipment | D227: =B227*C227 -> 0
A228: Infrastructure | D228: =B228*C228 -> 0
A229: Other assets | D229: =B229*C229 -> 0
A230: C.3 Other goods, works and services
A231: Consumables | D231: =B231*C231 -> 0
A232: Services for meetings, seminars | D232: =B232*C232 -> 0
... 153 more rows

Sheet BE4
A1: BENEFICIARY 4 - CALCULATION SHEET | C1: View Summary
B2: JustInMind SL
A3: COST CATEGORY | B3: UNITS | C3: COST PER UNIT | D3: BE TOTAL COSTS
A5: =CONCATENATE("COSTS WORK PACKAGE 1: "," ","Research Management and Administration Skill Development – Period 1") -> COSTS WORK PACKAGE 1: Research Management and Administration Skill Development – Period 1
A7: A. DIRECT PERSONNEL COSTS
A8: A.1 Employees (or equivalent)
A9: SENIOR SCIENTISTS (or equivalent in the private sector) | D9: =B9*C9 -> 0
A10: JUNIOR SCIENTISTS (or equivalent in the private sector) | D10: 0
A11: TECHNICAL PERSONNEL (or equivalent in the private sector) | D11: 0
A12: ADMINISTRATIVE PERSONNEL (or equivalent in the private sector) | D12: 0
A13: OTHERS | D13: 0
A14: A.2 Natural Persons under direct contract | D14: 0
A15: A.3 Seconded Persons | D15: 0
A16: A.4 SME owners and natural person beneficiaries | C16: =5080*VLOOKUP('BE list'!D7,CountryList!A2:B164,2,FALSE) -> 4638.04 | D16: 0
A17: B. DIRECT SUBCONTRACTING COSTS
D18: =B18*C18 -> 0
A19: C. DIRECT PURCHASE COSTS
A20: C.1 Travel and subsistence | D20: =B20*C20 -> 0
A21: C.2 Equipment (complete 'Depreciation costs' sheet)
A22: Equipment | D22: =B22*C22 -> 0
A23: Infrastructure | D23: =B23*C23 -> 0
A24: Other assets | D24: =B24*C24 -> 0
A25: C.3 Other goods, works and services
A26: Consumables | D26: =B26*C26 -> 0
A27: Services for meetings, seminars | D27: =B27*C27 -> 0
A28: Services for dissemination activities (including website) | D28: =B28*C28 -> 0
A29: Publication fees | D29: =B29*C29 -> 0
A30: Other (shipment, insurance, translation, etc.) | D30: =B30*C30 -> 0
A31: D. OTHER COST CATEGORIES
A32: D.1 Financial support to third parties (if applicable in the topic specific conditions) | D32: =B32*C32 -> 0
A33: D.2 Internally invoiced goods and services | D33: =B33*C33 -> 0
A34: D.3 Transnational access to research infrastructure unit costs (if mentioned as eligible in the topic specific conditions) | D34: =B34*C34 -> 0
A35: D.4 Virtual access to research infrastructure unit costs (if mentioned as eligible in the topic specific conditions) | D35: =B35*C35 -> 0
A36: D.5 PCP/PPI procurement costs (if mentioned as eligible in the topic specific conditions) | D36: =B36*C36 -> 0
A38: TOTAL DIRECT PERSONNEL COSTS AND PURCHASE COSTS (A+C) | D38: =SUM(D9:D16)+SUM(D20:D30) -> 0
A39: TOTAL DIRECT COSTS (A+B+C+D) | D39: =SUM(D8:D36) -> 0
A41: E. INDIRECT COSTS (25% * (A+C)) | D41: =D38*0.25 -> 0
A43: F. TOTAL COSTS (A+B+C+D+E) | D43: =D39+D41 -> 0
A46: =CONCATENATE("COSTS WORK PACKAGE 2: "," ","Research Management and Administration Skill Development – Period 2") -> COSTS WORK PACKAGE 2: Research Management and Administration Skill Development – Period 2
A48: A. DIRECT PERSONNEL COSTS
A49: A.1 Employees (or equivalent)
A50: SENIOR SCIENTISTS (or equivalent in the private sector) | D50: =B50*C50 -> 0
A51: JUNIOR SCIENTISTS (or equivalent in the private sector) | D51: 0
A52: TECHNICAL PERSONNEL (or equivalent in the private sector) | D52: 0
A53: ADMINISTRATIVE PERSONNEL (or equivalent in the private sector) | D53: 0
A54: OTHERS | D54: 0
A55: A.2 Natural Persons under direct contract | D55: 0
A56: A.3 Seconded Persons | D56: 0
A57: A.4 SME owners and natural person beneficiaries | C57: =5080*VLOOKUP('BE list'!D7,CountryList!A2:B164,2,FALSE) -> 4638.04 | D57: 0
A58: B. DIRECT SUBCONTRACTING COSTS
D59: =B59*C59 -> 0
A60: C. DIRECT PURCHASE COSTS
A61: C.1 Travel and subsistence | D61: =B61*C61 -> 0
A62: C.2 Equipment (complete 'Depreciation costs' sheet)
A63: Equipment | D63: =B63*C63 -> 0
A64: Infrastructure | D64: =B64*C64 -> 0
A65: Other assets | D65: =B65*C65 -> 0
A66: C.3 Other goods, works and services
A67: Consumables | D67: =B67*C67 -> 0
A68: Services for meetings, seminars | D68: =B68*C68 -> 0
A69: Services for dissemination activities (including website) | D69: =B69*C69 -> 0
A70: Publication fees | D70: =B70*C70 -> 0
A71: Other (shipment, insurance, translation, etc.) | D71: =B71*C71 -> 0
A72: D. OTHER COST CATEGORIES
A73: D.1 Financial support to third parties (if applicable in the topic specific conditions) | D73: =B73*C73 -> 0
A74: D.2 Internally invoiced goods and services | D74: =B74*C74 -> 0
A75: D.3 Transnational access to research infrastructure unit costs (if mentioned as eligible in the topic specific conditions) | D75: =B75*C75 -> 0
A76: D.4 Virtual access to research infrastructure unit costs (if mentioned as eligible in the topic specific conditions) | D76: =B76*C76 -> 0
A77: D.5 PCP/PPI procurement costs (if mentioned as eligible in the topic specific conditions) | D77: =B77*C77 -> 0
A79: TOTAL DIRECT PERSONNEL COSTS AND PURCHASE COSTS (A+C) | D79: =SUM(D50:D57)+SUM(D61:D71) -> 0
A80: TOTAL DIRECT COSTS (A+B+C+D) | D80: =SUM(D49:D77) -> 0
A82: E. INDIRECT COSTS (25% * (A+C)) | D82: =D79*0.25 -> 0
A84: F. TOTAL COSTS (A+B+C+D+E) | D84: =D80+D82 -> 0
A87: =CONCATENATE("COSTS WORK PACKAGE 3: "," ","Short termstaff exchanges and trainings for experienced researchers – Period 1") -> COSTS WORK PACKAGE 3: Short termstaff exchanges and trainings for experienced researchers – Period 1
A89: A. DIRECT PERSONNEL COSTS
A90: A.1 Employees (or equivalent)
A91: SENIOR SCIENTISTS (or equivalent in the private sector) | D91: =B91*C91 -> 0
A92: JUNIOR SCIENTISTS (or equivalent in the private sector) | D92: 0
A93: TECHNICAL PERSONNEL (or equivalent in the private sector) | D93: 0
A94: ADMINISTRATIVE PERSONNEL (or equivalent in the private sector) | D94: 0
A95: OTHERS | D95: 0
A96: A.2 Natural Persons under direct contract | D96: 0
A97: A.3 Seconded Persons | D97: 0
A98: A.4 SME owners and natural person beneficiaries | C98: =5080*VLOOKUP('BE list'!D7,CountryList!A2:B164,2,FALSE) -> 4638.04 | D98: 0
A99: B. DIRECT SUBCONTRACTING COSTS
D100: =B100*C100 -> 0
A101: C. DIRECT PURCHASE COSTS
A102: C.1 Travel and subsistence | D102: =B102*C102 -> 0
A103: C.2 Equipment (complete 'Depreciation costs' sheet)
A104: Equipment | D104: =B104*C104 -> 0
A105: Infrastructure | D105: =B105*C105 -> 0
A106: Other assets | D106: =B106*C106 -> 0
A107: C.3 Other goods, works and services
A108: Consumables | D108: =B108*C108 -> 0
A109: Services for meetings, seminars | D109: =B109*C109 -> 0
A110: Services for dissemination activities (including website) | D110: =B110*C110 -> 0
A111: Publication fees | D111: =B111*C111 -> 0
A112: Other (shipment, insurance, translation, etc.) | D112: =B112*C112 -> 0
A113: D. OTHER COST CATEGORIES
A114: D.1 Financial support to third parties (if applicable in the topic specific conditions) | D114: =B114*C114 -> 0
A115: D.2 Internally invoiced goods and services | D115: =B115*C115 -> 0
A116: D.3 Transnational access to research infrastructure unit costs (if mentioned as eligible in the topic specific conditions) | D116: =B116*C116 -> 0
A117: D.4 Virtual access to research infrastructure unit costs (if mentioned as eligible in the topic specific conditions) | D117: =B117*C117 -> 0
A118: D.5 PCP/PPI procurement costs (if mentioned as eligible in the topic specific conditions) | D118: =B118*C118 -> 0
A120: TOTAL DIRECT PERSONNEL COSTS AND PURCHASE COSTS (A+C) | D120: =SUM(D91:D98)+SUM(D102:D112) -> 0
A121: TOTAL DIRECT COSTS (A+B+C+D) | D121: =SUM(D90:D118) -> 0
A123: E. INDIRECT COSTS (25% * (A+C)) | D123: =D120*0.25 -> 0
A125: F. TOTAL COSTS (A+B+C+D+E) | D125: =D121+D123 -> 0
A128: =CONCATENATE("COSTS WORK PACKAGE 4: "," ","Short term staff exchanges and trainings for experienced researchers – Period 2") -> COSTS WORK PACKAGE 4: Short term staff exchanges and trainings for experienced researchers – Period 2
A130: A. DIRECT PERSONNEL COSTS
A131: A.1 Employees (or equivalent)
A132: SENIOR SCIENTISTS (or equivalent in the private sector) | D132: =B132*C132 -> 0
A133: JUNIOR SCIENTISTS (or equivalent in the private sector) | D133: 0
A134: TECHNICAL PERSONNEL (or equivalent in the private sector) | D134: 0
A135: ADMINISTRATIVE PERSONNEL (or equivalent in the private sector) | D135: 0
A136: OTHERS | D136: 0
A137: A.2 Natural Persons under direct contract | D137: 0
A138: A.3 Seconded Persons | D138: 0
A139: A.4 SME owners and natural person beneficiaries | C139: =5080*VLOOKUP('BE list'!D7,CountryList!A2:B164,2,FALSE) -> 4638.04 | D139: 0
A140: B. DIRECT SUBCONTRACTING COSTS
D141: =B141*C141 -> 0
A142: C. DIRECT PURCHASE COSTS
A143: C.1 Travel and subsistence | D143: =B143*C143 -> 0
A144: C.2 Equipment (complete 'Depreciation costs' sheet)
A145: Equipment | D145: =B145*C145 -> 0
A146: Infrastructure | D146: =B146*C146 -> 0
A147: Other assets | D147: =B147*C147 -> 0
A148: C.3 Other goods, works and services
A149: Consumables | D149: =B149*C149 -> 0
A150: Services for meetings, seminars | D150: =B150*C150 -> 0
A151: Services for dissemination activities (including website) | D151: =B151*C151 -> 0
A152: Publication fees | D152: =B152*C152 -> 0
A153: Other (shipment, insurance, translation, etc.) | D153: =B153*C153 -> 0
A154: D. OTHER COST CATEGORIES
A155: D.1 Financial support to third parties (if applicable in the topic specific conditions) | D155: =B155*C155 -> 0
A156: D.2 Internally invoiced goods and services | D156: =B156*C156 -> 0
A157: D.3 Transnational access to research infrastructure unit costs (if mentioned as eligible in the topic specific conditions) | D157: =B157*C157 -> 0
A158: D.4 Virtual access to research infrastructure unit costs (if mentioned as eligible in the topic specific conditions) | D158: =B158*C158 -> 0
A159: D.5 PCP/PPI procurement costs (if mentioned as eligible in the topic specific conditions) | D159: =B159*C159 -> 0
A161: TOTAL DIRECT PERSONNEL COSTS AND PURCHASE COSTS (A+C) | D161: =SUM(D132:D139)+SUM(D143:D153) -> 0
A162: TOTAL DIRECT COSTS (A+B+C+D) | D162: =SUM(D131:D159) -> 0
A164: E. INDIRECT COSTS (25% * (A+C)) | D164: =D161*0.25 -> 0
A166: F. TOTAL COSTS (A+B+C+D+E) | D166: =D162+D164 -> 0
A169: =CONCATENATE("COSTS WORK PACKAGE 5: "," ","Research internships and trainings for early-stage researchers – Period 1") -> COSTS WORK PACKAGE 5: Research internships and trainings for early-stage researchers – Period 1
A171: A. DIRECT PERSONNEL COSTS
A172: A.1 Employees (or equivalent)
A173: SENIOR SCIENTISTS (or equivalent in the private sector) | D173: =B173*C173 -> 0
A174: JUNIOR SCIENTISTS (or equivalent in the private sector) | D174: 0
A175: TECHNICAL PERSONNEL (or equivalent in the private sector) | D175: 0
A176: ADMINISTRATIVE PERSONNEL (or equivalent in the private sector) | D176: 0
A177: OTHERS | D177: 0
A178: A.2 Natural Persons under direct contract | D178: 0
A179: A.3 Seconded Persons | D179: 0
A180: A.4 SME owners and natural person beneficiaries | C180: =5080*VLOOKUP('BE list'!D7,CountryList!A2:B164,2,FALSE) -> 4638.04 | D180: 0
A181: B. DIRECT SUBCONTRACTING COSTS
D182: =B182*C182 -> 0
A183: C. DIRECT PURCHASE COSTS
A184: C.1 Travel and subsistence | D184: =B184*C184 -> 0
A185: C.2 Equipment (complete 'Depreciation costs' sheet)
A186: Equipment | D186: =B186*C186 -> 0
A187: Infrastructure | D187: =B187*C187 -> 0
A188: Other assets | D188: =B188*C188 -> 0
A189: C.3 Other goods, works and services
A190: Consumables | D190: =B190*C190 -> 0
A191: Services for meetings, seminars | D191: =B191*C191 -> 0
A192: Services for dissemination activities (including website) | D192: =B192*C192 -> 0
A193: Publication fees | D193: =B193*C193 -> 0
A194: Other (shipment, insurance, translation, etc.) | D194: =B194*C194 -> 0
A195: D. OTHER COST CATEGORIES
A196: D.1 Financial support to third parties (if applicable in the topic specific conditions) | D196: =B196*C196 -> 0
A197: D.2 Internally invoiced goods and services | D197: =B197*C197 -> 0
A198: D.3 Transnational access to research infrastructure unit costs (if mentioned as eligible in the topic specific conditions) | D198: =B198*C198 -> 0
A199: D.4 Virtual access to research infrastructure unit costs (if mentioned as eligible in the topic specific conditions) | D199: =B199*C199 -> 0
A200: D.5 PCP/PPI procurement costs (if mentioned as eligible in the topic specific conditions) | D200: =B200*C200 -> 0
A202: TOTAL DIRECT PERSONNEL COSTS AND PURCHASE COSTS (A+C) | D202: =SUM(D173:D180)+SUM(D184:D194) -> 0
A203: TOTAL DIRECT COSTS (A+B+C+D) | D203: =SUM(D172:D200) -> 0
A205: E. INDIRECT COSTS (25% * (A+C)) | D205: =D202*0.25 -> 0
A207: F. TOTAL COSTS (A+B+C+D+E) | D207: =D203+D205 -> 0
A210: =CONCATENATE("COSTS WORK PACKAGE 6: "," ","Research internships and trainings for early-stage researchers – Period 2") -> COSTS WORK PACKAGE 6: Research internships and trainings for early-stage researchers – Period 2
A212: A. DIRECT PERSONNEL COSTS
A213: A.1 Employees (or equivalent)
A214: SENIOR SCIENTISTS (or equivalent in the private sector) | D214: =B214*C214 -> 0
A215: JUNIOR SCIENTISTS (or equivalent in the private sector) | D215: 0
A216: TECHNICAL PERSONNEL (or equivalent in the private sector) | D216: 0
A217: ADMINISTRATIVE PERSONNEL (or equivalent in the private sector) | D217: 0
A218: OTHERS | D218: 0
A219: A.2 Natural Persons under direct contract | D219: 0
A220: A.3 Seconded Persons | D220: 0
A221: A.4 SME owners and natural person beneficiaries | C221: =5080*VLOOKUP('BE list'!D7,CountryList!A2:B164,2,FALSE) -> 4638.04 | D221: 0
A222: B. DIRECT SUBCONTRACTING COSTS
D223: =B223*C223 -> 0
A224: C. DIRECT PURCHASE COSTS
A225: C.1 Travel and subsistence | D225: =B225*C225 -> 0
A226: C.2 Equipment (complete 'Depreciation costs' sheet)
A227: Equipment | D227: =B227*C227 -> 0
A228: Infrastructure | D228: =B228*C228 -> 0
A229: Other assets | D229: =B229*C229 -> 0
A230: C.3 Other goods, works and services
A231: Consumables | D231: =B231*C231 -> 0
A232: Services for meetings, seminars | D232: =B232*C232 -> 0
... 153 more rows

Sheet BE5
A1: BENEFICIARY 5 - CALCULATION SHEET | C1: View Summary
B2: Intelligentsia Consultants Sàrl
A3: COST CATEGORY | B3: UNITS | C3: COST PER UNIT | D3: BE TOTAL COSTS
A5: =CONCATENATE("COSTS WORK PACKAGE 1: "," ","Research Management and Administration Skill Development – Period 1") -> COSTS WORK PACKAGE 1: Research Management and Administration Skill Development – Period 1
A7: A. DIRECT PERSONNEL COSTS
A8: A.1 Employees (or equivalent)
A9: SENIOR SCIENTISTS (or equivalent in the private sector) | D9: =B9*C9 -> 0
A10: JUNIOR SCIENTISTS (or equivalent in the private sector) | D10: 0
A11: TECHNICAL PERSONNEL (or equivalent in the private sector) | D11: 0
A12: ADMINISTRATIVE PERSONNEL (or equivalent in the private sector) | D12: 0
A13: OTHERS | B13: 4 | C13: 8000 | D13: 32000
A14: A.2 Natural Persons under direct contract | D14: 0
A15: A.3 Seconded Persons | D15: 0
A16: A.4 SME owners and natural person beneficiaries | C16: =5080*VLOOKUP('BE list'!D8,CountryList!A2:B164,2,FALSE) -> 5080 | D16: 0
A17: B. DIRECT SUBCONTRACTING COSTS
D18: =B18*C18 -> 0
A19: C. DIRECT PURCHASE COSTS
A20: C.1 Travel and subsistence | B20: 1.5 | C20: 3500 | D20: =B20*C20 -> 5250
A21: C.2 Equipment (complete 'Depreciation costs' sheet)
A22: Equipment | D22: =B22*C22 -> 0
A23: Infrastructure | D23: =B23*C23 -> 0
A24: Other assets | D24: =B24*C24 -> 0
A25: C.3 Other goods, works and services
A26: Consumables | D26: =B26*C26 -> 0
A27: Services for meetings, seminars | D27: =B27*C27 -> 0
A28: Services for dissemination activities (including website) | D28: =B28*C28 -> 0
A29: Publication fees | D29: =B29*C29 -> 0
A30: Other (shipment, insurance, translation, etc.) | D30: =B30*C30 -> 0
A31: D. OTHER COST CATEGORIES
A32: D.1 Financial support to third parties (if applicable in the topic specific conditions) | D32: =B32*C32 -> 0
A33: D.2 Internally invoiced goods and services | D33: =B33*C33 -> 0
A34: D.3 Transnational access to research infrastructure unit costs (if mentioned as eligible in the topic specific conditions) | D34: =B34*C34 -> 0
A35: D.4 Virtual access to research infrastructure unit costs (if mentioned as eligible in the topic specific conditions) | D35: =B35*C35 -> 0
A36: D.5 PCP/PPI procurement costs (if mentioned as eligible in the topic specific conditions) | D36: =B36*C36 -> 0
A38: TOTAL DIRECT PERSONNEL COSTS AND PURCHASE COSTS (A+C) | D38: =SUM(D9:D16)+SUM(D20:D30) -> 37250
A39: TOTAL DIRECT COSTS (A+B+C+D) | D39: =SUM(D8:D36) -> 37250
A41: E. INDIRECT COSTS (25% * (A+C)) | D41: =D38*0.25 -> 9312.5
A43: F. TOTAL COSTS (A+B+C+D+E) | D43: =D39+D41 -> 46562.5
A46: =CONCATENATE("COSTS WORK PACKAGE 2: "," ","Research Management and Administration Skill Development – Period 2") -> COSTS WORK PACKAGE 2: Research Management and Administration Skill Development – Period 2
A48: A. DIRECT PERSONNEL COSTS
A49: A.1 Employees (or equivalent)
A50: SENIOR SCIENTISTS (or equivalent in the private sector) | D50: =B50*C50 -> 0
A51: JUNIOR SCIENTISTS (or equivalent in the private sector) | D51: 0
A52: TECHNICAL PERSONNEL (or equivalent in the private sector) | D52: 0
A53: ADMINISTRATIVE PERSONNEL (or equivalent in the private sector) | D53: 0
A54: OTHERS | B54: 5 | C54: 8000 | D54: 40000
A55: A.2 Natural Persons under direct contract | D55: 0
A56: A.3 Seconded Persons | D56: 0
A57: A.4 SME owners and natural person beneficiaries | C57: =5080*VLOOKUP('BE list'!D8,CountryList!A2:B164,2,FALSE) -> 5080 | D57: 0
A58: B. DIRECT SUBCONTRACTING COSTS
D59: =B59*C59 -> 0
A60: C. DIRECT PURCHASE COSTS
A61: C.1 Travel and subsistence | B61: 2.5 | C61: 3500 | D61: =B61*C61 -> 8750
A62: C.2 Equipment (complete 'Depreciation costs' sheet)
A63: Equipment | D63: =B63*C63 -> 0
A64: Infrastructure | D64: =B64*C64 -> 0
A65: Other assets | D65: =B65*C65 -> 0
A66: C.3 Other goods, works and services
A67: Consumables | D67: =B67*C67 -> 0
A68: Services for meetings, seminars | D68: =B68*C68 -> 0
A69: Services for dissemination activities (including website) | D69: =B69*C69 -> 0
A70: Publication fees | D70: =B70*C70 -> 0
A71: Other (shipment, insurance, translation, etc.) | D71: =B71*C71 -> 0
A72: D. OTHER COST CATEGORIES
A73: D.1 Financial support to third parties (if applicable in the topic specific conditions) | D73: =B73*C73 -> 0
A74: D.2 Internally invoiced goods and services | D74: =B74*C74 -> 0
A75: D.3 Transnational access to research infrastructure unit costs (if mentioned as eligible in the topic specific conditions) | D75: =B75*C75 -> 0
A76: D.4 Virtual access to research infrastructure unit costs (if mentioned as eligible in the topic specific conditions) | D76: =B76*C76 -> 0
A77: D.5 PCP/PPI procurement costs (if mentioned as eligible in the topic specific conditions) | D77: =B77*C77 -> 0
A79: TOTAL DIRECT PERSONNEL COSTS AND PURCHASE COSTS (A+C) | D79: =SUM(D50:D57)+SUM(D61:D71) -> 48750
A80: TOTAL DIRECT COSTS (A+B+C+D) | D80: =SUM(D49:D77) -> 48750
A82: E. INDIRECT COSTS (25% * (A+C)) | D82: =D79*0.25 -> 12187.5
A84: F. TOTAL COSTS (A+B+C+D+E) | D84: =D80+D82 -> 60937.5
A87: =CONCATENATE("COSTS WORK PACKAGE 3: "," ","Short termstaff exchanges and trainings for experienced researchers – Period 1") -> COSTS WORK PACKAGE 3: Short termstaff exchanges and trainings for experienced researchers – Period 1
A89: A. DIRECT PERSONNEL COSTS
A90: A.1 Employees (or equivalent)
A91: SENIOR SCIENTISTS (or equivalent in the private sector) | D91: =B91*C91 -> 0
A92: JUNIOR SCIENTISTS (or equivalent in the private sector) | D92: 0
A93: TECHNICAL PERSONNEL (or equivalent in the private sector) | D93: 0
A94: ADMINISTRATIVE PERSONNEL (or equivalent in the private sector) | D94: 0
A95: OTHERS | D95: 0
A96: A.2 Natural Persons under direct contract | D96: 0
A97: A.3 Seconded Persons | D97: 0
A98: A.4 SME owners and natural person beneficiaries | C98: =5080*VLOOKUP('BE list'!D8,CountryList!A2:B164,2,FALSE) -> 5080 | D98: 0
A99: B. DIRECT SUBCONTRACTING COSTS
D100: =B100*C100 -> 0
A101: C. DIRECT PURCHASE COSTS
A102: C.1 Travel and subsistence | D102: =B102*C102 -> 0
A103: C.2 Equipment (complete 'Depreciation costs' sheet)
A104: Equipment | D104: =B104*C104 -> 0
A105: Infrastructure | D105: =B105*C105 -> 0
A106: Other assets | D106: =B106*C106 -> 0
A107: C.3 Other goods, works and services
A108: Consumables | D108: =B108*C108 -> 0
A109: Services for meetings, seminars | D109: =B109*C109 -> 0
A110: Services for dissemination activities (including website) | D110: =B110*C110 -> 0
A111: Publication fees | D111: =B111*C111 -> 0
A112: Other (shipment, insurance, translation, etc.) | D112: =B112*C112 -> 0
A113: D. OTHER COST CATEGORIES
A114: D.1 Financial support to third parties (if applicable in the topic specific conditions) | D114: =B114*C114 -> 0
A115: D.2 Internally invoiced goods and services | D115: =B115*C115 -> 0
A116: D.3 Transnational access to research infrastructure unit costs (if mentioned as eligible in the topic specific conditions) | D116: =B116*C116 -> 0
A117: D.4 Virtual access to research infrastructure unit costs (if mentioned as eligible in the topic specific conditions) | D117: =B117*C117 -> 0
A118: D.5 PCP/PPI procurement costs (if mentioned as eligible in the topic specific conditions) | D118: =B118*C118 -> 0
A120: TOTAL DIRECT PERSONNEL COSTS AND PURCHASE COSTS (A+C) | D120: =SUM(D91:D98)+SUM(D102:D112) -> 0
A121: TOTAL DIRECT COSTS (A+B+C+D) | D121: =SUM(D90:D118) -> 0
A123: E. INDIRECT COSTS (25% * (A+C)) | D123: =D120*0.25 -> 0
A125: F. TOTAL COSTS (A+B+C+D+E) | D125: =D121+D123 -> 0
A128: =CONCATENATE("COSTS WORK PACKAGE 4: "," ","Short term staff exchanges and trainings for experienced researchers – Period 2") -> COSTS WORK PACKAGE 4: Short term staff exchanges and trainings for experienced researchers – Period 2
A130: A. DIRECT PERSONNEL COSTS
A131: A.1 Employees (or equivalent)
A132: SENIOR SCIENTISTS (or equivalent in the private sector) | D132: =B132*C132 -> 0
A133: JUNIOR SCIENTISTS (or equivalent in the private sector) | D133: 0
A134: TECHNICAL PERSONNEL (or equivalent in the private sector) | D134: 0
A135: ADMINISTRATIVE PERSONNEL (or equivalent in the private sector) | D135: 0
A136: OTHERS | D136: 0
A137: A.2 Natural Persons under direct contract | D137: 0
A138: A.3 Seconded Persons | D138: 0
A139: A.4 SME owners and natural person beneficiaries | C139: =5080*VLOOKUP('BE list'!D8,CountryList!A2:B164,2,FALSE) -> 5080 | D139: 0
A140: B. DIRECT SUBCONTRACTING COSTS
D141: =B141*C141 -> 0
A142: C. DIRECT PURCHASE COSTS
A143: C.1 Travel and subsistence | D143: =B143*C143 -> 0
A144: C.2 Equipment (complete 'Depreciation costs' sheet)
A145: Equipment | D145: =B145*C145 -> 0
A146: Infrastructure | D146: =B146*C146 -> 0
A147: Other assets | D147: =B147*C147 -> 0
A148: C.3 Other goods, works and services
A149: Consumables | D149: =B149*C149 -> 0
A150: Services for meetings, seminars | D150: =B150*C150 -> 0
A151: Services for dissemination activities (including website) | D151: =B151*C151 -> 0
A152: Publication fees | D152: =B152*C152 -> 0
A153: Other (shipment, insurance, translation, etc.) | D153: =B153*C153 -> 0
A154: D. OTHER COST CATEGORIES
A155: D.1 Financial support to third parties (if applicable in the topic specific conditions) | D155: =B155*C155 -> 0
A156: D.2 Internally invoiced goods and services | D156: =B156*C156 -> 0
A157: D.3 Transnational access to research infrastructure unit costs (if mentioned as eligible in the topic specific conditions) | D157: =B157*C157 -> 0
A158: D.4 Virtual access to research infrastructure unit costs (if mentioned as eligible in the topic specific conditions) | D158: =B158*C158 -> 0
A159: D.5 PCP/PPI procurement costs (if mentioned as eligible in the topic specific conditions) | D159: =B159*C159 -> 0
A161: TOTAL DIRECT PERSONNEL COSTS AND PURCHASE COSTS (A+C) | D161: =SUM(D132:D139)+SUM(D143:D153) -> 0
A162: TOTAL DIRECT COSTS (A+B+C+D) | D162: =SUM(D131:D159) -> 0
A164: E. INDIRECT COSTS (25% * (A+C)) | D164: =D161*0.25 -> 0
A166: F. TOTAL COSTS (A+B+C+D+E) | D166: =D162+D164 -> 0
A169: =CONCATENATE("COSTS WORK PACKAGE 5: "," ","Research internships and trainings for early-stage researchers – Period 1") -> COSTS WORK PACKAGE 5: Research internships and trainings for early-stage researchers – Period 1
A171: A. DIRECT PERSONNEL COSTS
A172: A.1 Employees (or equivalent)
A173: SENIOR SCIENTISTS (or equivalent in the private sector) | D173: =B173*C173 -> 0
A174: JUNIOR SCIENTISTS (or equivalent in the private sector) | D174: 0
A175: TECHNICAL PERSONNEL (or equivalent in the private sector) | D175: 0
A176: ADMINISTRATIVE PERSONNEL (or equivalent in the private sector) | D176: 0
A177: OTHERS | D177: 0
A178: A.2 Natural Persons under direct contract | D178: 0
A179: A.3 Seconded Persons | D179: 0
A180: A.4 SME owners and natural person beneficiaries | C180: =5080*VLOOKUP('BE list'!D8,CountryList!A2:B164,2,FALSE) -> 5080 | D180: 0
A181: B. DIRECT SUBCONTRACTING COSTS
D182: =B182*C182 -> 0
A183: C. DIRECT PURCHASE COSTS
A184: C.1 Travel and subsistence | D184: =B184*C184 -> 0
A185: C.2 Equipment (complete 'Depreciation costs' sheet)
A186: Equipment | D186: =B186*C186 -> 0
A187: Infrastructure | D187: =B187*C187 -> 0
A188: Other assets | D188: =B188*C188 -> 0
A189: C.3 Other goods, works and services
A190: Consumables | D190: =B190*C190 -> 0
A191: Services for meetings, seminars | D191: =B191*C191 -> 0
A192: Services for dissemination activities (including website) | D192: =B192*C192 -> 0
A193: Publication fees | D193: =B193*C193 -> 0
A194: Other (shipment, insurance, translation, etc.) | D194: =B194*C194 -> 0
A195: D. OTHER COST CATEGORIES
A196: D.1 Financial support to third parties (if applicable in the topic specific conditions) | D196: =B196*C196 -> 0
A197: D.2 Internally invoiced goods and services | D197: =B197*C197 -> 0
A198: D.3 Transnational access to research infrastructure unit costs (if mentioned as eligible in the topic specific conditions) | D198: =B198*C198 -> 0
A199: D.4 Virtual access to research infrastructure unit costs (if mentioned as eligible in the topic specific conditions) | D199: =B199*C199 -> 0
A200: D.5 PCP/PPI procurement costs (if mentioned as eligible in the topic specific conditions) | D200: =B200*C200 -> 0
A202: TOTAL DIRECT PERSONNEL COSTS AND PURCHASE COSTS (A+C) | D202: =SUM(D173:D180)+SUM(D184:D194) -> 0
A203: TOTAL DIRECT COSTS (A+B+C+D) | D203: =SUM(D172:D200) -> 0
A205: E. INDIRECT COSTS (25% * (A+C)) | D205: =D202*0.25 -> 0
A207: F. TOTAL COSTS (A+B+C+D+E) | D207: =D203+D205 -> 0
A210: =CONCATENATE("COSTS WORK PACKAGE 6: "," ","Research internships and trainings for early-stage researchers – Period 2") -> COSTS WORK PACKAGE 6: Research internships and trainings for early-stage researchers – Period 2
A212: A. DIRECT PERSONNEL COSTS
A213: A.1 Employees (or equivalent)
A214: SENIOR SCIENTISTS (or equivalent in the private sector) | D214: =B214*C214 -> 0
A215: JUNIOR SCIENTISTS (or equivalent in the private sector) | D215: 0
A216: TECHNICAL PERSONNEL (or equivalent in the private sector) | D216: 0
A217: ADMINISTRATIVE PERSONNEL (or equivalent in the private sector) | D217: 0
A218: OTHERS | D218: 0
A219: A.2 Natural Persons under direct contract | D219: 0
A220: A.3 Seconded Persons | D220: 0
A221: A.4 SME owners and natural person beneficiaries | C221: =5080*VLOOKUP('BE list'!D8,CountryList!A2:B164,2,FALSE) -> 5080 | D221: 0
A222: B. DIRECT SUBCONTRACTING COSTS
D223: =B223*C223 -> 0
A224: C. DIRECT PURCHASE COSTS
A225: C.1 Travel and subsistence | D225: =B225*C225 -> 0
A226: C.2 Equipment (complete 'Depreciation costs' sheet)
A227: Equipment | D227: =B227*C227 -> 0
A228: Infrastructure | D228: =B228*C228 -> 0
A229: Other assets | D229: =B229*C229 -> 0
A230: C.3 Other goods, works and services
A231: Consumables | D231: =B231*C231 -> 0
A232: Services for meetings, seminars | D232: =B232*C232 -> 0
... 153 more rows

Sheet Depreciation costs
A1: TOOL: DEPRECIATION COSTS LIST
A2: BE nr | B2: Beneficiary name | C2: WP nr | D2: Work Package name | E2: Resource type | F2: Short name of the investments | G2: Date of purchase (real or planned date of purchase) | H2: Purchase cost | I2: % used for the project | J2: % of useful life of the equipment in the project | K2: Charged depreciation costs per investment | L2: Justification: Needed info for depreciation
K3: =+H3*I3*J3 -> 0
K4: 0
K5: 0
K6: 0
K7: 0
K8: 0
K9: 0
K10: 0
K11: 0
K12: 0
K13: 0
K14: 0
K15: 0
K16: 0
K17: 0
K18: 0
K19: 0
K20: 0
K21: 0
K22: 0
K23: 0
K24: 0
K25: 0
K26: 0
K27: 0
K28: 0
K29: 0
K30: 0
K31: 0
K32: 0
K33: 0
K34: 0
K35: 0
K36: 0
K37: 0
K38: 0
K39: 0
K40: 0
K41: 0
K42: 0
K43: 0
K44: 0
K45: 0
K46: 0
K47: 0
K48: 0
K49: 0
K50: 0
K51: 0
K52: 0
K53: 0
K54: 0
K55: 0
K56: 0
K57: 0
K58: 0
K59: 0
K60: 0
K61: 0
K62: 0
K63: 0
K64: 0
K65: 0
K66: 0
K67: 0
K68: 0
K69: =+H69*I69*J69 -> 0
K70: 0
K71: 0
K72: 0
K73: 0
K74: 0
K75: 0
K76: 0
K77: 0
K78: 0
K79: 0
K80: 0
K81: 0
K82: 0
K83: 0
K84: 0
K85: 0
K86: 0
K87: 0
K88: 0
K89: 0
K90: 0
K91: 0
K92: 0
K93: 0
K94: 0
K95: 0
K96: 0
K97: 0
K98: 0
K99: 0
K100: 0
K101: 0
K102: 0
K103: =+H103*I103*J103 -> 0
K104: 0
K105: 0
K106: 0
K107: 0
K108: 0
K109: 0
K110: 0
K111: 0
K112: 0
K113: 0
K114: 0
K115: 0
K116: 0
K117: 0
K118: 0
K119: 0
K120: 0
K121: 0
K122: 0
K123: 0
K124: 0
K125: 0
K126: 0
K127: 0
K128: 0
K129: 0
K130: 0
K131: 0
K132: 0
K133: 0
K134: 0
K135: 0
K136: 0
K137: 0
K138: 0
K139: 0
K140: 0
K141: 0
K142: 0
K143: 0
K144: 0
K145: 0
K146: 0
K147: 0
K148: 0
K149: 0
K150: 0
K151: 0
K152: 0
K153: 0
K154: 0
K155: 0
K156: 0
K157: 0
K158: 0
K159: 0
K160: 0
K161: 0
K162: 0
K163: 0
K164: 0
K165: 0
K166: 0
K167: =+H167*I167*J167 -> 0
K168: 0
K169: 0
K170: 0
K171: 0
K172: 0
K173: 0
K174: 0
K175: 0
K176: 0
K177: 0
K178: 0
K179: 0
K180: 0
K181: 0
K182: 0
K183: 0
K184: 0
K185: 0
K186: 0
K187: 0
K188: 0
K189: 0
K190: 0
K191: 0
K192: 0
K193: 0
K194: 0
K195: 0
K196: 0
K197: 0
K198: 0
K199: 0
K200: 0
... 9 more rows

Sheet Any comments
A1: Any comments
A2: nr | B2: BE ref | C2: WP ref | D2: Comments

Sheet CountryList (hidden)
A1: Country | B1: Coefficient
A2: AE | B2: 0.94
A3: AL | B3: 0.59
A4: AM | B4: 0.777
A5: AO | B5: 1.3
A6: AR | B6: 0.625
A7: AT | B7: 1.063
A8: AU | B8: 1.009
A9: AZ | B9: 0.821
A10: BA | B10: 0.639
A11: BB | B11: 1.128
A12: BD | B12: 0.812
A13: BE | B13: 1
A14: BF | B14: 0.95
A15: BG | B15: 0.548
A16: BI | B16: 0.813
A17: BJ | B17: 0.919
A18: BO | B18: 0.839
A19: BR | B19: 0.847
A20: BW | B20: 0.629
A21: BY | B21: 0.668
A22: BZ | B22: 0.799
A23: CA | B23: 0.952
A24: CD | B24: 1.519
A25: CF | B25: 1.093
A26: CG | B26: 1.173
A27: CH | B27: 1.286
A28: CI | B28: 0.946
A29: CL | B29: 0.695
A30: CM | B30: 0.878
A31: CN | B31: 0.9
A32: CO | B32: 0.676
A33: CR | B33: 0.776
A34: CU | B34: 0.825
A35: CV | B35: 0.696
A36: CY | B36: 0.775
A37: CZ | B37: 0.791
A38: DE | B38: 0.983
A39: DJ | B39: 0.872
A40: DK | B40: 1.32
A41: DO | B41: 0.614
A42: DZ | B42: 0.679
A43: EC | B43: 0.794
A44: EE | B44: 0.803
A45: EG | B45: 0.674
A46: EL | B46: 0.816
A47: ER | B47: 1.204
A48: ES | B48: 0.913
A49: ET | B49: 0.819
A50: FI | B50: 1.195
A51: FJ | B51: 0.735
A52: FO | B52: 1.32
A53: FR | B53: 1.164
A54: GA | B54: 1.079
A55: GE | B55: 0.622
A56: GH | B56: 0.739
A57: GM | B57: 0.688
A58: GN | B58: 0.842
A59: GT | B59: 0.873
A60: GW | B60: 0.819
A61: GY | B61: 0.717
A62: HK | B62: 1.154
A63: HN | B63: 0.774
A64: HR | B64: 0.755
A65: HT | B65: 0.85
A66: HU | B66: 0.72
A67: ID | B67: 0.73
A68: IE | B68: 1.195
A69: IL | B69: 1.072
A70: IN | B70: 0.738
A71: IS | B71: 1.305
A72: IT | B72: 0.974
A73: JM | B73: 0.844
A74: JO | B74: 0.988
A75: JP | B75: 1.033
A76: KE | B76: 0.856
A77: KG | B77: 0.737
A78: KH | B78: 0.786
A79: KM | B79: 0.757
A80: KR | B80: 0.955
A81: KZ | B81: 0.719
A82: LA | B82: 0.898
A83: LB | B83: 1.162
A84: LI | B84: 1.286
A85: LK | B85: 0.774
A86: LR | B86: 1.496
A87: LS | B87: 0.562
A88: LT | B88: 0.728
A89: LU | B89: 1
A90: LV | B90: 0.76
A91: MA | B91: 0.726
A92: MD | B92: 0.632
A93: ME | B93: 0.616
A94: MG | B94: 0.856
A95: MK | B95: 0.507
A96: ML | B96: 0.9
A97: MM | B97: 0.67
A98: MR | B98: 0.681
A99: MT | B99: 0.881
A100: MU | B100: 0.733
A101: MW | B101: 0.609
A102: MX | B102: 0.603
A103: MY | B103: 0.672
A104: MZ | B104: 0.717
A105: NA | B105: 0.669
A106: NC | B106: 1.074
A107: NE | B107: 0.8
A108: NG | B108: 0.852
A109: NI | B109: 0.673
A110: NL | B110: 1.096
A111: NO | B111: 1.287
A112: NP | B112: 0.878
A113: NZ | B113: 0.989
A114: PA | B114: 0.768
A115: PE | B115: 0.88
A116: PG | B116: 0.998
A117: PH | B117: 0.813
A118: PK | B118: 0.548
A119: PL | B119: 0.705
A120: PS | B120: 1.125
A121: PT | B121: 0.843
A122: PY | B122: 0.63
A123: RO | B123: 0.654
A124: RS | B124: 0.577
A125: RU | B125: 0.973
A126: RW | B126: 0.816
A127: SA | B127: 0.834
A128: SB | B128: 1.127
A129: SD | B129: 1.078
A130: SE | B130: 1.254
A131: SG | B131: 1.244
A132: SI | B132: 0.833
A133: SK | B133: 0.781
A134: SL | B134: 1.071
A135: SN | B135: 0.984
A136: SR | B136: 0.691
A137: SV | B137: 0.722
A138: SZ | B138: 0.613
A139: TD | B139: 1.001
A140: TG | B140: 0.828
A141: TH | B141: 0.788
A142: TJ | B142: 0.584
A143: TL | B143: 0.887
A144: TM | B144: 0.829
A145: TN | B145: 0.674
A146: TR | B146: 0.645
A147: TT | B147: 0.818
A148: TW | B148: 0.847
A149: TZ | B149: 0.679
A150: UA | B150: 0.685
A151: UG | B151: 0.672
A152: UK | B152: 1.369
A153: US | B153: 1.023
A154: UY | B154: 0.897
A155: UZ | B155: 0.68
A156: VE | B156: 1.392
A157: VN | B157: 0.613
A158: VU | B158: 1.048
A159: WS | B159: 0.822
A160: XK | B160: 0.702
A161: YE | B161: 1.044
A162: ZA | B162: 0.553
A163: ZM | B163: 0.748
A164: ZW | B164: 0.983
